Workbook

Sheet Sheet1
B2: Stock Name : | C2: HDFC BANK
B3: Instrument_token : | C3: =_xlfn.XLOOKUP(C2,Instruments_Equity!E:E,Instruments_Equity!B:B,0) -> 341249
B4: tradingsymbol : | C4: =_xlfn.XLOOKUP(C3,Instruments_Equity!A:A,Instruments_Equity!C:C,0) -> 0
B5: API_Key : Access Token | G5: LTP : | H5: 986.9
B6: From_date : | C6: 2025-11-18
B7: To_date : | C7: 2025-11-18 | N7: ✅ Detects momentum reversals early | ❌ False signals in strong trends | O7: ✅ Simple, works well in trending markets. | ❌ Lags in sideways markets.
B8: Intervel : | C8: 5minute | AP8: =UPPER(C2) -> HDFC BANK
E9: Time | F9: Date | G9: Open | H9: High | I9: Low | J9: Close | K9: Volume | N9: RSI(10) | O9: SMA(5) | P9: SMA(10) | Q9: EMA(5) | R9: EMA(12) | S9: MACD | T9: MACD Signal Line | U9: VWAP | V9: BB Lower | W9: BB Upper | X9: Lag_Predect | Y9: Linear Regression | Z9: MACD >>Buy/Sell | AA9: RSI >> Buy/Sell | AB9: VWAP >> B/S | AC9: BB B/S | AD9: Final signal
E10: =TEXT(MID(F10,12,8),"hh:mm") ->  | O10: =IF(J10=0,0,AVERAGE(J6:J10)) -> 0 | P10: =IF(H10=0,0,AVERAGE(H1:H10)) -> 0 | Q10: =IF(J10=0,0,AVERAGE(J6:J10)) -> 0 | R10: 0 | S10: 0
E11: =TEXT(MID(F11,12,8),"hh:mm") ->  | O11: =IF(J11=0,0,AVERAGE(J7:J11)) -> 0 | P11: 0 | Q11: =IF(J11=0,0,AVERAGE(J7:J11)) -> 0 | R11: 0 | S11: 0
O12: 0 | P12: 0 | Q12: 0 | R12: =IF(J12=0,0,AVERAGE(J1:J12)) -> 0 | S12: =Q12-R12 -> 0
O13: 0 | P13: =IF(J13=0,0,AVERAGE(J4:J13)) -> 0 | Q13: 0 | R13: =IF(J13=0,0,AVERAGE(J2:J13)) -> 0 | S13: 0
O14: =IF(J14=0,0,AVERAGE(J10:J14)) -> 0 | P14: =IF(J14=0,0,AVERAGE(J5:J14)) -> 0 | Q14: 0 | R14: 0 | S14: 0
O15: =IF(J15=0,0,AVERAGE(J11:J15)) -> 0 | P15: 0 | Q15: =(J15*(2/(5+1))) + (Q14*(1-(2/(5+1)))) -> 0 | R15: 0 | S15: 0
O16: 0 | P16: 0 | Q16: =(J16*(2/(5+1))) + (Q15*(1-(2/(5+1)))) -> 0 | R16: 0 | S16: 0
O17: 0 | P17: 0 | Q17: 0 | R17: 0 | S17: 0 | T17: =AVERAGE(S9:S17) -> 0 | U17: =SUMPRODUCT(($G$10:G17+$H$10:H17+$I$10:I17)/3 * $J$10:J17) / SUM($J$10:J17) ->  | V17: =P17+(2*_xlfn.STDEV.S(J10:J17)) ->  | W17: =P17-(2*_xlfn.STDEV.S(J10:J17)) ->  | X17: =H18 -> 0 | Y17: =_xlfn.FORECAST.LINEAR(D18,$J$10:$J$17,$D$10:$D$17) ->  | Z17: =IF(J17=0,"",IF(AND(S17>T17,S16<=T16),"BUY",IF(AND(S17<T17,S16>=T16),"SELL","HOLD"))) ->  | AA17: =IF(J17=0,"",IF(N17>70,"SELL",IF(N17<30,"BUY","HOLD"))) ->  | AB17: =IF(J17=0,"",IF(AND(H17>U17,H16<=U16),"BUY", IF(AND(H17<U17,H16>=U16),"SELL", "HOLD"))) ->  | AC17: =IF(J17=0,"",IF(J17<W17,"BUY",IF(J17>W17,"SELL","HOLD"))) ->  | AD17: =IF(COUNTIFS(Z17:AC17,"BUY")>1,"BUY",IF(COUNTIFS(Z17:AC17,"SELL")>1,"SELL","")) -> 
B18: Technical Indicator's | O18: 0 | P18: 0 | Q18: 0 | R18: 0 | S18: 0 | T18: =AVERAGE(S10:S18) -> 0 | U18: =SUMPRODUCT(($G$10:G18+$H$10:H18+$I$10:I18)/3 * $J$10:J18) / SUM($J$10:J18) ->  | V18: =P18+(2*_xlfn.STDEV.S(J11:J18)) ->  | W18: =P18-(2*_xlfn.STDEV.S(J11:J18)) ->  | X18: =H19 -> 0 | Y18: =_xlfn.FORECAST.LINEAR(D19,$J$10:J19, _xlfn.SEQUENCE( COUNT($J$10:J19),1,1,1)) ->  | Z18: =IF(J18=0,"",IF(AND(S18>T18,S17<=T17),"BUY",IF(AND(S18<T18,S17>=T17),"SELL","HOLD"))) ->  | AA18: =IF(J18=0,"",IF(N18>70,"SELL",IF(N18<30,"BUY","HOLD"))) ->  | AB18: =IF(J18=0,"",IF(AND(H18>U18,H17<=U17),"BUY", IF(AND(H18<U18,H17>=U17),"SELL", "HOLD"))) ->  | AC18: =IF(J18=0,"",IF(J18<W18,"BUY",IF(J18>W18,"SELL","HOLD"))) ->  | AD18: =IF(COUNTIFS(Z18:AC18,"BUY")>1,"BUY",IF(COUNTIFS(Z18:AC18,"SELL")>1,"SELL","")) -> 
B19: Siganls | C19: Output | O19: 0 | P19: =IF(J19=0,0,AVERAGE(J10:J19)) -> 0 | Q19: 0 | R19: 0 | S19: 0 | T19: =AVERAGE(S11:S19) -> 0 | U19: =SUMPRODUCT(($G$10:G19+$H$10:H19+$I$10:I19)/3 * $J$10:J19) / SUM($J$10:J19) ->  | X19: 0 | Y19: =_xlfn.FORECAST.LINEAR(D20,$J$10:J20, _xlfn.SEQUENCE( COUNT($J$10:J20),1,1,1)) -> 
B20: Price Action singal | C20: =LOOKUP(2,1/('Price action Analysis'!S:S<>""),'Price action Analysis'!S:S) -> Final signal | O20: 0 | P20: =IF(J20=0,0,AVERAGE(J11:J20)) -> 0 | Q20: 0 | R20: 0 | S20: 0 | T20: 0 | U20: =SUMPRODUCT(($G$10:G20+$H$10:H20+$I$10:I20)/3 * $J$10:J20) / SUM($J$10:J20) ->  | X20: 0 | Y20: =_xlfn.FORECAST.LINEAR(L21,$J$10:J21, _xlfn.SEQUENCE( COUNT($J$10:J21),1,1,1)) -> 
B21: RSI_signal | C21: =LOOKUP(2,1/(AA:AA<>""),AA:AA) -> RSI >> Buy/Sell | D21: =LOOKUP(2,1/(N:N<>""),N:N) -> RSI(10) | O21: 0 | P21: 0 | Q21: 0 | R21: =IF(J21=0,0,AVERAGE(J10:J21)) -> 0 | S21: 0 | T21: 0 | U21: =SUMPRODUCT(($G$10:G21+$H$10:H21+$I$10:I21)/3 * $J$10:J21) / SUM($J$10:J21) ->  | X21: 0 | Y21: =_xlfn.FORECAST.LINEAR(D22,$J$10:J22, _xlfn.SEQUENCE( COUNT($J$10:J22),1,1,1)) -> 
B22: MACD | C22: =LOOKUP(2,1/(Z:Z<>""),Z:Z) -> MACD >>Buy/Sell | O22: 0 | P22: 0 | Q22: 0 | R22: =(J22*(2/(12+1))) + (R21*(1-(2/(12+1)))) -> 0 | S22: 0 | T22: 0 | U22: =SUMPRODUCT(($G$10:G22+$H$10:H22+$I$10:I22)/3 * $J$10:J22) / SUM($J$10:J22) ->  | X22: 0 | Y22: =_xlfn.FORECAST.LINEAR(D23,$J$10:J23, _xlfn.SEQUENCE( COUNT($J$10:J23),1,1,1)) -> 
B23: BB | C23: =LOOKUP(2,1/(AC:AC<>""),AC:AC) -> BB B/S | O23: 0 | P23: 0 | Q23: 0 | R23: =(J23*(2/(12+1))) + (R22*(1-(2/(12+1)))) -> 0 | S23: 0 | T23: 0 | U23: =SUMPRODUCT(($G$10:G23+$H$10:H23+$I$10:I23)/3 * $J$10:J23) / SUM($J$10:J23) ->  | X23: 0 | Y23: =_xlfn.FORECAST.LINEAR(D24,$J$10:J24, _xlfn.SEQUENCE( COUNT($J$10:J24),1,1,1)) -> 
O24: 0 | P24: 0 | Q24: 0 | R24: 0 | S24: 0 | T24: 0 | U24: =SUMPRODUCT(($G$10:G24+$H$10:H24+$I$10:I24)/3 * $J$10:J24) / SUM($J$10:J24) ->  | X24: 0 | Y24: =_xlfn.FORECAST.LINEAR(D25,$J$10:J25, _xlfn.SEQUENCE( COUNT($J$10:J25),1,1,1)) -> 
O25: 0 | P25: 0 | Q25: 0 | R25: 0 | S25: 0 | T25: 0 | U25: =SUMPRODUCT(($G$10:G25+$H$10:H25+$I$10:I25)/3 * $J$10:J25) / SUM($J$10:J25) ->  | X25: 0 | Y25: =_xlfn.FORECAST.LINEAR(D26,$J$10:J26, _xlfn.SEQUENCE( COUNT($J$10:J26),1,1,1)) -> 
B26: Trade_Booking | O26: 0 | P26: 0 | Q26: 0 | R26: 0 | S26: 0 | T26: 0 | U26: =SUMPRODUCT(($G$10:G26+$H$10:H26+$I$10:I26)/3 * $J$10:J26) / SUM($J$10:J26) ->  | X26: 0 | Y26: =_xlfn.FORECAST.LINEAR(D27,$J$10:J27, _xlfn.SEQUENCE( COUNT($J$10:J27),1,1,1)) -> 
B27: Price : | C27: Market | O27: 0 | P27: 0 | Q27: 0 | R27: 0 | S27: 0 | T27: 0 | U27: =SUMPRODUCT(($G$10:G27+$H$10:H27+$I$10:I27)/3 * $J$10:J27) / SUM($J$10:J27) ->  | X27: 0 | Y27: =_xlfn.FORECAST.LINEAR(D28,$J$10:J28, _xlfn.SEQUENCE( COUNT($J$10:J28),1,1,1)) -> 
B28: Quantity : | C28: 2 | O28: 0 | P28: 0 | Q28: 0 | R28: 0 | S28: 0 | T28: 0 | U28: =SUMPRODUCT(($G$10:G28+$H$10:H28+$I$10:I28)/3 * $J$10:J28) / SUM($J$10:J28) ->  | X28: 0 | Y28: =_xlfn.FORECAST.LINEAR(D29,$J$10:J29, _xlfn.SEQUENCE( COUNT($J$10:J29),1,1,1)) -> 
O29: 0 | P29: 0 | Q29: 0 | R29: 0 | S29: 0 | T29: 0 | U29: =SUMPRODUCT(($G$10:G29+$H$10:H29+$I$10:I29)/3 * $J$10:J29) / SUM($J$10:J29) ->  | X29: 0 | Y29: =_xlfn.FORECAST.LINEAR(D30,$J$10:J30, _xlfn.SEQUENCE( COUNT($J$10:J30),1,1,1)) -> 
O30: 0 | P30: 0 | Q30: 0 | R30: 0 | S30: 0 | T30: 0 | U30: =SUMPRODUCT(($G$10:G30+$H$10:H30+$I$10:I30)/3 * $J$10:J30) / SUM($J$10:J30) ->  | X30: 0 | Y30: =_xlfn.FORECAST.LINEAR(D31,$J$10:J31, _xlfn.SEQUENCE( COUNT($J$10:J31),1,1,1)) -> 
O31: 0 | P31: 0 | Q31: 0 | R31: 0 | S31: 0 | T31: 0 | U31: =SUMPRODUCT(($G$10:G31+$H$10:H31+$I$10:I31)/3 * $J$10:J31) / SUM($J$10:J31) ->  | X31: 0 | Y31: =_xlfn.FORECAST.LINEAR(D32,$J$10:J32, _xlfn.SEQUENCE( COUNT($J$10:J32),1,1,1)) -> 
O32: 0 | P32: 0 | Q32: 0 | R32: 0 | S32: 0 | T32: 0 | U32: =SUMPRODUCT(($G$10:G32+$H$10:H32+$I$10:I32)/3 * $J$10:J32) / SUM($J$10:J32) ->  | X32: 0 | Y32: =_xlfn.FORECAST.LINEAR(D33,$J$10:J33, _xlfn.SEQUENCE( COUNT($J$10:J33),1,1,1)) -> 
O33: 0 | P33: 0 | Q33: 0 | R33: 0 | S33: 0 | T33: 0 | U33: =SUMPRODUCT(($G$10:G33+$H$10:H33+$I$10:I33)/3 * $J$10:J33) / SUM($J$10:J33) ->  | X33: 0 | Y33: =_xlfn.FORECAST.LINEAR(D34,$J$10:J34, _xlfn.SEQUENCE( COUNT($J$10:J34),1,1,1)) -> 
O34: 0 | P34: 0 | Q34: 0 | R34: 0 | S34: 0 | T34: 0 | U34: =SUMPRODUCT(($G$10:G34+$H$10:H34+$I$10:I34)/3 * $J$10:J34) / SUM($J$10:J34) ->  | X34: 0 | Y34: =_xlfn.FORECAST.LINEAR(D35,$J$10:J35, _xlfn.SEQUENCE( COUNT($J$10:J35),1,1,1)) -> 
O35: 0 | P35: 0 | Q35: 0 | R35: 0 | S35: 0 | T35: 0 | U35: =SUMPRODUCT(($G$10:G35+$H$10:H35+$I$10:I35)/3 * $J$10:J35) / SUM($J$10:J35) ->  | X35: 0 | Y35: =_xlfn.FORECAST.LINEAR(D36,$J$10:J36, _xlfn.SEQUENCE( COUNT($J$10:J36),1,1,1)) -> 
O36: 0 | P36: 0 | Q36: 0 | R36: 0 | S36: 0 | T36: 0 | U36: =SUMPRODUCT(($G$10:G36+$H$10:H36+$I$10:I36)/3 * $J$10:J36) / SUM($J$10:J36) ->  | X36: 0 | Y36: =_xlfn.FORECAST.LINEAR(D37,$J$10:J37, _xlfn.SEQUENCE( COUNT($J$10:J37),1,1,1)) -> 
O37: 0 | P37: 0 | Q37: 0 | R37: 0 | S37: 0 | T37: 0 | U37: =SUMPRODUCT(($G$10:G37+$H$10:H37+$I$10:I37)/3 * $J$10:J37) / SUM($J$10:J37) ->  | X37: 0 | Y37: =_xlfn.FORECAST.LINEAR(D38,$J$10:J38, _xlfn.SEQUENCE( COUNT($J$10:J38),1,1,1)) -> 
O38: 0 | P38: 0 | Q38: 0 | R38: 0 | S38: 0 | T38: 0 | U38: =SUMPRODUCT(($G$10:G38+$H$10:H38+$I$10:I38)/3 * $J$10:J38) / SUM($J$10:J38) ->  | X38: 0 | Y38: =_xlfn.FORECAST.LINEAR(D39,$J$10:J39, _xlfn.SEQUENCE( COUNT($J$10:J39),1,1,1)) -> 
O39: 0 | P39: 0 | Q39: 0 | R39: 0 | S39: 0 | T39: 0 | U39: =SUMPRODUCT(($G$10:G39+$H$10:H39+$I$10:I39)/3 * $J$10:J39) / SUM($J$10:J39) ->  | X39: 0 | Y39: =_xlfn.FORECAST.LINEAR(D40,$J$10:J40, _xlfn.SEQUENCE( COUNT($J$10:J40),1,1,1)) -> 
O40: 0 | P40: 0 | Q40: 0 | R40: 0 | S40: 0 | T40: 0 | U40: =SUMPRODUCT(($G$10:G40+$H$10:H40+$I$10:I40)/3 * $J$10:J40) / SUM($J$10:J40) ->  | X40: 0 | Y40: =_xlfn.FORECAST.LINEAR(D41,$J$10:J41, _xlfn.SEQUENCE( COUNT($J$10:J41),1,1,1)) -> 
O41: 0 | P41: 0 | Q41: 0 | R41: 0 | S41: 0 | T41: 0 | U41: =SUMPRODUCT(($G$10:G41+$H$10:H41+$I$10:I41)/3 * $J$10:J41) / SUM($J$10:J41) ->  | X41: 0 | Y41: =_xlfn.FORECAST.LINEAR(D42,$J$10:J42, _xlfn.SEQUENCE( COUNT($J$10:J42),1,1,1)) -> 
O42: 0 | P42: 0 | Q42: 0 | R42: 0 | S42: 0 | T42: 0 | U42: =SUMPRODUCT(($G$10:G42+$H$10:H42+$I$10:I42)/3 * $J$10:J42) / SUM($J$10:J42) ->  | X42: 0 | Y42: =_xlfn.FORECAST.LINEAR(D43,$J$10:J43, _xlfn.SEQUENCE( COUNT($J$10:J43),1,1,1)) -> 
O43: 0 | P43: 0 | Q43: 0 | R43: 0 | S43: 0 | T43: 0 | U43: =SUMPRODUCT(($G$10:G43+$H$10:H43+$I$10:I43)/3 * $J$10:J43) / SUM($J$10:J43) ->  | X43: 0 | Y43: =_xlfn.FORECAST.LINEAR(D44,$J$10:J44, _xlfn.SEQUENCE( COUNT($J$10:J44),1,1,1)) -> 
O44: 0 | P44: 0 | Q44: 0 | R44: 0 | S44: 0 | T44: 0 | U44: =SUMPRODUCT(($G$10:G44+$H$10:H44+$I$10:I44)/3 * $J$10:J44) / SUM($J$10:J44) ->  | X44: 0 | Y44: =_xlfn.FORECAST.LINEAR(D45,$J$10:J45, _xlfn.SEQUENCE( COUNT($J$10:J45),1,1,1)) -> 
O45: 0 | P45: 0 | Q45: 0 | R45: 0 | S45: 0 | T45: 0 | U45: =SUMPRODUCT(($G$10:G45+$H$10:H45+$I$10:I45)/3 * $J$10:J45) / SUM($J$10:J45) ->  | X45: 0 | Y45: =_xlfn.FORECAST.LINEAR(D46,$J$10:J46, _xlfn.SEQUENCE( COUNT($J$10:J46),1,1,1)) -> 
O46: 0 | P46: 0 | Q46: 0 | R46: 0 | S46: 0 | T46: 0 | U46: =SUMPRODUCT(($G$10:G46+$H$10:H46+$I$10:I46)/3 * $J$10:J46) / SUM($J$10:J46) ->  | X46: 0 | Y46: =_xlfn.FORECAST.LINEAR(D47,$J$10:J47, _xlfn.SEQUENCE( COUNT($J$10:J47),1,1,1)) -> 
O47: 0 | P47: 0 | Q47: 0 | R47: 0 | S47: 0 | T47: 0 | U47: =SUMPRODUCT(($G$10:G47+$H$10:H47+$I$10:I47)/3 * $J$10:J47) / SUM($J$10:J47) ->  | X47: 0 | Y47: =_xlfn.FORECAST.LINEAR(D48,$J$10:J48, _xlfn.SEQUENCE( COUNT($J$10:J48),1,1,1)) -> 
O48: 0 | P48: 0 | Q48: 0 | R48: 0 | S48: 0 | T48: 0 | U48: =SUMPRODUCT(($G$10:G48+$H$10:H48+$I$10:I48)/3 * $J$10:J48) / SUM($J$10:J48) ->  | X48: 0 | Y48: =_xlfn.FORECAST.LINEAR(D49,$J$10:J49, _xlfn.SEQUENCE( COUNT($J$10:J49),1,1,1)) -> 
O49: 0 | P49: 0 | Q49: 0 | R49: 0 | S49: 0 | T49: 0 | U49: =SUMPRODUCT(($G$10:G49+$H$10:H49+$I$10:I49)/3 * $J$10:J49) / SUM($J$10:J49) ->  | X49: 0 | Y49: =_xlfn.FORECAST.LINEAR(D50,$J$10:J50, _xlfn.SEQUENCE( COUNT($J$10:J50),1,1,1)) -> 
O50: 0 | P50: 0 | Q50: 0 | R50: 0 | S50: 0 | T50: 0 | U50: =SUMPRODUCT(($G$10:G50+$H$10:H50+$I$10:I50)/3 * $J$10:J50) / SUM($J$10:J50) ->  | X50: 0 | Y50: =_xlfn.FORECAST.LINEAR(D51,$J$10:J51, _xlfn.SEQUENCE( COUNT($J$10:J51),1,1,1)) -> 
O51: 0 | P51: 0 | Q51: 0 | R51: 0 | S51: 0 | T51: 0 | U51: =SUMPRODUCT(($G$10:G51+$H$10:H51+$I$10:I51)/3 * $J$10:J51) / SUM($J$10:J51) ->  | X51: 0 | Y51: =_xlfn.FORECAST.LINEAR(D52,$J$10:J52, _xlfn.SEQUENCE( COUNT($J$10:J52),1,1,1)) ->  | AE51: =J51 -> 0
O52: 0 | P52: 0 | Q52: 0 | R52: 0 | S52: 0 | T52: 0 | U52: =SUMPRODUCT(($G$10:G52+$H$10:H52+$I$10:I52)/3 * $J$10:J52) / SUM($J$10:J52) ->  | X52: 0 | Y52: =_xlfn.FORECAST.LINEAR(D53,$J$10:J53, _xlfn.SEQUENCE( COUNT($J$10:J53),1,1,1)) -> 
O53: 0 | P53: 0 | Q53: 0 | R53: 0 | S53: 0 | T53: 0 | U53: =SUMPRODUCT(($G$10:G53+$H$10:H53+$I$10:I53)/3 * $J$10:J53) / SUM($J$10:J53) ->  | X53: 0 | Y53: =_xlfn.FORECAST.LINEAR(D54,$J$10:J54, _xlfn.SEQUENCE( COUNT($J$10:J54),1,1,1)) -> 
O54: 0 | P54: 0 | Q54: 0 | R54: 0 | S54: 0 | T54: 0 | U54: =SUMPRODUCT(($G$10:G54+$H$10:H54+$I$10:I54)/3 * $J$10:J54) / SUM($J$10:J54) ->  | X54: 0 | Y54: =_xlfn.FORECAST.LINEAR(D55,$J$10:J55, _xlfn.SEQUENCE( COUNT($J$10:J55),1,1,1)) -> 
O55: 0 | P55: 0 | Q55: 0 | R55: 0 | S55: 0 | T55: 0 | U55: =SUMPRODUCT(($G$10:G55+$H$10:H55+$I$10:I55)/3 * $J$10:J55) / SUM($J$10:J55) ->  | X55: 0 | Y55: =_xlfn.FORECAST.LINEAR(D56,$J$10:J56, _xlfn.SEQUENCE( COUNT($J$10:J56),1,1,1)) -> 
O56: 0 | P56: 0 | Q56: 0 | R56: 0 | S56: 0 | T56: 0 | U56: =SUMPRODUCT(($G$10:G56+$H$10:H56+$I$10:I56)/3 * $J$10:J56) / SUM($J$10:J56) ->  | X56: 0 | Y56: =_xlfn.FORECAST.LINEAR(D57,$J$10:J57, _xlfn.SEQUENCE( COUNT($J$10:J57),1,1,1)) -> 
O57: 0 | P57: 0 | Q57: 0 | R57: 0 | S57: 0 | T57: 0 | U57: =SUMPRODUCT(($G$10:G57+$H$10:H57+$I$10:I57)/3 * $J$10:J57) / SUM($J$10:J57) ->  | X57: 0 | Y57: =_xlfn.FORECAST.LINEAR(D58,$J$10:J58, _xlfn.SEQUENCE( COUNT($J$10:J58),1,1,1)) -> 
O58: 0 | P58: 0 | Q58: 0 | R58: 0 | S58: 0 | T58: 0 | U58: =SUMPRODUCT(($G$10:G58+$H$10:H58+$I$10:I58)/3 * $J$10:J58) / SUM($J$10:J58) ->  | X58: 0 | Y58: =_xlfn.FORECAST.LINEAR(D59,$J$10:J59, _xlfn.SEQUENCE( COUNT($J$10:J59),1,1,1)) -> 
O59: 0 | P59: 0 | Q59: 0 | R59: 0 | S59: 0 | T59: 0 | U59: =SUMPRODUCT(($G$10:G59+$H$10:H59+$I$10:I59)/3 * $J$10:J59) / SUM($J$10:J59) ->  | X59: 0 | Y59: =_xlfn.FORECAST.LINEAR(D60,$J$10:J60, _xlfn.SEQUENCE( COUNT($J$10:J60),1,1,1)) -> 
O60: 0 | P60: 0 | Q60: 0 | R60: 0 | S60: 0 | T60: 0 | U60: =SUMPRODUCT(($G$10:G60+$H$10:H60+$I$10:I60)/3 * $J$10:J60) / SUM($J$10:J60) ->  | X60: 0 | Y60: =_xlfn.FORECAST.LINEAR(D61,$J$10:J61, _xlfn.SEQUENCE( COUNT($J$10:J61),1,1,1)) -> 
O61: 0 | P61: 0 | Q61: 0 | R61: 0 | S61: 0 | T61: 0 | U61: =SUMPRODUCT(($G$10:G61+$H$10:H61+$I$10:I61)/3 * $J$10:J61) / SUM($J$10:J61) ->  | X61: 0 | Y61: =_xlfn.FORECAST.LINEAR(D62,$J$10:J62, _xlfn.SEQUENCE( COUNT($J$10:J62),1,1,1)) -> 
O62: 0 | P62: 0 | Q62: 0 | R62: 0 | S62: 0 | T62: 0 | U62: =SUMPRODUCT(($G$10:G62+$H$10:H62+$I$10:I62)/3 * $J$10:J62) / SUM($J$10:J62) ->  | X62: 0 | Y62: =_xlfn.FORECAST.LINEAR(D63,$J$10:J63, _xlfn.SEQUENCE( COUNT($J$10:J63),1,1,1)) -> 
O63: 0 | P63: 0 | Q63: 0 | R63: 0 | S63: 0 | T63: 0 | U63: =SUMPRODUCT(($G$10:G63+$H$10:H63+$I$10:I63)/3 * $J$10:J63) / SUM($J$10:J63) ->  | X63: 0 | Y63: =_xlfn.FORECAST.LINEAR(D64,$J$10:J64, _xlfn.SEQUENCE( COUNT($J$10:J64),1,1,1)) -> 
O64: 0 | P64: 0 | Q64: 0 | R64: 0 | S64: 0 | T64: 0 | U64: =SUMPRODUCT(($G$10:G64+$H$10:H64+$I$10:I64)/3 * $J$10:J64) / SUM($J$10:J64) ->  | X64: 0 | Y64: =_xlfn.FORECAST.LINEAR(D65,$J$10:J65, _xlfn.SEQUENCE( COUNT($J$10:J65),1,1,1)) -> 
O65: 0 | P65: 0 | Q65: 0 | R65: 0 | S65: 0 | T65: 0 | U65: =SUMPRODUCT(($G$10:G65+$H$10:H65+$I$10:I65)/3 * $J$10:J65) / SUM($J$10:J65) ->  | X65: 0 | Y65: =_xlfn.FORECAST.LINEAR(D66,$J$10:J66, _xlfn.SEQUENCE( COUNT($J$10:J66),1,1,1)) -> 
O66: 0 | P66: 0 | Q66: 0 | R66: 0 | S66: 0 | T66: 0 | U66: =SUMPRODUCT(($G$10:G66+$H$10:H66+$I$10:I66)/3 * $J$10:J66) / SUM($J$10:J66) ->  | X66: 0 | Y66: =_xlfn.FORECAST.LINEAR(D67,$J$10:J67, _xlfn.SEQUENCE( COUNT($J$10:J67),1,1,1)) -> 
O67: 0 | P67: 0 | Q67: 0 | R67: 0 | S67: 0 | T67: 0 | U67: =SUMPRODUCT(($G$10:G67+$H$10:H67+$I$10:I67)/3 * $J$10:J67) / SUM($J$10:J67) ->  | X67: 0 | Y67: =_xlfn.FORECAST.LINEAR(D68,$J$10:J68, _xlfn.SEQUENCE( COUNT($J$10:J68),1,1,1)) -> 
O68: 0 | P68: 0 | Q68: 0 | R68: 0 | S68: 0 | T68: 0 | U68: =SUMPRODUCT(($G$10:G68+$H$10:H68+$I$10:I68)/3 * $J$10:J68) / SUM($J$10:J68) ->  | X68: 0 | Y68: =_xlfn.FORECAST.LINEAR(D69,$J$10:J69, _xlfn.SEQUENCE( COUNT($J$10:J69),1,1,1)) -> 
O69: 0 | P69: 0 | Q69: 0 | R69: 0 | S69: 0 | T69: 0 | U69: =SUMPRODUCT(($G$10:G69+$H$10:H69+$I$10:I69)/3 * $J$10:J69) / SUM($J$10:J69) ->  | X69: 0 | Y69: =_xlfn.FORECAST.LINEAR(D70,$J$10:J70, _xlfn.SEQUENCE( COUNT($J$10:J70),1,1,1)) -> 
O70: 0 | P70: 0 | Q70: 0 | R70: 0 | S70: 0 | T70: 0 | U70: =SUMPRODUCT(($G$10:G70+$H$10:H70+$I$10:I70)/3 * $J$10:J70) / SUM($J$10:J70) ->  | X70: 0 | Y70: =_xlfn.FORECAST.LINEAR(D71,$J$10:J71, _xlfn.SEQUENCE( COUNT($J$10:J71),1,1,1)) -> 
O71: 0 | P71: 0 | Q71: 0 | R71: 0 | S71: 0 | T71: 0 | U71: =SUMPRODUCT(($G$10:G71+$H$10:H71+$I$10:I71)/3 * $J$10:J71) / SUM($J$10:J71) ->  | X71: 0 | Y71: =_xlfn.FORECAST.LINEAR(D72,$J$10:J72, _xlfn.SEQUENCE( COUNT($J$10:J72),1,1,1)) -> 
O72: 0 | P72: 0 | Q72: 0 | R72: 0 | S72: 0 | T72: 0 | U72: =SUMPRODUCT(($G$10:G72+$H$10:H72+$I$10:I72)/3 * $J$10:J72) / SUM($J$10:J72) ->  | X72: 0 | Y72: =_xlfn.FORECAST.LINEAR(D73,$J$10:J73, _xlfn.SEQUENCE( COUNT($J$10:J73),1,1,1)) -> 
O73: 0 | P73: 0 | Q73: 0 | R73: 0 | S73: 0 | T73: 0 | U73: =SUMPRODUCT(($G$10:G73+$H$10:H73+$I$10:I73)/3 * $J$10:J73) / SUM($J$10:J73) ->  | X73: 0 | Y73: =_xlfn.FORECAST.LINEAR(D74,$J$10:J74, _xlfn.SEQUENCE( COUNT($J$10:J74),1,1,1)) -> 
O74: 0 | P74: 0 | Q74: 0 | R74: 0 | S74: 0 | T74: 0 | U74: =SUMPRODUCT(($G$10:G74+$H$10:H74+$I$10:I74)/3 * $J$10:J74) / SUM($J$10:J74) ->  | X74: 0 | Y74: =_xlfn.FORECAST.LINEAR(D75,$J$10:J75, _xlfn.SEQUENCE( COUNT($J$10:J75),1,1,1)) -> 
E75: =TEXT(MID(F75,12,8),"hh:mm") ->  | O75: 0 | P75: 0 | Q75: 0 | R75: 0 | S75: =Q75-R75 -> 0 | T75: 0 | U75: =SUMPRODUCT(($G$10:G75+$H$10:H75+$I$10:I75)/3 * $J$10:J75) / SUM($J$10:J75) ->  | X75: 0 | Y75: =_xlfn.FORECAST.LINEAR(D76,$J$10:J76, _xlfn.SEQUENCE( COUNT($J$10:J76),1,1,1)) -> 
O76: 0 | P76: 0 | Q76: 0 | R76: 0 | S76: 0 | T76: 0 | U76: =SUMPRODUCT(($G$10:G76+$H$10:H76+$I$10:I76)/3 * $J$10:J76) / SUM($J$10:J76) ->  | X76: 0 | Y76: =_xlfn.FORECAST.LINEAR(D77,$J$10:J77, _xlfn.SEQUENCE( COUNT($J$10:J77),1,1,1)) -> 
O77: 0 | P77: 0 | Q77: 0 | R77: 0 | S77: 0 | T77: 0 | U77: =SUMPRODUCT(($G$10:G77+$H$10:H77+$I$10:I77)/3 * $J$10:J77) / SUM($J$10:J77) ->  | X77: 0 | Y77: =_xlfn.FORECAST.LINEAR(D78,$J$10:J78, _xlfn.SEQUENCE( COUNT($J$10:J78),1,1,1)) -> 
O78: 0 | P78: 0 | Q78: 0 | R78: 0 | S78: 0 | T78: 0 | U78: =SUMPRODUCT(($G$10:G78+$H$10:H78+$I$10:I78)/3 * $J$10:J78) / SUM($J$10:J78) ->  | X78: 0 | Y78: =_xlfn.FORECAST.LINEAR(D79,$J$10:J79, _xlfn.SEQUENCE( COUNT($J$10:J79),1,1,1)) -> 
O79: =IF(J79=0,0,AVERAGE(J75:J79)) -> 0 | P79: 0 | Q79: 0 | R79: 0 | S79: 0 | T79: 0 | U79: =SUMPRODUCT(($G$10:G79+$H$10:H79+$I$10:I79)/3 * $J$10:J79) / SUM($J$10:J79) ->  | X79: 0 | Y79: =_xlfn.FORECAST.LINEAR(D80,$J$10:J80, _xlfn.SEQUENCE( COUNT($J$10:J80),1,1,1)) -> 
O80: 0 | P80: 0 | Q80: =(J80*(2/(5+1))) + (Q79*(1-(2/(5+1)))) -> 0 | R80: 0 | S80: 0 | T80: 0 | U80: =SUMPRODUCT(($G$10:G80+$H$10:H80+$I$10:I80)/3 * $J$10:J80) / SUM($J$10:J80) ->  | X80: 0 | Y80: =_xlfn.FORECAST.LINEAR(D81,$J$10:J81, _xlfn.SEQUENCE( COUNT($J$10:J81),1,1,1)) -> 
O81: 0 | P81: 0 | Q81: 0 | R81: 0 | S81: 0 | T81: 0 | U81: =SUMPRODUCT(($G$10:G81+$H$10:H81+$I$10:I81)/3 * $J$10:J81) / SUM($J$10:J81) ->  | X81: 0 | Y81: =_xlfn.FORECAST.LINEAR(D82,$J$10:J82, _xlfn.SEQUENCE( COUNT($J$10:J82),1,1,1)) -> 
O82: 0 | P82: 0 | Q82: 0 | R82: 0 | S82: 0 | T82: 0 | U82: =SUMPRODUCT(($G$10:G82+$H$10:H82+$I$10:I82)/3 * $J$10:J82) / SUM($J$10:J82) ->  | V82: =P82+(2*_xlfn.STDEV.S(J75:J82)) ->  | W82: =P82-(2*_xlfn.STDEV.S(J75:J82)) ->  | X82: =H83 -> 0 | Y82: =_xlfn.FORECAST.LINEAR(D83,$J$10:J83, _xlfn.SEQUENCE( COUNT($J$10:J83),1,1,1)) ->  | Z82: =IF(J82=0,"",IF(AND(S82>T82,S81<=T81),"BUY",IF(AND(S82<T82,S81>=T81),"SELL","HOLD"))) ->  | AA82: =IF(J82=0,"",IF(N82>70,"SELL",IF(N82<30,"BUY","HOLD"))) ->  | AB82: =IF(J82=0,"",IF(AND(H82>U82,H81<=U81),"BUY", IF(AND(H82<U82,H81>=U81),"SELL", "HOLD"))) ->  | AC82: =IF(J82=0,"",IF(J82<W82,"BUY",IF(J82>W82,"SELL","HOLD"))) ->  | AD82: =IF(COUNTIFS(Z82:AC82,"BUY")>1,"BUY",IF(COUNTIFS(Z82:AC82,"SELL")>1,"SELL","")) -> 
O83: 0 | P83: 0 | Q83: 0 | R83: 0 | S83: 0 | T83: =AVERAGE(S75:S83) -> 0 | U83: =SUMPRODUCT(($G$10:G83+$H$10:H83+$I$10:I83)/3 * $J$10:J83) / SUM($J$10:J83) ->  | X83: 0 | Y83: =_xlfn.FORECAST.LINEAR(5,$J$10:J84, _xlfn.SEQUENCE( COUNT($J$10:J84),1,1,1)) -> 
B84: x | C84: x | O84: 0 | P84: =IF(J84=0,0,AVERAGE(J75:J84)) -> 0 | Q84: 0 | R84: 0 | S84: 0 | T84: 0 | U84: =SUMPRODUCT(($G$10:G84+$H$10:H84+$I$10:I84)/3 * $J$10:J84) / SUM($J$10:J84) ->  | X84: 0 | Y84: =_xlfn.FORECAST.LINEAR(D85,$J$10:J85, _xlfn.SEQUENCE( COUNT($J$10:J85),1,1,1)) -> 

Sheet Dashboard
AD6: ="RSI Indicator : " &Sheet1!$C$21 & " " &ROUND(Sheet1!D21,0) -> 
AD9: ="Price Acrion Indicator : " &Sheet1!$C$20 -> Price Acrion Indicator : Final signal
AD14: ="MACD Indicator : " &Sheet1!$C$22 -> MACD Indicator : MACD >>Buy/Sell
AD17: ="BB Indicator : " &Sheet1!$C$23 -> BB Indicator : BB B/S

Sheet Price action Analysis
F5: =Sheet1!F9:K200 -> Date | G5: Open | H5: High | I5: Low | J5: Close | K5: Volume | M5: Detects range breakouts | N5: Support / Resistance Detection | O5: Long wicks = rejection | P5: Reversal up | Q5: Reversal down | R5: simple trend classification | S5: Final signal
F6: 0 | G6: 0 | H6: 0 | I6: 0 | J6: 0 | K6: 0 | N6: =IF(AND(ABS(J12-MIN(I2:I11))<0.2),"SUPPORT HIT",IF(ABS(J12-MAX(H2:H11))<0.2,"RESISTANCE HIT","")) -> SUPPORT HIT | U6: =LOOKUP(2,1/(Z:Z<>""),Z:Z) -> 5 | Z6: 1
F7: 0 | G7: 0 | H7: 0 | I7: 0 | J7: 0 | K7: 0 | N7: =IF(AND(ABS(J13-MIN(I3:I12))<0.2),"SUPPORT HIT",IF(ABS(J13-MAX(H3:H12))<0.2,"RESISTANCE HIT","")) -> SUPPORT HIT | Z7: 2
F8: 0 | G8: 0 | H8: 0 | I8: 0 | J8: 0 | K8: 0 | N8: SUPPORT HIT | Z8: 3
F9: 0 | G9: 0 | H9: 0 | I9: 0 | J9: 0 | K9: 0 | N9: SUPPORT HIT | Z9: 4
F10: 0 | G10: 0 | H10: 0 | I10: 0 | J10: 0 | K10: 0 | N10: SUPPORT HIT | Z10: 2
F11: 0 | G11: 0 | H11: 0 | I11: 0 | J11: 0 | K11: 0 | N11: SUPPORT HIT | Z11: 5
F12: 0 | G12: 0 | H12: 0 | I12: 0 | J12: 0 | K12: 0 | M12: =IF(J12=0,"",IF(H12>MAX(H2:H11),"BREAKOUT UP",IF(I12<MIN(I2:I11),"BREAKOUT DOWN","NONE"))) ->  | N12: =IF(J12=0,"",IF(AND(ABS(J12-MIN(I3:I12))<0.2),"SUPPORT HIT",IF(ABS(J12-MAX(H3:H12))<0.2,"RESISTANCE HIT",""))) ->  | O12: =IF(J12=0,"",IF((H12-J12)>2*(J12-I12),"BEARISH PINBAR",IF((J12-I12)>2*(H12-J12),"BULLISH PINBAR",""))) ->  | P12: =IF(AND(J11<I11, J12>H11),"BULLISH ENGULFING","") ->  | Q12: =IF(AND(J11>H11, J12<I11),"BEARISH ENGULFING","") ->  | R12: =IF(J12=0,"",IF(AND(H12>H11,I12>I11),"UP",IF(AND(H12<H11,I12<I11),"DOWN","SIDE"))) ->  | S12: =IF(J12=0,"",IF(AND(R12="UP",M12="BREAKOUT UP"),"BUY", IF(AND(R12="DOWN",M12="BREAKOUT DOWN"),"SELL","HOLD"))) -> 
F13: 0 | G13: 0 | H13: 0 | I13: 0 | J13: 0 | K13: 0 | M13: =IF(J13=0,"",IF(H13>MAX(H3:H12),"BREAKOUT UP",IF(I13<MIN(I3:I12),"BREAKOUT DOWN","NONE"))) ->  | N13: =IF(J13=0,"",IF(AND(ABS(J13-MIN(I4:I13))<0.2),"SUPPORT HIT",IF(ABS(J13-MAX(H4:H13))<0.2,"RESISTANCE HIT",""))) ->  | O13: =IF(J13=0,"",IF((H13-J13)>2*(J13-I13),"BEARISH PINBAR",IF((J13-I13)>2*(H13-J13),"BULLISH PINBAR",""))) ->  | P13: =IF(AND(J12<I12, J13>H12),"BULLISH ENGULFING","") ->  | Q13: =IF(AND(J12>H12, J13<I12),"BEARISH ENGULFING","") ->  | R13: =IF(J13=0,"",IF(AND(H13>H12,I13>I12),"UP",IF(AND(H13<H12,I13<I12),"DOWN","SIDE"))) ->  | S13: =IF(J13=0,"",IF(AND(R13="UP",M13="BREAKOUT UP"),"BUY", IF(AND(R13="DOWN",M13="BREAKOUT DOWN"),"SELL","HOLD"))) -> 
F14: 0 | G14: 0 | H14: 0 | I14: 0 | J14: 0 | K14: 0
F15: 0 | G15: 0 | H15: 0 | I15: 0 | J15: 0 | K15: 0
F16: 0 | G16: 0 | H16: 0 | I16: 0 | J16: 0 | K16: 0
F17: 0 | G17: 0 | H17: 0 | I17: 0 | J17: 0 | K17: 0
F18: 0 | G18: 0 | H18: 0 | I18: 0 | J18: 0 | K18: 0
F19: 0 | G19: 0 | H19: 0 | I19: 0 | J19: 0 | K19: 0
F20: 0 | G20: 0 | H20: 0 | I20: 0 | J20: 0 | K20: 0
F21: 0 | G21: 0 | H21: 0 | I21: 0 | J21: 0 | K21: 0 | R21: =IF(J21=0,"",IF(AND(H21>H20,I21>I20),"UP",IF(AND(H21<H20,I21<I20),"DOWN","SIDE"))) -> 
F22: 0 | G22: 0 | H22: 0 | I22: 0 | J22: 0 | K22: 0
F23: 0 | G23: 0 | H23: 0 | I23: 0 | J23: 0 | K23: 0
F24: 0 | G24: 0 | H24: 0 | I24: 0 | J24: 0 | K24: 0
F25: 0 | G25: 0 | H25: 0 | I25: 0 | J25: 0 | K25: 0
F26: 0 | G26: 0 | H26: 0 | I26: 0 | J26: 0 | K26: 0
F27: 0 | G27: 0 | H27: 0 | I27: 0 | J27: 0 | K27: 0
F28: 0 | G28: 0 | H28: 0 | I28: 0 | J28: 0 | K28: 0
F29: 0 | G29: 0 | H29: 0 | I29: 0 | J29: 0 | K29: 0
F30: 0 | G30: 0 | H30: 0 | I30: 0 | J30: 0 | K30: 0
F31: 0 | G31: 0 | H31: 0 | I31: 0 | J31: 0 | K31: 0
F32: 0 | G32: 0 | H32: 0 | I32: 0 | J32: 0 | K32: 0
F33: 0 | G33: 0 | H33: 0 | I33: 0 | J33: 0 | K33: 0
F34: 0 | G34: 0 | H34: 0 | I34: 0 | J34: 0 | K34: 0
F35: 0 | G35: 0 | H35: 0 | I35: 0 | J35: 0 | K35: 0
F36: 0 | G36: 0 | H36: 0 | I36: 0 | J36: 0 | K36: 0
F37: 0 | G37: 0 | H37: 0 | I37: 0 | J37: 0 | K37: 0
F38: 0 | G38: 0 | H38: 0 | I38: 0 | J38: 0 | K38: 0
F39: 0 | G39: 0 | H39: 0 | I39: 0 | J39: 0 | K39: 0
F40: 0 | G40: 0 | H40: 0 | I40: 0 | J40: 0 | K40: 0
F41: 0 | G41: 0 | H41: 0 | I41: 0 | J41: 0 | K41: 0
F42: 0 | G42: 0 | H42: 0 | I42: 0 | J42: 0 | K42: 0
F43: 0 | G43: 0 | H43: 0 | I43: 0 | J43: 0 | K43: 0
F44: 0 | G44: 0 | H44: 0 | I44: 0 | J44: 0 | K44: 0
F45: 0 | G45: 0 | H45: 0 | I45: 0 | J45: 0 | K45: 0
F46: 0 | G46: 0 | H46: 0 | I46: 0 | J46: 0 | K46: 0
F47: 0 | G47: 0 | H47: 0 | I47: 0 | J47: 0 | K47: 0
F48: 0 | G48: 0 | H48: 0 | I48: 0 | J48: 0 | K48: 0
F49: 0 | G49: 0 | H49: 0 | I49: 0 | J49: 0 | K49: 0
F50: 0 | G50: 0 | H50: 0 | I50: 0 | J50: 0 | K50: 0
F51: 0 | G51: 0 | H51: 0 | I51: 0 | J51: 0 | K51: 0
F52: 0 | G52: 0 | H52: 0 | I52: 0 | J52: 0 | K52: 0
F53: 0 | G53: 0 | H53: 0 | I53: 0 | J53: 0 | K53: 0
F54: 0 | G54: 0 | H54: 0 | I54: 0 | J54: 0 | K54: 0
F55: 0 | G55: 0 | H55: 0 | I55: 0 | J55: 0 | K55: 0
F56: 0 | G56: 0 | H56: 0 | I56: 0 | J56: 0 | K56: 0
F57: 0 | G57: 0 | H57: 0 | I57: 0 | J57: 0 | K57: 0
F58: 0 | G58: 0 | H58: 0 | I58: 0 | J58: 0 | K58: 0
F59: 0 | G59: 0 | H59: 0 | I59: 0 | J59: 0 | K59: 0
F60: 0 | G60: 0 | H60: 0 | I60: 0 | J60: 0 | K60: 0
F61: 0 | G61: 0 | H61: 0 | I61: 0 | J61: 0 | K61: 0
F62: 0 | G62: 0 | H62: 0 | I62: 0 | J62: 0 | K62: 0
F63: 0 | G63: 0 | H63: 0 | I63: 0 | J63: 0 | K63: 0
F64: 0 | G64: 0 | H64: 0 | I64: 0 | J64: 0 | K64: 0
F65: 0 | G65: 0 | H65: 0 | I65: 0 | J65: 0 | K65: 0 | N65: =IF(J65=0,"",IF(AND(ABS(J65-MIN(I56:I65))<0.2),"SUPPORT HIT",IF(ABS(J65-MAX(H56:H65))<0.2,"RESISTANCE HIT",""))) -> 
F66: 0 | G66: 0 | H66: 0 | I66: 0 | J66: 0 | K66: 0
F67: 0 | G67: 0 | H67: 0 | I67: 0 | J67: 0 | K67: 0
F68: 0 | G68: 0 | H68: 0 | I68: 0 | J68: 0 | K68: 0
F69: 0 | G69: 0 | H69: 0 | I69: 0 | J69: 0 | K69: 0
F70: 0 | G70: 0 | H70: 0 | I70: 0 | J70: 0 | K70: 0
F71: 0 | G71: 0 | H71: 0 | I71: 0 | J71: 0 | K71: 0
F72: 0 | G72: 0 | H72: 0 | I72: 0 | J72: 0 | K72: 0
F73: 0 | G73: 0 | H73: 0 | I73: 0 | J73: 0 | K73: 0
F74: 0 | G74: 0 | H74: 0 | I74: 0 | J74: 0 | K74: 0
F75: 0 | G75: 0 | H75: 0 | I75: 0 | J75: 0 | K75: 0
F76: 0 | G76: 0 | H76: 0 | I76: 0 | J76: 0 | K76: 0
F77: 0 | G77: 0 | H77: 0 | I77: 0 | J77: 0 | K77: 0 | M77: =IF(J77=0,"",IF(H77>MAX(H67:H76),"BREAKOUT UP",IF(I77<MIN(I67:I76),"BREAKOUT DOWN","NONE"))) ->  | N77: =IF(J77=0,"",IF(AND(ABS(J77-MIN(I68:I77))<0.2),"SUPPORT HIT",IF(ABS(J77-MAX(H68:H77))<0.2,"RESISTANCE HIT",""))) ->  | O77: =IF(J77=0,"",IF((H77-J77)>2*(J77-I77),"BEARISH PINBAR",IF((J77-I77)>2*(H77-J77),"BULLISH PINBAR",""))) ->  | P77: =IF(AND(J76<I76, J77>H76),"BULLISH ENGULFING","") ->  | Q77: =IF(AND(J76>H76, J77<I76),"BEARISH ENGULFING","") ->  | R77: =IF(J77=0,"",IF(AND(H77>H76,I77>I76),"UP",IF(AND(H77<H76,I77<I76),"DOWN","SIDE"))) ->  | S77: =IF(J77=0,"",IF(AND(R77="UP",M77="BREAKOUT UP"),"BUY", IF(AND(R77="DOWN",M77="BREAKOUT DOWN"),"SELL","HOLD"))) -> 
F78: 0 | G78: 0 | H78: 0 | I78: 0 | J78: 0 | K78: 0
F79: 0 | G79: 0 | H79: 0 | I79: 0 | J79: 0 | K79: 0
F80: 0 | G80: 0 | H80: 0 | I80: 0 | J80: 0 | K80: 0
F81: 0 | G81: 0 | H81: 0 | I81: 0 | J81: 0 | K81: 0
F82: 0 | G82: 0 | H82: 0 | I82: 0 | J82: 0 | K82: 0
F83: 0 | G83: 0 | H83: 0 | I83: 0 | J83: 0 | K83: 0
F84: 0 | G84: 0 | H84: 0 | I84: 0 | J84: 0 | K84: 0
F85: 0 | G85: 0 | H85: 0 | I85: 0 | J85: 0 | K85: 0
F86: 0 | G86: 0 | H86: 0 | I86: 0 | J86: 0 | K86: 0
F87: 0 | G87: 0 | H87: 0 | I87: 0 | J87: 0 | K87: 0
F88: 0 | G88: 0 | H88: 0 | I88: 0 | J88: 0 | K88: 0
F89: 0 | G89: 0 | H89: 0 | I89: 0 | J89: 0 | K89: 0
F90: 0 | G90: 0 | H90: 0 | I90: 0 | J90: 0 | K90: 0
F91: 0 | G91: 0 | H91: 0 | I91: 0 | J91: 0 | K91: 0
F92: 0 | G92: 0 | H92: 0 | I92: 0 | J92: 0 | K92: 0
F93: 0 | G93: 0 | H93: 0 | I93: 0 | J93: 0 | K93: 0
F94: 0 | G94: 0 | H94: 0 | I94: 0 | J94: 0 | K94: 0
F95: 0 | G95: 0 | H95: 0 | I95: 0 | J95: 0 | K95: 0
F96: 0 | G96: 0 | H96: 0 | I96: 0 | J96: 0 | K96: 0
F97: 0 | G97: 0 | H97: 0 | I97: 0 | J97: 0 | K97: 0
F98: 0 | G98: 0 | H98: 0 | I98: 0 | J98: 0 | K98: 0
F99: 0 | G99: 0 | H99: 0 | I99: 0 | J99: 0 | K99: 0
F100: 0 | G100: 0 | H100: 0 | I100: 0 | J100: 0 | K100: 0
F101: 0 | G101: 0 | H101: 0 | I101: 0 | J101: 0 | K101: 0
F102: 0 | G102: 0 | H102: 0 | I102: 0 | J102: 0 | K102: 0
F103: 0 | G103: 0 | H103: 0 | I103: 0 | J103: 0 | K103: 0
F104: 0 | G104: 0 | H104: 0 | I104: 0 | J104: 0 | K104: 0
F105: 0 | G105: 0 | H105: 0 | I105: 0 | J105: 0 | K105: 0
F106: 0 | G106: 0 | H106: 0 | I106: 0 | J106: 0 | K106: 0
F107: 0 | G107: 0 | H107: 0 | I107: 0 | J107: 0 | K107: 0
F108: 0 | G108: 0 | H108: 0 | I108: 0 | J108: 0 | K108: 0
F109: 0 | G109: 0 | H109: 0 | I109: 0 | J109: 0 | K109: 0
F110: 0 | G110: 0 | H110: 0 | I110: 0 | J110: 0 | K110: 0
F111: 0 | G111: 0 | H111: 0 | I111: 0 | J111: 0 | K111: 0
F112: 0 | G112: 0 | H112: 0 | I112: 0 | J112: 0 | K112: 0
F113: 0 | G113: 0 | H113: 0 | I113: 0 | J113: 0 | K113: 0
F114: 0 | G114: 0 | H114: 0 | I114: 0 | J114: 0 | K114: 0
F115: 0 | G115: 0 | H115: 0 | I115: 0 | J115: 0 | K115: 0
F116: 0 | G116: 0 | H116: 0 | I116: 0 | J116: 0 | K116: 0
F117: 0 | G117: 0 | H117: 0 | I117: 0 | J117: 0 | K117: 0
F118: 0 | G118: 0 | H118: 0 | I118: 0 | J118: 0 | K118: 0
F119: 0 | G119: 0 | H119: 0 | I119: 0 | J119: 0 | K119: 0
F120: 0 | G120: 0 | H120: 0 | I120: 0 | J120: 0 | K120: 0
F121: 0 | G121: 0 | H121: 0 | I121: 0 | J121: 0 | K121: 0
F122: 0 | G122: 0 | H122: 0 | I122: 0 | J122: 0 | K122: 0
F123: 0 | G123: 0 | H123: 0 | I123: 0 | J123: 0 | K123: 0
F124: 0 | G124: 0 | H124: 0 | I124: 0 | J124: 0 | K124: 0
F125: 0 | G125: 0 | H125: 0 | I125: 0 | J125: 0 | K125: 0
F126: 0 | G126: 0 | H126: 0 | I126: 0 | J126: 0 | K126: 0
F127: 0 | G127: 0 | H127: 0 | I127: 0 | J127: 0 | K127: 0
F128: 0 | G128: 0 | H128: 0 | I128: 0 | J128: 0 | K128: 0
F129: 0 | G129: 0 | H129: 0 | I129: 0 | J129: 0 | K129: 0
F130: 0 | G130: 0 | H130: 0 | I130: 0 | J130: 0 | K130: 0
F131: 0 | G131: 0 | H131: 0 | I131: 0 | J131: 0 | K131: 0
F132: 0 | G132: 0 | H132: 0 | I132: 0 | J132: 0 | K132: 0
F133: 0 | G133: 0 | H133: 0 | I133: 0 | J133: 0 | K133: 0
F134: 0 | G134: 0 | H134: 0 | I134: 0 | J134: 0 | K134: 0
F135: 0 | G135: 0 | H135: 0 | I135: 0 | J135: 0 | K135: 0
F136: 0 | G136: 0 | H136: 0 | I136: 0 | J136: 0 | K136: 0
F137: 0 | G137: 0 | H137: 0 | I137: 0 | J137: 0 | K137: 0
F138: 0 | G138: 0 | H138: 0 | I138: 0 | J138: 0 | K138: 0
F139: 0 | G139: 0 | H139: 0 | I139: 0 | J139: 0 | K139: 0
F140: 0 | G140: 0 | H140: 0 | I140: 0 | J140: 0 | K140: 0
F141: 0 | G141: 0 | H141: 0 | I141: 0 | J141: 0 | K141: 0
F142: 0 | G142: 0 | H142: 0 | I142: 0 | J142: 0 | K142: 0
F143: 0 | G143: 0 | H143: 0 | I143: 0 | J143: 0 | K143: 0
F144: 0 | G144: 0 | H144: 0 | I144: 0 | J144: 0 | K144: 0
F145: 0 | G145: 0 | H145: 0 | I145: 0 | J145: 0 | K145: 0
F146: 0 | G146: 0 | H146: 0 | I146: 0 | J146: 0 | K146: 0
F147: 0 | G147: 0 | H147: 0 | I147: 0 | J147: 0 | K147: 0
F148: 0 | G148: 0 | H148: 0 | I148: 0 | J148: 0 | K148: 0
F149: 0 | G149: 0 | H149: 0 | I149: 0 | J149: 0 | K149: 0
F150: 0 | G150: 0 | H150: 0 | I150: 0 | J150: 0 | K150: 0
F151: 0 | G151: 0 | H151: 0 | I151: 0 | J151: 0 | K151: 0
F152: 0 | G152: 0 | H152: 0 | I152: 0 | J152: 0 | K152: 0
F153: 0 | G153: 0 | H153: 0 | I153: 0 | J153: 0 | K153: 0
F154: 0 | G154: 0 | H154: 0 | I154: 0 | J154: 0 | K154: 0
F155: 0 | G155: 0 | H155: 0 | I155: 0 | J155: 0 | K155: 0
F156: 0 | G156: 0 | H156: 0 | I156: 0 | J156: 0 | K156: 0
F157: 0 | G157: 0 | H157: 0 | I157: 0 | J157: 0 | K157: 0
F158: 0 | G158: 0 | H158: 0 | I158: 0 | J158: 0 | K158: 0
F159: 0 | G159: 0 | H159: 0 | I159: 0 | J159: 0 | K159: 0
F160: 0 | G160: 0 | H160: 0 | I160: 0 | J160: 0 | K160: 0
F161: 0 | G161: 0 | H161: 0 | I161: 0 | J161: 0 | K161: 0
F162: 0 | G162: 0 | H162: 0 | I162: 0 | J162: 0 | K162: 0
F163: 0 | G163: 0 | H163: 0 | I163: 0 | J163: 0 | K163: 0
F164: 0 | G164: 0 | H164: 0 | I164: 0 | J164: 0 | K164: 0
F165: 0 | G165: 0 | H165: 0 | I165: 0 | J165: 0 | K165: 0
F166: 0 | G166: 0 | H166: 0 | I166: 0 | J166: 0 | K166: 0
F167: 0 | G167: 0 | H167: 0 | I167: 0 | J167: 0 | K167: 0
F168: 0 | G168: 0 | H168: 0 | I168: 0 | J168: 0 | K168: 0
F169: 0 | G169: 0 | H169: 0 | I169: 0 | J169: 0 | K169: 0
F170: 0 | G170: 0 | H170: 0 | I170: 0 | J170: 0 | K170: 0
F171: 0 | G171: 0 | H171: 0 | I171: 0 | J171: 0 | K171: 0
F172: 0 | G172: 0 | H172: 0 | I172: 0 | J172: 0 | K172: 0
F173: 0 | G173: 0 | H173: 0 | I173: 0 | J173: 0 | K173: 0
F174: 0 | G174: 0 | H174: 0 | I174: 0 | J174: 0 | K174: 0
F175: 0 | G175: 0 | H175: 0 | I175: 0 | J175: 0 | K175: 0
F176: 0 | G176: 0 | H176: 0 | I176: 0 | J176: 0 | K176: 0
F177: 0 | G177: 0 | H177: 0 | I177: 0 | J177: 0 | K177: 0
F178: 0 | G178: 0 | H178: 0 | I178: 0 | J178: 0 | K178: 0
F179: 0 | G179: 0 | H179: 0 | I179: 0 | J179: 0 | K179: 0
F180: 0 | G180: 0 | H180: 0 | I180: 0 | J180: 0 | K180: 0
F181: 0 | G181: 0 | H181: 0 | I181: 0 | J181: 0 | K181: 0
F182: 0 | G182: 0 | H182: 0 | I182: 0 | J182: 0 | K182: 0
F183: 0 | G183: 0 | H183: 0 | I183: 0 | J183: 0 | K183: 0
F184: 0 | G184: 0 | H184: 0 | I184: 0 | J184: 0 | K184: 0
F185: 0 | G185: 0 | H185: 0 | I185: 0 | J185: 0 | K185: 0
F186: 0 | G186: 0 | H186: 0 | I186: 0 | J186: 0 | K186: 0
F187: 0 | G187: 0 | H187: 0 | I187: 0 | J187: 0 | K187: 0
F188: 0 | G188: 0 | H188: 0 | I188: 0 | J188: 0 | K188: 0
F189: 0 | G189: 0 | H189: 0 | I189: 0 | J189: 0 | K189: 0
F190: 0 | G190: 0 | H190: 0 | I190: 0 | J190: 0 | K190: 0
F191: 0 | G191: 0 | H191: 0 | I191: 0 | J191: 0 | K191: 0
F192: 0 | G192: 0 | H192: 0 | I192: 0 | J192: 0 | K192: 0
F193: 0 | G193: 0 | H193: 0 | I193: 0 | J193: 0 | K193: 0
F194: 0 | G194: 0 | H194: 0 | I194: 0 | J194: 0 | K194: 0
F195: 0 | G195: 0 | H195: 0 | I195: 0 | J195: 0 | K195: 0
F196: 0 | G196: 0 | H196: 0 | I196: 0 | J196: 0 | K196: 0

Sheet Long Iron Condor
AI1: Column1 | AJ1: Column2 | AL1: Initial_Margin | AM1: Final_Margin
AI2: Margin Need | AJ2: {"status":"success","data":{"initial":{"type":"","tradingsymbol":"","exchange":"","span":176342.25,"exposure":76995.07500000001,"option_premium":1938.75,"additional":0,"bo":0,"cash":0,"var":0,"pnl":{"realised":0,"unrealised":0},"leverage":0,"charges":{"transaction_tax":0,"transaction_tax_type":"","exchange_turnover_charge":0,"sebi_turnover_charge":0,"brokerage":0,"stamp_duty":0,"gst":{"igst":0,"cgst":0,"sgst":0,"total":0},"total":0},"total":255276.075},"final":{"type":"","tradingsymbol":"","exchange":"","span":7155.75,"exposure":76995.07500000001,"option_premium":-2865,"additional":0,"bo":0,"cash":0,"var":0,"pnl":{"realised":0,"unrealised":0},"leverage":0,"charges":{"transaction_tax":0,"transaction_tax_type":"","exchange_turnover_charge":0,"sebi_turnover_charge":0,"brokerage":0,"stamp_duty":0,"gst":{"igst":0,"cgst":0,"sgst":0,"total":0},"total":0},"total":81285.82500000001},"orders":[{"type":"equity","tradingsymbol":"NIFTY25N1125800CE","exchange":"NFO","span":0,"exposure":0,"option_premium":1188.75,"additional":0,"bo":0,"cash":0,"var":0,"pnl":{"realised":0,"unrealised":0},"leverage":1,"charges":{"transaction_tax":0,"transaction_tax_type":"stt","exchange_turnover_charge":0.422362875,"sebi_turnover_charge":0.00118875,"brokerage":20,"stamp_duty":0,"gst":{"igst":3.6762392925,"cgst":0,"sgst":0,"total":3.6762392925},"total":24.099790917500002},"total":1188.75},{"type":"equity","tradingsymbol":"NIFTY25N1125700CE","exchange":"NFO","span":7155.75,"exposure":38514,"option_premium":0,"additional":0,"bo":0,"cash":0,"var":0,"pnl":{"realised":0,"unrealised":0},"leverage":1,"charges":{"transaction_tax":3.225,"transaction_tax_type":"stt","exchange_turnover_charge":1.1458424999999999,"sebi_turnover_charge":0.003225,"brokerage":20,"stamp_duty":0,"gst":{"igst":3.8068321499999995,"cgst":0,"sgst":0,"total":3.8068321499999995},"total":28.18089965},"total":45669.75},{"type":"equity","tradingsymbol":"NIFTY25N1125500PE","exchange":"NFO","span":169186.5,"exposure":38481.07500000001,"option_premium":0,"additional":0,"bo":0,"cash":0,"var":0,"pnl":{"realised":0,"unrealised":0},"leverage":1,"charges":{"transaction_tax":1.57875,"transaction_tax_type":"stt","exchange_turnover_charge":0.560929875,"sebi_turnover_charge":0.0015787499999999999,"brokerage":20,"stamp_duty":0,"gst":{"igst":3.7012515524999996,"cgst":0,"sgst":0,"total":3.7012515524999996},"total":25.8425101775},"total":207667.575},{"type":"equity","tradingsymbol":"NIFTY25N1125400PE","exchange":"NFO","span":0,"exposure":0,"option_premium":750,"additional":0,"bo":0,"cash":0,"var":0,"pnl":{"realised":0,"unrealised":0},"leverage":1,"charges":{"transaction_tax":0,"transaction_tax_type":"stt","exchange_turnover_charge":0.26647499999999996,"sebi_turnover_charge":0.00075,"brokerage":20,"stamp_duty":0,"gst":{"igst":3.6481005,"cgst":0,"sgst":0,"total":3.6481005},"total":23.9153255},"total":750}],"charges":{"transaction_tax":0,"transaction_tax_type":"","exchange_turnover_charge":0,"sebi_turnover_charge":0.006742499999999999,"brokerage":80,"stamp_duty":0,"gst":{"igst":0,"cgst":0,"sgst":0,"total":0},"total":0}}} | AL2: 255276.075 | AM2: 81285.825
C5: instrument_token | D5: tradingsymbol | E5: Expiry_date | F5: Strick | G5: CE/PE | H5: Buy/Sell | I5: Qty | J5: Limit | K5: LTP | L5: Live P&L | N5: Order Status | W5: Strick | X5: Token | Y5: LTP | Z5: Volume | AA5: OI | AB5: Bid | AC5: Ask | AD5: Timestamp
C6: =_xlfn.XLOOKUP(F6&G6&E6&"NIFTY",Instruments_NFO!H:H&Instruments_NFO!K:K&Instruments_NFO!G:G&Instruments_NFO!E:E,Instruments_NFO!B:B,0) -> 10272514 | D6: =_xlfn.XLOOKUP(C6,Instruments_NFO!B:B,Instruments_NFO!D:D,0) -> NIFTY25N1125800CE | E6: 2025-11-11 | F6: 25800 | G6: CE | H6: Buy | I6: 75 | J6: 14.15 | K6: =_xlfn.XLOOKUP(C6,X:X,Y:Y,0) -> 14.15 | L6: =(K6-J6)*75 -> 0 | X6: 10269186 | Y6: 49.4 | Z6: 296231400 | AA6: 23618925 | AB6: 49.2 | AC6: 49.35 | AD6: 12:00:16
C7: =_xlfn.XLOOKUP(F7&G7&E7&"NIFTY",Instruments_NFO!H:H&Instruments_NFO!K:K&Instruments_NFO!G:G&Instruments_NFO!E:E,Instruments_NFO!B:B,0) -> 10271490 | D7: =_xlfn.XLOOKUP(C7,Instruments_NFO!B:B,Instruments_NFO!D:D,0) -> NIFTY25N1125700CE | E7: 2025-11-11 | F7: 25700 | G7: CE | H7: Sell | I7: 75 | J7: 38.55 | K7: =_xlfn.XLOOKUP(C7,X:X,Y:Y,0) -> 38.55 | L7: =(K7-J7)*-75 -> 0 | X7: 10272514 | Y7: 14.15 | Z7: 175284300 | AA7: 13377750 | AB7: 14.1 | AC7: 14.15 | AD7: 12:00:16
C8: =_xlfn.XLOOKUP(F8&G8&E8&"NIFTY",Instruments_NFO!H:H&Instruments_NFO!K:K&Instruments_NFO!G:G&Instruments_NFO!E:E,Instruments_NFO!B:B,0) -> 10269186 | D8: =_xlfn.XLOOKUP(C8,Instruments_NFO!B:B,Instruments_NFO!D:D,0) -> NIFTY25N1125600PE | E8: 2025-11-11 | F8: 25600 | G8: PE | H8: Sell | I8: 75 | J8: 49.4 | K8: =_xlfn.XLOOKUP(C8,X:X,Y:Y,0) -> 49.4 | L8: =(K8-J8)*-75 -> 0 | X8: 10264578 | Y8: 21.85 | Z8: 275656050 | AA8: 23135400 | AB8: 21.8 | AC8: 21.85 | AD8: 12:00:16
C9: =_xlfn.XLOOKUP(F9&G9&E9&"NIFTY",Instruments_NFO!H:H&Instruments_NFO!K:K&Instruments_NFO!G:G&Instruments_NFO!E:E,Instruments_NFO!B:B,0) -> 10264578 | D9: =_xlfn.XLOOKUP(C9,Instruments_NFO!B:B,Instruments_NFO!D:D,0) -> NIFTY25N1125500PE | E9: 2025-11-11 | F9: 25500 | G9: PE | H9: Buy | I9: 75 | J9: 21.85 | K9: =_xlfn.XLOOKUP(C9,X:X,Y:Y,0) -> 21.85 | L9: =(K9-J9)*75 -> 0 | X9: 10271490 | Y9: 38.55 | Z9: 269831250 | AA9: 17664900 | AB9: 38.45 | AC9: 38.55 | AD9: 12:00:16
L10: =SUM(L6:L9) -> 0
F13: Margin Need: | G13: =Table3_1[Final_Margin] -> 81285.825
G16: Points | H16: Amout | I16: %
F17: Max Profit | G17: =SUMIFS($K$6:$K$9,H6:H9,"Sell")-SUMIFS($K$6:$K$9,H6:H9,"Buy") -> 51.95 | H17: =G17*75 -> 3896.25 | I17: =H17/G13 -> 0.04793271152
F18: Max Loss | G18: =_xlfn.XLOOKUP("Buy"&"CE",$H$6:$H$9&$G$6:$G$9,F6:F9,0)-_xlfn.XLOOKUP("Sell"&"CE",$H$6:$H$9&$G$6:$G$9,F6:F9,0)-G17 -> 48.05 | H18: =G18*75 -> 3603.75 | I18: =-H18/G13 -> -0.04433429814
H19: =H17/H18 -> 1.081165453

Sheet ChatGPT
U2: GPT_API_Key : | V2: sk-proj-Q5vEAlkghOarBRkoWrRjsu3ZFDMaeg9OAR9qfJV8jzQMgHKYWi7QQi_L8560lugM19q51FfT3Blbk2fWqpPQmbYppgK7883fxzXem0K7FJsBtZFMbr_3UwpuNVw
E3: Nifty 50 : | F3: 25986.25 | G3: =ROUND(F3/1000,1)*1000 -> 26000 | U3: Output file path : | V3: C:\Users\boddu\OneDrive\Desktop\Data Analyst\Trading\Algo_Trading\Excel Macro\ChatGPT_Response.txt
U4: AI_Model : | V4: gpt-4o-mini
C5: instrument_token | D5: tradingsymbol | E5: Expiry_date | F5: Strick | G5: CE/PE | H5: LTP | I5: Volume | J5: OI | K5: bid | L5: ask
C6: =_xlfn.XLOOKUP(F6&G6&E6&"NIFTY",Instruments_NFO!H:H&Instruments_NFO!K:K&Instruments_NFO!G:G&Instruments_NFO!E:E,Instruments_NFO!B:B,0) -> 13536514 | D6: =_xlfn.XLOOKUP(C6,Instruments_NFO!B:B,Instruments_NFO!D:D,0) -> NIFTY25NOV25750CE | E6: 2025-11-25 | F6: =$G$3-250 -> 25750 | G6: CE | H6: 322.1 | I6: 3999000 | J6: 452325 | K6: 321.9 | L6: 322.65
C7: =_xlfn.XLOOKUP(F7&G7&E7&"NIFTY",Instruments_NFO!H:H&Instruments_NFO!K:K&Instruments_NFO!G:G&Instruments_NFO!E:E,Instruments_NFO!B:B,0) -> 13537538 | D7: =_xlfn.XLOOKUP(C7,Instruments_NFO!B:B,Instruments_NFO!D:D,0) -> NIFTY25NOV25800CE | E7: 2025-11-25 | F7: =$G$3-200 -> 25800 | G7: CE | H7: 284 | I7: 24658800 | J7: 2776200 | K7: 283.2 | L7: 283.75
C8: =_xlfn.XLOOKUP(F8&G8&E8&"NIFTY",Instruments_NFO!H:H&Instruments_NFO!K:K&Instruments_NFO!G:G&Instruments_NFO!E:E,Instruments_NFO!B:B,0) -> 13539586 | D8: =_xlfn.XLOOKUP(C8,Instruments_NFO!B:B,Instruments_NFO!D:D,0) -> NIFTY25NOV25850CE | E8: 2025-11-25 | F8: =$G$3-150 -> 25850 | G8: CE | H8: 247.45 | I8: 30123525 | J8: 1396875 | K8: 246.8 | L8: 247.25
C9: =_xlfn.XLOOKUP(F9&G9&E9&"NIFTY",Instruments_NFO!H:H&Instruments_NFO!K:K&Instruments_NFO!G:G&Instruments_NFO!E:E,Instruments_NFO!B:B,0) -> 13541634 | D9: =_xlfn.XLOOKUP(C9,Instruments_NFO!B:B,Instruments_NFO!D:D,0) -> NIFTY25NOV25900CE | E9: 2025-11-25 | F9: =$G$3-100 -> 25900 | G9: CE | H9: 213.5 | I9: 116670450 | J9: 6388875 | K9: 212.65 | L9: 213
C10: =_xlfn.XLOOKUP(F10&G10&E10&"NIFTY",Instruments_NFO!H:H&Instruments_NFO!K:K&Instruments_NFO!G:G&Instruments_NFO!E:E,Instruments_NFO!B:B,0) -> 13542146 | D10: =_xlfn.XLOOKUP(C10,Instruments_NFO!B:B,Instruments_NFO!D:D,0) -> NIFTY25NOV25950CE | E10: 2025-11-25 | F10: =$G$3-50 -> 25950 | G10: CE | H10: 181.1 | I10: 86963550 | J10: 4546650 | K10: 180.9 | L10: 181.2
C11: =_xlfn.XLOOKUP(F11&G11&E11&"NIFTY",Instruments_NFO!H:H&Instruments_NFO!K:K&Instruments_NFO!G:G&Instruments_NFO!E:E,Instruments_NFO!B:B,0) -> 13545218 | D11: =_xlfn.XLOOKUP(C11,Instruments_NFO!B:B,Instruments_NFO!D:D,0) -> NIFTY25NOV26000CE | E11: 2025-11-25 | F11: =$G$3-0 -> 26000 | G11: CE | H11: 152.25 | I11: 136102875 | J11: 16654125 | K11: 152.1 | L11: 152.4
C12: =_xlfn.XLOOKUP(F12&G12&E12&"NIFTY",Instruments_NFO!H:H&Instruments_NFO!K:K&Instruments_NFO!G:G&Instruments_NFO!E:E,Instruments_NFO!B:B,0) -> 13550594 | D12: =_xlfn.XLOOKUP(C12,Instruments_NFO!B:B,Instruments_NFO!D:D,0) -> NIFTY25NOV26050CE | E12: 2025-11-25 | F12: =$G$3+50 -> 26050 | G12: CE | H12: 126.6 | I12: 48382275 | J12: 3060375 | K12: 126.25 | L12: 126.5
C13: =_xlfn.XLOOKUP(F13&G13&E13&"NIFTY",Instruments_NFO!H:H&Instruments_NFO!K:K&Instruments_NFO!G:G&Instruments_NFO!E:E,Instruments_NFO!B:B,0) -> 13555714 | D13: =_xlfn.XLOOKUP(C13,Instruments_NFO!B:B,Instruments_NFO!D:D,0) -> NIFTY25NOV26100CE | E13: 2025-11-25 | F13: =$G$3+100 -> 26100 | G13: CE | H13: 103.85 | I13: 69617475 | J13: 7256550 | K13: 103.6 | L13: 103.85
C14: =_xlfn.XLOOKUP(F14&G14&E14&"NIFTY",Instruments_NFO!H:H&Instruments_NFO!K:K&Instruments_NFO!G:G&Instruments_NFO!E:E,Instruments_NFO!B:B,0) -> 13562626 | D14: =_xlfn.XLOOKUP(C14,Instruments_NFO!B:B,Instruments_NFO!D:D,0) -> NIFTY25NOV26150CE | E14: 2025-11-25 | F14: =$G$3+150 -> 26150 | G14: CE | H14: 83.85 | I14: 33401250 | J14: 2480925 | K14: 83.5 | L14: 83.65
C15: =_xlfn.XLOOKUP(F15&G15&E15&"NIFTY",Instruments_NFO!H:H&Instruments_NFO!K:K&Instruments_NFO!G:G&Instruments_NFO!E:E,Instruments_NFO!B:B,0) -> 13573890 | D15: =_xlfn.XLOOKUP(C15,Instruments_NFO!B:B,Instruments_NFO!D:D,0) -> NIFTY25NOV26200CE | E15: 2025-11-25 | F15: =$G$3+200 -> 26200 | G15: CE | H15: 66.8 | I15: 57796500 | J15: 7755225 | K15: 66.4 | L15: 66.5
C16: =_xlfn.XLOOKUP(F16&G16&E16&"NIFTY",Instruments_NFO!H:H&Instruments_NFO!K:K&Instruments_NFO!G:G&Instruments_NFO!E:E,Instruments_NFO!B:B,0) -> 13574402 | D16: =_xlfn.XLOOKUP(C16,Instruments_NFO!B:B,Instruments_NFO!D:D,0) -> NIFTY25NOV26250CE | E16: 2025-11-25 | F16: =$G$3+250 -> 26250 | G16: CE | H16: 52.05 | I16: 27589500 | J16: 1983375 | K16: 51.8 | L16: 51.95
C17: =_xlfn.XLOOKUP(F17&G17&E17&"NIFTY",Instruments_NFO!H:H&Instruments_NFO!K:K&Instruments_NFO!G:G&Instruments_NFO!E:E,Instruments_NFO!B:B,0) -> 13537282 | D17: =_xlfn.XLOOKUP(C17,Instruments_NFO!B:B,Instruments_NFO!D:D,0) -> NIFTY25NOV25750PE | E17: 2025-11-25 | F17: =F6:F16 -> 25750 | G17: PE | H17: 49.4 | I17: 30962100 | J17: 3864675 | K17: 49.25 | L17: 49.4
C18: =_xlfn.XLOOKUP(F18&G18&E18&"NIFTY",Instruments_NFO!H:H&Instruments_NFO!K:K&Instruments_NFO!G:G&Instruments_NFO!E:E,Instruments_NFO!B:B,0) -> 13539330 | D18: =_xlfn.XLOOKUP(C18,Instruments_NFO!B:B,Instruments_NFO!D:D,0) -> NIFTY25NOV25800PE | E18: 2025-11-25 | F18: 25800 | G18: PE | H18: 60.65 | I18: 78043125 | J18: 10455825 | K18: 60.55 | L18: 60.7
C19: =_xlfn.XLOOKUP(F19&G19&E19&"NIFTY",Instruments_NFO!H:H&Instruments_NFO!K:K&Instruments_NFO!G:G&Instruments_NFO!E:E,Instruments_NFO!B:B,0) -> 13541378 | D19: =_xlfn.XLOOKUP(C19,Instruments_NFO!B:B,Instruments_NFO!D:D,0) -> NIFTY25NOV25850PE | E19: 2025-11-25 | F19: 25850 | G19: PE | H19: 74 | I19: 62330475 | J19: 5678175 | K19: 73.85 | L19: 74
C20: =_xlfn.XLOOKUP(F20&G20&E20&"NIFTY",Instruments_NFO!H:H&Instruments_NFO!K:K&Instruments_NFO!G:G&Instruments_NFO!E:E,Instruments_NFO!B:B,0) -> 13541890 | D20: =_xlfn.XLOOKUP(C20,Instruments_NFO!B:B,Instruments_NFO!D:D,0) -> NIFTY25NOV25900PE | E20: 2025-11-25 | F20: 25900 | G20: PE | H20: 89.9 | I20: 143714925 | J20: 15777150 | K20: 89.8 | L20: 90
C21: =_xlfn.XLOOKUP(F21&G21&E21&"NIFTY",Instruments_NFO!H:H&Instruments_NFO!K:K&Instruments_NFO!G:G&Instruments_NFO!E:E,Instruments_NFO!B:B,0) -> 13544962 | D21: =_xlfn.XLOOKUP(C21,Instruments_NFO!B:B,Instruments_NFO!D:D,0) -> NIFTY25NOV25950PE | E21: 2025-11-25 | F21: 25950 | G21: PE | H21: 108.15 | I21: 70329450 | J21: 6566775 | K21: 108.05 | L21: 108.25
C22: =_xlfn.XLOOKUP(F22&G22&E22&"NIFTY",Instruments_NFO!H:H&Instruments_NFO!K:K&Instruments_NFO!G:G&Instruments_NFO!E:E,Instruments_NFO!B:B,0) -> 13550338 | D22: =_xlfn.XLOOKUP(C22,Instruments_NFO!B:B,Instruments_NFO!D:D,0) -> NIFTY25NOV26000PE | E22: 2025-11-25 | F22: 26000 | G22: PE | H22: 129.35 | I22: 83934000 | J22: 14027625 | K22: 129 | L22: 129.2
C23: =_xlfn.XLOOKUP(F23&G23&E23&"NIFTY",Instruments_NFO!H:H&Instruments_NFO!K:K&Instruments_NFO!G:G&Instruments_NFO!E:E,Instruments_NFO!B:B,0) -> 13555458 | D23: =_xlfn.XLOOKUP(C23,Instruments_NFO!B:B,Instruments_NFO!D:D,0) -> NIFTY25NOV26050PE | E23: 2025-11-25 | F23: 26050 | G23: PE | H23: 153.3 | I23: 12503775 | J23: 1584000 | K23: 153.1 | L23: 153.2
C24: =_xlfn.XLOOKUP(F24&G24&E24&"NIFTY",Instruments_NFO!H:H&Instruments_NFO!K:K&Instruments_NFO!G:G&Instruments_NFO!E:E,Instruments_NFO!B:B,0) -> 13562370 | D24: =_xlfn.XLOOKUP(C24,Instruments_NFO!B:B,Instruments_NFO!D:D,0) -> NIFTY25NOV26100PE | E24: 2025-11-25 | F24: 26100 | G24: PE | H24: 180.35 | I24: 13723500 | J24: 2445375 | K24: 180.25 | L24: 180.5
C25: =_xlfn.XLOOKUP(F25&G25&E25&"NIFTY",Instruments_NFO!H:H&Instruments_NFO!K:K&Instruments_NFO!G:G&Instruments_NFO!E:E,Instruments_NFO!B:B,0) -> 13568770 | D25: =_xlfn.XLOOKUP(C25,Instruments_NFO!B:B,Instruments_NFO!D:D,0) -> NIFTY25NOV26150PE | E25: 2025-11-25 | F25: 26150 | G25: PE | H25: 210.4 | I25: 2301000 | J25: 397950 | K25: 209.95 | L25: 210.4
C26: =_xlfn.XLOOKUP(F26&G26&E26&"NIFTY",Instruments_NFO!H:H&Instruments_NFO!K:K&Instruments_NFO!G:G&Instruments_NFO!E:E,Instruments_NFO!B:B,0) -> 13574146 | D26: =_xlfn.XLOOKUP(C26,Instruments_NFO!B:B,Instruments_NFO!D:D,0) -> NIFTY25NOV26200PE | E26: 2025-11-25 | F26: 26200 | G26: PE | H26: 242.9 | I26: 5334600 | J26: 1891050 | K26: 243.1 | L26: 243.6
C27: =_xlfn.XLOOKUP(F27&G27&E27&"NIFTY",Instruments_NFO!H:H&Instruments_NFO!K:K&Instruments_NFO!G:G&Instruments_NFO!E:E,Instruments_NFO!B:B,0) -> 13574658 | D27: =_xlfn.XLOOKUP(C27,Instruments_NFO!B:B,Instruments_NFO!D:D,0) -> NIFTY25NOV26250PE | E27: 2025-11-25 | F27: 26250 | G27: PE | H27: 277.7 | I27: 669525 | J27: 148575 | K27: 278.2 | L27: 278.75

Sheet Buy | Sell Order details
D3: order_timestamp | E3: Order ID | F3: Trading Symbol | G3: Transaction | H3: Status | I3: Quantity | J3: Price | K3: average_price
D4: 2025-11-03T14:28:18 | E4: 251103101272325 | F4: TATASTEEL | G4: BUY | H4: COMPLETE | I4: 1 | J4: 0 | K4: 183.24
D5: 2025-11-03T14:30:41 | E5: 251103101279508 | F5: TATASTEEL | G5: SELL | H5: COMPLETE | I5: 1 | J5: 0 | K5: 183.21

Sheet Instruments_Equity
B1: instrument_token | C1: exchange_token | D1: tradingsymbol | E1: name | F1: last_price | G1: expiry | H1: strike | I1: tick_size | J1: lot_size | K1: instrument_type | L1: segment | M1: exchange | O1: =_xlfn._xlws.SORT(_xlfn._xlws.FILTER( Instruments_Equity!E:E, (Instruments_Equity!L:L="NSE") * (Instruments_Equity!E:E<>0) * (ISERROR(SEARCH("SGB", Instruments_Equity!D:D)))*(ISERROR(SEARCH("-sg", Instruments_Equity!D:D)))),,1) -> 20 MICRONS | R1: Time Intervels
A2: 0 | B2: 256265 | C2: 1001 | D2: NIFTY 50 | E2: NIFTY 50 | F2: 0 | H2: 0 | I2: 0 | J2: 0 | K2: EQ | L2: INDICES | M2: NSE | O2: 21ST CENTURY MGMT SERVICE | R2: 2minute
A3: 1 | B3: 256777 | C3: 1003 | D3: NIFTY MIDCAP 100 | E3: NIFTY MIDCAP 100 | F3: 0 | H3: 0 | I3: 0 | J3: 0 | K3: EQ | L3: INDICES | M3: NSE | O3: 360 ONE WAM | R3: 3minute
A4: 2 | B4: 260105 | C4: 1016 | D4: NIFTY BANK | E4: NIFTY BANK | F4: 0 | H4: 0 | I4: 0 | J4: 0 | K4: EQ | L4: INDICES | M4: NSE | O4: 360ONEAMC - GOLD360 | R4: 5minute
A5: 3 | B5: 260617 | C5: 1018 | D5: NIFTY 100 | E5: NIFTY 100 | F5: 0 | H5: 0 | I5: 0 | J5: 0 | K5: EQ | L5: INDICES | M5: NSE | O5: 360ONEAMC - SILVER360 | R5: 10minute
A6: 4 | B6: 257033 | C6: 1004 | D6: NIFTY DIV OPPS 50 | E6: NIFTY DIV OPPS 50 | F6: 0 | H6: 0 | I6: 0 | J6: 0 | K6: EQ | L6: INDICES | M6: NSE | O6: 3I INFOTECH | R6: 15minute
A7: 5 | B7: 257289 | C7: 1005 | D7: NIFTY COMMODITIES | E7: NIFTY COMMODITIES | F7: 0 | H7: 0 | I7: 0 | J7: 0 | K7: EQ | L7: INDICES | M7: NSE | O7: 3M INDIA | R7: 30minute
A8: 6 | B8: 257545 | C8: 1006 | D8: NIFTY CONSUMPTION | E8: NIFTY CONSUMPTION | F8: 0 | H8: 0 | I8: 0 | J8: 0 | K8: EQ | L8: INDICES | M8: NSE | O8: 3P LAND HOLDINGS | R8: 60minute
A9: 7 | B9: 257801 | C9: 1007 | D9: NIFTY FIN SERVICE | E9: NIFTY FIN SERVICE | F9: 0 | H9: 0 | I9: 0 | J9: 0 | K9: EQ | L9: INDICES | M9: NSE | O9: 5PAISA CAPITAL | R9: day
A10: 8 | B10: 258825 | C10: 1011 | D10: NIFTY50 PR 2X LEV | E10: NIFTY50 PR 2X LEV | F10: 0 | H10: 0 | I10: 0 | J10: 0 | K10: EQ | L10: INDICES | M10: NSE | O10: 63 MOONS TECHNOLOGIES | R10: week
A11: 9 | B11: 259081 | C11: 1012 | D11: NIFTY50 PR 1X INV | E11: NIFTY50 PR 1X INV | F11: 0 | H11: 0 | I11: 0 | J11: 0 | K11: EQ | L11: INDICES | M11: NSE | O11: A AND M JUMBO BAGS | R11: month
A12: 10 | B12: 259337 | C12: 1013 | D12: NIFTY50 TR 2X LEV | E12: NIFTY50 TR 2X LEV | F12: 0 | H12: 0 | I12: 0 | J12: 0 | K12: EQ | L12: INDICES | M12: NSE | O12: A B COTSPIN INDIA
A13: 11 | B13: 259593 | C13: 1014 | D13: NIFTY50 TR 1X INV | E13: NIFTY50 TR 1X INV | F13: 0 | H13: 0 | I13: 0 | J13: 0 | K13: EQ | L13: INDICES | M13: NSE | O13: A B INFRABUILD
A14: 12 | B14: 259849 | C14: 1015 | D14: NIFTY IT | E14: NIFTY IT | F14: 0 | H14: 0 | I14: 0 | J14: 0 | K14: EQ | L14: INDICES | M14: NSE | O14: A B N INTERCORP
A15: 13 | B15: 260873 | C15: 1019 | D15: NIFTY MIDCAP 50 | E15: NIFTY MIDCAP 50 | F15: 0 | H15: 0 | I15: 0 | J15: 0 | K15: EQ | L15: INDICES | M15: NSE | O15: A G UNIVERSAL
A16: 14 | B16: 261129 | C16: 1020 | D16: NIFTY REALTY | E16: NIFTY REALTY | F16: 0 | H16: 0 | I16: 0 | J16: 0 | K16: EQ | L16: INDICES | M16: NSE | O16: A2Z INFRA ENGINEERING
A17: 15 | B17: 261385 | C17: 1021 | D17: NIFTY INFRA | E17: NIFTY INFRA | F17: 0 | H17: 0 | I17: 0 | J17: 0 | K17: EQ | L17: INDICES | M17: NSE | O17: AAA TECHNOLOGIES
A18: 16 | B18: 261641 | C18: 1022 | D18: NIFTY ENERGY | E18: NIFTY ENERGY | F18: 0 | H18: 0 | I18: 0 | J18: 0 | K18: EQ | L18: INDICES | M18: NSE | O18: AADHAR HOUSING FINANCE L
A19: 17 | B19: 261897 | C19: 1023 | D19: NIFTY FMCG | E19: NIFTY FMCG | F19: 0 | H19: 0 | I19: 0 | J19: 0 | K19: EQ | L19: INDICES | M19: NSE | O19: AAKAAR MEDICAL TECHNO
A20: 18 | B20: 262153 | C20: 1024 | D20: NIFTY MNC | E20: NIFTY MNC | F20: 0 | H20: 0 | I20: 0 | J20: 0 | K20: EQ | L20: INDICES | M20: NSE | O20: AAKASH EXPLORATION SER L
A21: 19 | B21: 262409 | C21: 1025 | D21: NIFTY PHARMA | E21: NIFTY PHARMA | F21: 0 | H21: 0 | I21: 0 | J21: 0 | K21: EQ | L21: INDICES | M21: NSE | O21: AARADHYA DISPOSAL INDUS L
A22: 20 | B22: 262665 | C22: 1026 | D22: NIFTY PSE | E22: NIFTY PSE | F22: 0 | H22: 0 | I22: 0 | J22: 0 | K22: EQ | L22: INDICES | M22: NSE | O22: AAREY DRUGS & PHARM
A23: 21 | B23: 262921 | C23: 1027 | D23: NIFTY PSU BANK | E23: NIFTY PSU BANK | F23: 0 | H23: 0 | I23: 0 | J23: 0 | K23: EQ | L23: INDICES | M23: NSE | O23: AARON INDUSTRIES
A24: 22 | B24: 263177 | C24: 1028 | D24: NIFTY SERV SECTOR | E24: NIFTY SERV SECTOR | F24: 0 | H24: 0 | I24: 0 | J24: 0 | K24: EQ | L24: INDICES | M24: NSE | O24: AARTECH SOLONICS
A25: 23 | B25: 263433 | C25: 1029 | D25: NIFTY AUTO | E25: NIFTY AUTO | F25: 0 | H25: 0 | I25: 0 | J25: 0 | K25: EQ | L25: INDICES | M25: NSE | O25: AARTI DRUGS
A26: 24 | B26: 263689 | C26: 1030 | D26: NIFTY METAL | E26: NIFTY METAL | F26: 0 | H26: 0 | I26: 0 | J26: 0 | K26: EQ | L26: INDICES | M26: NSE | O26: AARTI INDUSTRIES
A27: 25 | B27: 263945 | C27: 1031 | D27: NIFTY MEDIA | E27: NIFTY MEDIA | F27: 0 | H27: 0 | I27: 0 | J27: 0 | K27: EQ | L27: INDICES | M27: NSE | O27: AARTI PHARMALABS
A28: 26 | B28: 264457 | C28: 1033 | D28: NIFTY 200 | E28: NIFTY 200 | F28: 0 | H28: 0 | I28: 0 | J28: 0 | K28: EQ | L28: INDICES | M28: NSE | O28: AARTI SURFACTANTS
A29: 27 | B29: 264713 | C29: 1034 | D29: HANGSENG BEES-NAV | E29: HANGSENG BEES-NAV | F29: 0 | H29: 0 | I29: 0 | J29: 0 | K29: EQ | L29: INDICES | M29: NSE | O29: AARTI SURFACTANTS
A30: 28 | B30: 264969 | C30: 1035 | D30: INDIA VIX | E30: INDIA VIX | F30: 0 | H30: 0 | I30: 0 | J30: 0 | K30: EQ | L30: INDICES | M30: NSE | O30: AARVI ENCON
A31: 29 | B31: 265225 | C31: 1036 | D31: NIFTY50 DIV POINT | E31: NIFTY50 DIV POINT | F31: 0 | H31: 0 | I31: 0 | J31: 0 | K31: EQ | L31: INDICES | M31: NSE | O31: AATMAJ HEALTHCARE
A32: 30 | B32: 265737 | C32: 1038 | D32: NIFTY200 QUALTY30 | E32: NIFTY200 QUALTY30 | F32: 0 | H32: 0 | I32: 0 | J32: 0 | K32: EQ | L32: INDICES | M32: NSE | O32: AAVAS FINANCIERS
A33: 31 | B33: 265993 | C33: 1039 | D33: NIFTY ALPHA 50 | E33: NIFTY ALPHA 50 | F33: 0 | H33: 0 | I33: 0 | J33: 0 | K33: EQ | L33: INDICES | M33: NSE | O33: ABAN OFFSHORE
A34: 32 | B34: 266249 | C34: 1040 | D34: NIFTY MIDCAP 150 | E34: NIFTY MIDCAP 150 | F34: 0 | H34: 0 | I34: 0 | J34: 0 | K34: EQ | L34: INDICES | M34: NSE | O34: ABANS FINANCIAL SRVCS
A35: 33 | B35: 266505 | C35: 1041 | D35: NIFTY MIDSML 400 | E35: NIFTY MIDSML 400 | F35: 0 | H35: 0 | I35: 0 | J35: 0 | K35: EQ | L35: INDICES | M35: NSE | O35: ABB INDIA
A36: 34 | B36: 266761 | C36: 1042 | D36: NIFTY SMLCAP 50 | E36: NIFTY SMLCAP 50 | F36: 0 | H36: 0 | I36: 0 | J36: 0 | K36: EQ | L36: INDICES | M36: NSE | O36: ABBOTT INDIA
A37: 35 | B37: 267017 | C37: 1043 | D37: NIFTY SMLCAP 100 | E37: NIFTY SMLCAP 100 | F37: 0 | H37: 0 | I37: 0 | J37: 0 | K37: EQ | L37: INDICES | M37: NSE | O37: ABHA POWER N STEEL
A38: 36 | B38: 267273 | C38: 1044 | D38: NIFTY SMLCAP 250 | E38: NIFTY SMLCAP 250 | F38: 0 | H38: 0 | I38: 0 | J38: 0 | K38: EQ | L38: INDICES | M38: NSE | O38: ABHISHEK INTEGRATIONS
A39: 37 | B39: 267529 | C39: 1045 | D39: NIFTY50 VALUE 20 | E39: NIFTY50 VALUE 20 | F39: 0 | H39: 0 | I39: 0 | J39: 0 | K39: EQ | L39: INDICES | M39: NSE | O39: ABM INTERNATIONAL
A40: 38 | B40: 267785 | C40: 1046 | D40: NIFTY100 LIQ 15 | E40: NIFTY100 LIQ 15 | F40: 0 | H40: 0 | I40: 0 | J40: 0 | K40: EQ | L40: INDICES | M40: NSE | O40: ABS MARINE SERVICES
A41: 39 | B41: 268041 | C41: 1047 | D41: NIFTY 500 | E41: NIFTY 500 | F41: 0 | H41: 0 | I41: 0 | J41: 0 | K41: EQ | L41: INDICES | M41: NSE | O41: ACC
A42: 40 | B42: 268297 | C42: 1048 | D42: NIFTY CPSE | E42: NIFTY CPSE | F42: 0 | H42: 0 | I42: 0 | J42: 0 | K42: EQ | L42: INDICES | M42: NSE | O42: ACCELYA SOLN INDIA
A43: 41 | B43: 268553 | C43: 1049 | D43: NIFTY GS 4 8YR | E43: NIFTY GS 4 8YR | F43: 0 | H43: 0 | I43: 0 | J43: 0 | K43: EQ | L43: INDICES | M43: NSE | O43: ACCENT MICROCELL
A44: 42 | B44: 268809 | C44: 1050 | D44: NIFTY GS 8 13YR | E44: NIFTY GS 8 13YR | F44: 0 | H44: 0 | I44: 0 | J44: 0 | K44: EQ | L44: INDICES | M44: NSE | O44: ACCORD SYNERGY
A45: 43 | B45: 269065 | C45: 1051 | D45: NIFTY GS 10YR | E45: NIFTY GS 10YR | F45: 0 | H45: 0 | I45: 0 | J45: 0 | K45: EQ | L45: INDICES | M45: NSE | O45: ACCRETION PHARMA
A46: 44 | B46: 269321 | C46: 1052 | D46: NIFTY GS 10YR CLN | E46: NIFTY GS 10YR CLN | F46: 0 | H46: 0 | I46: 0 | J46: 0 | K46: EQ | L46: INDICES | M46: NSE | O46: ACCURACY SHIPPING
A47: 45 | B47: 269577 | C47: 1053 | D47: NIFTY GS 11 15YR | E47: NIFTY GS 11 15YR | F47: 0 | H47: 0 | I47: 0 | J47: 0 | K47: EQ | L47: INDICES | M47: NSE | O47: ACE INTEGRATED SOLU.
A48: 46 | B48: 269833 | C48: 1054 | D48: NIFTY GS 15YRPLUS | E48: NIFTY GS 15YRPLUS | F48: 0 | H48: 0 | I48: 0 | J48: 0 | K48: EQ | L48: INDICES | M48: NSE | O48: ACME SOLAR HOLDINGS
A49: 47 | B49: 270089 | C49: 1055 | D49: NIFTY GS COMPSITE | E49: NIFTY GS COMPSITE | F49: 0 | H49: 0 | I49: 0 | J49: 0 | K49: EQ | L49: INDICES | M49: NSE | O49: ACTION CONST EQUIP
A50: 48 | B50: 270345 | C50: 1056 | D50: NIFTY GROWSECT 15 | E50: NIFTY GROWSECT 15 | F50: 0 | H50: 0 | I50: 0 | J50: 0 | K50: EQ | L50: INDICES | M50: NSE | O50: ACTIVE INFRASTRUCTURES L
A51: 49 | B51: 270601 | C51: 1057 | D51: NIFTY MID LIQ 15 | E51: NIFTY MID LIQ 15 | F51: 0 | H51: 0 | I51: 0 | J51: 0 | K51: EQ | L51: INDICES | M51: NSE | O51: ACUTAAS CHEMICALS
A52: 50 | B52: 270857 | C52: 1058 | D52: NIFTY NEXT 50 | E52: NIFTY NEXT 50 | F52: 0 | H52: 0 | I52: 0 | J52: 0 | K52: EQ | L52: INDICES | M52: NSE | O52: ADANI ENERGY SOLUTION
A53: 51 | B53: 271113 | C53: 1059 | D53: NIFTY PVT BANK | E53: NIFTY PVT BANK | F53: 0 | H53: 0 | I53: 0 | J53: 0 | K53: EQ | L53: INDICES | M53: NSE | O53: ADANI ENTERPRISES
A54: 52 | B54: 271625 | C54: 1061 | D54: NIFTY50 EQL WGT | E54: NIFTY50 EQL WGT | F54: 0 | H54: 0 | I54: 0 | J54: 0 | K54: EQ | L54: INDICES | M54: NSE | O54: ADANI GREEN ENERGY
A55: 53 | B55: 271881 | C55: 1062 | D55: NIFTY100 EQL WGT | E55: NIFTY100 EQL WGT | F55: 0 | H55: 0 | I55: 0 | J55: 0 | K55: EQ | L55: INDICES | M55: NSE | O55: ADANI PORT & SEZ
A56: 54 | B56: 272137 | C56: 1063 | D56: NIFTY100 LOWVOL30 | E56: NIFTY100 LOWVOL30 | F56: 0 | H56: 0 | I56: 0 | J56: 0 | K56: EQ | L56: INDICES | M56: NSE | O56: ADANI POWER
A57: 55 | B57: 272393 | C57: 1064 | D57: NIFTY100 QUALTY30 | E57: NIFTY100 QUALTY30 | F57: 0 | H57: 0 | I57: 0 | J57: 0 | K57: EQ | L57: INDICES | M57: NSE | O57: ADANI TOTAL GAS
A58: 56 | B58: 273673 | C58: 1069 | D58: NIFTY ALPHALOWVOL | E58: NIFTY ALPHALOWVOL | F58: 0 | H58: 0 | I58: 0 | J58: 0 | K58: EQ | L58: INDICES | M58: NSE | O58: ADDICTIVE LEARNING TECH L
A59: 57 | B59: 288009 | C59: 1125 | D59: NIFTY MID SELECT | E59: NIFTY MIDCAP SELECT (MIDCPNIFTY) | F59: 0 | H59: 0 | I59: 0 | J59: 0 | K59: EQ | L59: INDICES | M59: NSE | O59: ADF FOODS
A60: 58 | B60: 288265 | C60: 1126 | D60: NIFTY FINSRV25 50 | E60: NIFTY FINSRV25 50 | F60: 0 | H60: 0 | I60: 0 | J60: 0 | K60: EQ | L60: INDICES | M60: NSE | O60: ADIT BIRL SUN LIF AMC
A61: 59 | B61: 288521 | C61: 1127 | D61: NIFTY HEALTHCARE | E61: NIFTY HEALTHCARE | F61: 0 | H61: 0 | I61: 0 | J61: 0 | K61: EQ | L61: INDICES | M61: NSE | O61: ADITYA BIRLA CAPITAL
A62: 60 | B62: 288777 | C62: 1128 | D62: NIFTY CONSR DURBL | E62: NIFTY CONSR DURBL | F62: 0 | H62: 0 | I62: 0 | J62: 0 | K62: EQ | L62: INDICES | M62: NSE | O62: ADITYA BIRLA FASHION & RT
A63: 61 | B63: 289033 | C63: 1129 | D63: NIFTY OIL AND GAS | E63: NIFTY OIL AND GAS | F63: 0 | H63: 0 | I63: 0 | J63: 0 | K63: EQ | L63: INDICES | M63: NSE | O63: ADITYA BIRLA LIFES BRAN L
A64: 62 | B64: 289289 | C64: 1130 | D64: NIFTY500 MULTICAP | E64: NIFTY500 MULTICAP | F64: 0 | H64: 0 | I64: 0 | J64: 0 | K64: EQ | L64: INDICES | M64: NSE | O64: ADITYA BIRLA MONEY
A65: 63 | B65: 289545 | C65: 1131 | D65: NIFTY LARGEMID250 | E65: NIFTY LARGEMID250 | F65: 0 | H65: 0 | I65: 0 | J65: 0 | K65: EQ | L65: INDICES | M65: NSE | O65: ADITYA BIRLA REAL EST
A66: 64 | B66: 289801 | C66: 1132 | D66: NIFTY100ESGSECLDR | E66: NIFTY100ESGSECLDR | F66: 0 | H66: 0 | I66: 0 | J66: 0 | K66: EQ | L66: INDICES | M66: NSE | O66: ADITYA INFOTECH
A67: 65 | B67: 290057 | C67: 1133 | D67: NIFTY200MOMENTM30 | E67: NIFTY200MOMENTM30 | F67: 0 | H67: 0 | I67: 0 | J67: 0 | K67: EQ | L67: INDICES | M67: NSE | O67: ADITYA ULTRA STEEL
A68: 66 | B68: 290313 | C68: 1134 | D68: NIFTY TOTAL MKT | E68: NIFTY TOTAL MKT | F68: 0 | H68: 0 | I68: 0 | J68: 0 | K68: EQ | L68: INDICES | M68: NSE | O68: ADITYA VISION
A69: 67 | B69: 290569 | C69: 1135 | D69: NIFTY MICROCAP250 | E69: NIFTY MICROCAP250 | F69: 0 | H69: 0 | I69: 0 | J69: 0 | K69: EQ | L69: INDICES | M69: NSE | O69: ADITYBIRLA SL GOLD ETF-GR
A70: 68 | B70: 290825 | C70: 1136 | D70: NIFTY M150 QLTY50 | E70: NIFTY M150 QLTY50 | F70: 0 | H70: 0 | I70: 0 | J70: 0 | K70: EQ | L70: INDICES | M70: NSE | O70: ADITYBIRLA SL NIF ETF-GR
A71: 69 | B71: 291081 | C71: 1137 | D71: NIFTY INDIA MFG | E71: NIFTY INDIA MFG | F71: 0 | H71: 0 | I71: 0 | J71: 0 | K71: EQ | L71: INDICES | M71: NSE | O71: ADOR WELDING
A72: 70 | B72: 291337 | C72: 1138 | D72: NIFTY IND DIGITAL | E72: NIFTY IND DIGITAL | F72: 0 | H72: 0 | I72: 0 | J72: 0 | K72: EQ | L72: INDICES | M72: NSE | O72: ADROIT INFOTECH
A73: 71 | B73: 291593 | C73: 1139 | D73: NIFTY100 ESG | E73: NIFTY100 ESG | F73: 0 | H73: 0 | I73: 0 | J73: 0 | K73: EQ | L73: INDICES | M73: NSE | O73: ADVANCE AGROLIFE
A74: 72 | B74: 294409 | C74: 1150 | D74: NIFTY200 ALPHA 30 | E74: NIFTY200 ALPHA 30 | F74: 0 | H74: 0 | I74: 0 | J74: 0 | K74: EQ | L74: INDICES | M74: NSE | O74: ADVANCED ENZYME TECH
A75: 73 | B75: 294665 | C75: 1151 | D75: NIFTYM150MOMNTM50 | E75: NIFTYM150MOMNTM50 | F75: 0 | H75: 0 | I75: 0 | J75: 0 | K75: EQ | L75: INDICES | M75: NSE | O75: ADVANI HOT.& RES.(I)
A76: 74 | B76: 294921 | C76: 1152 | D76: NIFTY TATA 25 CAP | E76: NIFTY TATA 25 CAP | F76: 0 | H76: 0 | I76: 0 | J76: 0 | K76: EQ | L76: INDICES | M76: NSE | O76: AEGIS LOGISTICS
A77: 75 | B77: 295177 | C77: 1153 | D77: NIFTY MULTI MFG | E77: NIFTY MULTI MFG | F77: 0 | H77: 0 | I77: 0 | J77: 0 | K77: EQ | L77: INDICES | M77: NSE | O77: AEGIS VOPAK TERMINALS
A78: 76 | B78: 295433 | C78: 1154 | D78: NIFTY MULTI INFRA | E78: NIFTY MULTI INFRA | F78: 0 | H78: 0 | I78: 0 | J78: 0 | K78: EQ | L78: INDICES | M78: NSE | O78: AEROFLEX ENTERPRISES
A79: 77 | B79: 295689 | C79: 1155 | D79: NIFTY MIDSML HLTH | E79: NIFTY MIDSML HLTH | F79: 0 | H79: 0 | I79: 0 | J79: 0 | K79: EQ | L79: INDICES | M79: NSE | O79: AEROFLEX INDUSTRIES
A80: 78 | B80: 404745 | C80: 1581 | D80: NIFTY AQL 30 | E80: NIFTY ALPHA QUALITY LOW-VOLATILITY 30 | F80: 0 | H80: 0 | I80: 0 | J80: 0 | K80: EQ | L80: INDICES | M80: NSE | O80: AEROFLEX NEU
A81: 79 | B81: 405001 | C81: 1582 | D81: NIFTY AQLV 30 | E81: NIFTY ALPHA QUALITY VALUE LOW VOLATILITY 30 | F81: 0 | H81: 0 | I81: 0 | J81: 0 | K81: EQ | L81: INDICES | M81: NSE | O81: AERON COMPOSITE
A82: 80 | B82: 405257 | C82: 1583 | D82: NIFTY CORP MAATR | E82: NIFTY INDIA SELECT 5 CORPORATE GROUPS | F82: 0 | H82: 0 | I82: 0 | J82: 0 | K82: EQ | L82: INDICES | M82: NSE | O82: AESTHETIK ENGINEERS
A83: 81 | B83: 405513 | C83: 1584 | D83: NIFTY EV | E83: NIFTY EV & NEW AGE AUTOMOTIVE | F83: 0 | H83: 0 | I83: 0 | J83: 0 | K83: EQ | L83: INDICES | M83: NSE | O83: AETHER INDUSTRIES
A84: 82 | B84: 405769 | C84: 1585 | D84: NIFTY HIGHBETA 50 | E84: NIFTY HIGHBETA 50 | F84: 0 | H84: 0 | I84: 0 | J84: 0 | K84: EQ | L84: INDICES | M84: NSE | O84: AFCONS INFRASTRUCTURE
A85: 83 | B85: 406025 | C85: 1586 | D85: NIFTY LOW VOL 50 | E85: NIFTY LOW VOLATILITY 50 | F85: 0 | H85: 0 | I85: 0 | J85: 0 | K85: EQ | L85: INDICES | M85: NSE | O85: AFFLE 3I
A86: 84 | B86: 406281 | C86: 1587 | D86: NIFTY MOBILITY | E86: NIFTY MOBILITY | F86: 0 | H86: 0 | I86: 0 | J86: 0 | K86: EQ | L86: INDICES | M86: NSE | O86: AFFORD ROBO & AUTO
A87: 85 | B87: 406537 | C87: 1588 | D87: NIFTY MULTI MQ 50 | E87: NIFTY500 MULTICAP MOMENTUM QUALITY 50 | F87: 0 | H87: 0 | I87: 0 | J87: 0 | K87: EQ | L87: INDICES | M87: NSE | O87: AGARWAL FLOAT GLASS I
A88: 86 | B88: 406793 | C88: 1589 | D88: NIFTY NEW CONSUMP | E88: NIFTY INDIA NEW AGE CONSUMPTION | F88: 0 | H88: 0 | I88: 0 | J88: 0 | K88: EQ | L88: INDICES | M88: NSE | O88: AGARWAL INDS CORP
A89: 87 | B89: 407049 | C89: 1590 | D89: NIFTY QLTY LV 30 | E89: NIFTY QUALITY LOW VOLATILITY 30 | F89: 0 | H89: 0 | I89: 0 | J89: 0 | K89: EQ | L89: INDICES | M89: NSE | O89: AGARWAL TOUGH GLASS IND L
A90: 88 | B90: 407305 | C90: 1591 | D90: NIFTY SML250 Q50 | E90: NIFTY SMALLCAP250 QUALITY 50 | F90: 0 | H90: 0 | I90: 0 | J90: 0 | K90: EQ | L90: INDICES | M90: NSE | O90: AGI GREENPAC
A91: 89 | B91: 407561 | C91: 1592 | D91: NIFTY TOP 10 EW | E91: NIFTY TOP 10 EQUAL WEIGHT | F91: 0 | H91: 0 | I91: 0 | J91: 0 | K91: EQ | L91: INDICES | M91: NSE | O91: AGI INFRA
A92: 90 | B92: 407817 | C92: 1593 | D92: NIFTY TOP 15 EW | E92: NIFTY TOP 15 EQUAL WEIGHT | F92: 0 | H92: 0 | I92: 0 | J92: 0 | K92: EQ | L92: INDICES | M92: NSE | O92: AGNI GREEN POWER
A93: 91 | B93: 408073 | C93: 1594 | D93: NIFTY TOP 20 EW | E93: NIFTY TOP 20 EQUAL WEIGHT | F93: 0 | H93: 0 | I93: 0 | J93: 0 | K93: EQ | L93: INDICES | M93: NSE | O93: AGRI-TECH (INDIA)
A94: 92 | B94: 408329 | C94: 1595 | D94: NIFTY100 ALPHA 30 | E94: NIFTY100 ALPHA 30 | F94: 0 | H94: 0 | I94: 0 | J94: 0 | K94: EQ | L94: INDICES | M94: NSE | O94: AGRO PHOS INDIA
A95: 93 | B95: 408585 | C95: 1596 | D95: NIFTY100 ENH ESG | E95: NIFTY100 ENHANCED ESG | F95: 0 | H95: 0 | I95: 0 | J95: 0 | K95: EQ | L95: INDICES | M95: NSE | O95: AGS TRANSACT TECH
A96: 94 | B96: 408841 | C96: 1597 | D96: NIFTY200 VALUE 30 | E96: NIFTY200 VALUE 30 | F96: 0 | H96: 0 | I96: 0 | J96: 0 | K96: EQ | L96: INDICES | M96: NSE | O96: AHIMSA INDUSTRIES
A97: 95 | B97: 409097 | C97: 1598 | D97: NIFTY500 EW | E97: NIFTY500 EQUAL WEIGHT | F97: 0 | H97: 0 | I97: 0 | J97: 0 | K97: EQ | L97: INDICES | M97: NSE | O97: AHLADA ENGINEERS
A98: 96 | B98: 409353 | C98: 1599 | D98: NIFTY500 VALUE 50 | E98: NIFTY500 VALUE 50 | F98: 0 | H98: 0 | I98: 0 | J98: 0 | K98: EQ | L98: INDICES | M98: NSE | O98: AHLUWALIA CONT IND
A99: 97 | B99: 409609 | C99: 1600 | D99: NIFTY500MOMENTM50 | E99: NIFTY500 MOMENTUM 50 | F99: 0 | H99: 0 | I99: 0 | J99: 0 | K99: EQ | L99: INDICES | M99: NSE | O99: AIA ENGINEERING
A100: 98 | B100: 409865 | C100: 1601 | D100: NIFTYMS400 MQ 100 | E100: NIFTY MIDSMALLCAP400 MOMENTUM QUALITY 100 | F100: 0 | H100: 0 | I100: 0 | J100: 0 | K100: EQ | L100: INDICES | M100: NSE | O100: AIMTRON ELECTRONICS
A101: 99 | B101: 410121 | C101: 1602 | D101: NIFTYSML250MQ 100 | E101: NIFTY SMALLCAP250 MOMENTUM QUALITY 100 | F101: 0 | H101: 0 | I101: 0 | J101: 0 | K101: EQ | L101: INDICES | M101: NSE | O101: AION-TECH SOLUTIONS
A102: 100 | B102: 410377 | C102: 1603 | D102: NIFTY COREHOUSING | E102: NIFTY CORE HOUSING | F102: 0 | H102: 0 | I102: 0 | J102: 0 | K102: EQ | L102: INDICES | M102: NSE | O102: AIRAN
A103: 101 | B103: 410633 | C103: 1604 | D103: NIFTY FINSEREXBNK | E103: NIFTY FINANCIAL SERVICES | F103: 0 | H103: 0 | I103: 0 | J103: 0 | K103: EQ | L103: INDICES | M103: NSE | O103: AIRO LAM
A104: 102 | B104: 410889 | C104: 1605 | D104: NIFTY HOUSING | E104: NIFTY HOUSING | F104: 0 | H104: 0 | I104: 0 | J104: 0 | K104: EQ | L104: INDICES | M104: NSE | O104: AIRTEL RS. 1.25 PPD UP
A105: 103 | B105: 411145 | C105: 1606 | D105: NIFTY IPO | E105: NIFTY IPO | F105: 0 | H105: 0 | I105: 0 | J105: 0 | K105: EQ | L105: INDICES | M105: NSE | O105: AJANTA PHARMA
A106: 104 | B106: 411401 | C106: 1607 | D106: NIFTY MS FIN SERV | E106: NIFTY MIDSMALL FINANCIAL SERVICES | F106: 0 | H106: 0 | I106: 0 | J106: 0 | K106: EQ | L106: INDICES | M106: NSE | O106: AJAX ENGINEERING
A107: 105 | B107: 411657 | C107: 1608 | D107: NIFTY MS IND CONS | E107: NIFTY MIDSMALL INDIA CONSUMPTION | F107: 0 | H107: 0 | I107: 0 | J107: 0 | K107: EQ | L107: INDICES | M107: NSE | O107: AJMERA REALTY & INF I
A108: 106 | B108: 411913 | C108: 1609 | D108: NIFTY MS IT TELCM | E108: NIFTY MIDSMALL IT & TELECOM | F108: 0 | H108: 0 | I108: 0 | J108: 0 | K108: EQ | L108: INDICES | M108: NSE | O108: AJOONI BIOTECH
A109: 107 | B109: 412169 | C109: 1610 | D109: NIFTY NONCYC CONS | E109: NIFTY NON-CYCLICAL CONSUMER | F109: 0 | H109: 0 | I109: 0 | J109: 0 | K109: EQ | L109: INDICES | M109: NSE | O109: AKANKSHA POWER N INFRA L
A110: 108 | B110: 412425 | C110: 1611 | D110: NIFTY RURAL | E110: NIFTY RURAL | F110: 0 | H110: 0 | I110: 0 | J110: 0 | K110: EQ | L110: INDICES | M110: NSE | O110: AKASH INFRA-PROJECTS
A111: 109 | B111: 412681 | C111: 1612 | D111: NIFTY SHARIAH 25 | E111: NIFTY SHARIAH 25 | F111: 0 | H111: 0 | I111: 0 | J111: 0 | K111: EQ | L111: INDICES | M111: NSE | O111: AKG EXIM
A112: 110 | B112: 412937 | C112: 1613 | D112: NIFTY TRANS LOGIS | E112: NIFTY TRANSPORTATION & LOGISTICS | F112: 0 | H112: 0 | I112: 0 | J112: 0 | K112: EQ | L112: INDICES | M112: NSE | O112: AKI INDIA
A113: 111 | B113: 413193 | C113: 1614 | D113: NIFTY50 SHARIAH | E113: NIFTY50 SHARIAH | F113: 0 | H113: 0 | I113: 0 | J113: 0 | K113: EQ | L113: INDICES | M113: NSE | O113: AKIKO GLOBAL SERVICES L
A114: 112 | B114: 413449 | C114: 1615 | D114: NIFTY500 LMS EQL | E114: NIFTY500 LARGEMIDSMALL EQUAL CAP WEIGHTED | F114: 0 | H114: 0 | I114: 0 | J114: 0 | K114: EQ | L114: INDICES | M114: NSE | O114: AKME FINTRADE (INDIA)
A115: 113 | B115: 413705 | C115: 1616 | D115: NIFTY500 SHARIAH | E115: NIFTY500 SHARIAH | F115: 0 | H115: 0 | I115: 0 | J115: 0 | K115: EQ | L115: INDICES | M115: NSE | O115: AKSH OPTIFIBRE
A116: 114 | B116: 413961 | C116: 1617 | D116: NIFTY IND DEFENCE | E116: NIFTY INDIA DEFENCE | F116: 0 | H116: 0 | I116: 0 | J116: 0 | K116: EQ | L116: INDICES | M116: NSE | O116: AKSHAR SPINTEX
A117: 115 | B117: 414217 | C117: 1618 | D117: NIFTY IND TOURISM | E117: NIFTY INDIA TOURISM | F117: 0 | H117: 0 | I117: 0 | J117: 0 | K117: EQ | L117: INDICES | M117: NSE | O117: AKSHARCHEM INDIA
A118: 116 | B118: 414473 | C118: 1619 | D118: NIFTY CAPITAL MKT | E118: NIFTY CAPITAL MARKETS | F118: 0 | H118: 0 | I118: 0 | J118: 0 | K118: EQ | L118: INDICES | M118: NSE | O118: AKUMS DRUGS AND PHARMA L
A119: 117 | B119: 416521 | C119: 1627 | D119: Nifty BHARATBondIndex-Apr2025 | E119: NSE INDEX NIFTY BHARATBONDINDEX-APR2025 | F119: 0 | H119: 0 | I119: 0 | J119: 0 | K119: EQ | L119: INDICES | M119: NSE | O119: AKZO NOBEL INDIA
A120: 118 | B120: 416777 | C120: 1628 | D120: BHARATBOND-APR33 | E120: NSE INDEX BHARATBOND-APR33 | F120: 0 | H120: 0 | I120: 0 | J120: 0 | K120: EQ | L120: INDICES | M120: NSE | O120: ALANKIT
A121: 119 | B121: 417033 | C121: 1629 | D121: BHARATBOND-APR32 | E121: NSE INDEX BHARATBOND-APR32 | F121: 0 | H121: 0 | I121: 0 | J121: 0 | K121: EQ | L121: INDICES | M121: NSE | O121: ALBERT DAVID
A122: 120 | B122: 417289 | C122: 1630 | D122: BHARATBOND-APR31 | E122: NSE INDEX BHARATBOND-APR31 | F122: 0 | H122: 0 | I122: 0 | J122: 0 | K122: EQ | L122: INDICES | M122: NSE | O122: ALEMBIC
A123: 121 | B123: 417545 | C123: 1631 | D123: BHARATBOND-APR30 | E123: NSE INDEX BHARATBOND-APR30 | F123: 0 | H123: 0 | I123: 0 | J123: 0 | K123: EQ | L123: INDICES | M123: NSE | O123: ALEMBIC PHARMA
A124: 122 | B124: 417801 | C124: 1632 | D124: Nifty500 LowVol50 | E124: NSE INDEX NIFTY500 LOWVOL50 | F124: 0 | H124: 0 | I124: 0 | J124: 0 | K124: EQ | L124: INDICES | M124: NSE | O124: ALICON CASTALLOY
A125: 123 | B125: 418057 | C125: 1633 | D125: Nifty500 MQVLv50 | E125: NSE INDEX NIFTY500 MQVLV50 | F125: 0 | H125: 0 | I125: 0 | J125: 0 | K125: EQ | L125: INDICES | M125: NSE | O125: ALIVUS LIFE SCIENCES
A126: 124 | B126: 418313 | C126: 1634 | D126: Nifty500 Qlty50 | E126: NSE INDEX NIFTY500 QLTY50 | F126: 0 | H126: 0 | I126: 0 | J126: 0 | K126: EQ | L126: INDICES | M126: NSE | O126: ALKALI METALS
A127: 125 | B127: 418569 | C127: 1635 | D127: NIFTY50 USD | E127: NSE INDEX NIFTY50 USD | F127: 0 | H127: 0 | I127: 0 | J127: 0 | K127: EQ | L127: INDICES | M127: NSE | O127: ALKEM LABORATORIES
A128: 126 | B128: 257 | C128: 1 | D128: GOLDSTAR-SM | E128: GOLDSTAR POWER | F128: 0 | H128: 0 | I128: 0.05 | J128: 11250 | K128: EQ | L128: NSE | M128: NSE | O128: ALKYL AMINES CHEM.
A129: 127 | B129: 1025 | C129: 4 | D129: 21STCENMGM | E129: 21ST CENTURY MGMT SERVICE | F129: 0 | H129: 0 | I129: 0.01 | J129: 1 | K129: EQ | L129: NSE | M129: NSE | O129: ALL E TECHNOLOGIES
A130: 128 | B130: 1793 | C130: 7 | D130: AARTIIND | E130: AARTI INDUSTRIES | F130: 0 | H130: 0 | I130: 0.05 | J130: 1 | K130: EQ | L130: NSE | M130: NSE | O130: ALL TIME PLASTICS
A131: 129 | B131: 3329 | C131: 13 | D131: ABB | E131: ABB INDIA | F131: 0 | H131: 0 | I131: 0.5 | J131: 1 | K131: EQ | L131: NSE | M131: NSE | O131: ALLCARGO GATI
A132: 130 | B132: 3585 | C132: 14 | D132: 656KA30-SG | E132: SDL KA 6.56% 2030 | F132: 0 | H132: 0 | I132: 0.01 | J132: 100 | K132: EQ | L132: NSE | M132: NSE | O132: ALLCARGO LOGISTICS
A133: 131 | B133: 4353 | C133: 17 | D133: GATECHDVR | E133: GACM TECHNOLOGIES | F133: 0 | H133: 0 | I133: 0.01 | J133: 1 | K133: EQ | L133: NSE | M133: NSE | O133: ALLCARGO TERMINALS
A134: 132 | B134: 4609 | C134: 18 | D134: 66RJ30-SG | E134: SDL RJ 6.6% 2030 | F134: 0 | H134: 0 | I134: 0.01 | J134: 100 | K134: EQ | L134: NSE | M134: NSE | O134: ALLDIGI TECH
A135: 133 | B135: 4865 | C135: 19 | D135: STYRENIX | E135: STYRENIX PERFORMANCE | F135: 0 | H135: 0 | I135: 0.1 | J135: 1 | K135: EQ | L135: NSE | M135: NSE | O135: ALLIED BLEND N DISTILS L
A136: 134 | B136: 5121 | C136: 20 | D136: 66GA30A-SG | E136: SDL GA 6.6% 2030 | F136: 0 | H136: 0 | I136: 0.01 | J136: 100 | K136: EQ | L136: NSE | M136: NSE | O136: ALLIED DIGITAL SERV.
A137: 135 | B137: 5377 | C137: 21 | D137: 664UP30-SG | E137: SDL UP 6.64% 2030 | F137: 0 | H137: 0 | I137: 0.01 | J137: 100 | K137: EQ | L137: NSE | M137: NSE | O137: ALMONDZ GLOBAL SEC
A138: 136 | B138: 5633 | C138: 22 | D138: ACC | E138: ACC | F138: 0 | H138: 0 | I138: 0.1 | J138: 1 | K138: EQ | L138: NSE | M138: NSE | O138: ALOK INDUSTRIES
A139: 137 | B139: 5889 | C139: 23 | D139: 67JK30-SG | E139: SDL JK 6.7% 2030 | F139: 0 | H139: 0 | I139: 0.01 | J139: 100 | K139: EQ | L139: NSE | M139: NSE | O139: ALPA LABORATORIES
A140: 138 | B140: 6401 | C140: 25 | D140: ADANIENT | E140: ADANI ENTERPRISES | F140: 0 | H140: 0 | I140: 0.1 | J140: 1 | K140: EQ | L140: NSE | M140: NSE | O140: ALPEX SOLAR
A141: 139 | B141: 6657 | C141: 26 | D141: 67HR30-SG | E141: SDL HR 6.7% 2030 | F141: 0 | H141: 0 | I141: 0.01 | J141: 100 | K141: EQ | L141: NSE | M141: NSE | O141: ALPHAGEO (INDIA)
A142: 140 | B142: 7425 | C142: 29 | D142: 667MH31-SG | E142: SDL MH 6.67% 2031 | F142: 0 | H142: 0 | I142: 0.01 | J142: 100 | K142: EQ | L142: NSE | M142: NSE | O142: ALPS INDUSTRIES
A143: 141 | B143: 8193 | C143: 32 | D143: 679MP33-SG | E143: SDL MP 6.79% 2033 | F143: 0 | H143: 0 | I143: 0.01 | J143: 100 | K143: EQ | L143: NSE | M143: NSE | O143: ALUWIND INFRA-TECH
A144: 142 | B144: 8705 | C144: 34 | D144: ADOR | E144: ADOR WELDING | F144: 0 | H144: 0 | I144: 0.1 | J144: 1 | K144: EQ | L144: NSE | M144: NSE | O144: AMANTA HEALTHCARE
A145: 143 | B145: 8961 | C145: 35 | D145: 677KA34-SG | E145: SDL KA 6.77% 2034 | F145: 0 | H145: 0 | I145: 0.01 | J145: 100 | K145: EQ | L145: NSE | M145: NSE | O145: AMARA RAJA ENERGY MOB
A146: 144 | B146: 9729 | C146: 38 | D146: 685AP36-SG | E146: SDL AP 6.85% 2036 | F146: 0 | H146: 0 | I146: 0.01 | J146: 100 | K146: EQ | L146: NSE | M146: NSE | O146: AMBANI ORGOCHEM
A147: 145 | B147: 10241 | C147: 40 | D147: AEGISLOG | E147: AEGIS LOGISTICS | F147: 0 | H147: 0 | I147: 0.05 | J147: 1 | K147: EQ | L147: NSE | M147: NSE | O147: AMBER ENTERPRISES (I)
A148: 146 | B148: 10497 | C148: 41 | D148: 687AP38-SG | E148: SDL AP 6.87% 2038 | F148: 0 | H148: 0 | I148: 0.01 | J148: 100 | K148: EQ | L148: NSE | M148: NSE | O148: AMBEY LABORATORIES
A149: 147 | B149: 10753 | C149: 42 | D149: 677WB40-SG | E149: SDL WB 6.77% 2040 | F149: 0 | H149: 0 | I149: 0.01 | J149: 100 | K149: EQ | L149: NSE | M149: NSE | O149: AMBICA AGAR & AROMAINDLTD
A150: 148 | B150: 11777 | C150: 46 | D150: SANWARIA-BZ | E150: SANWARIA CONSUMER | F150: 0 | H150: 0 | I150: 0.01 | J150: 1 | K150: EQ | L150: NSE | M150: NSE | O150: AMBIKA COTTON MILL
A151: 149 | B151: 12289 | C151: 48 | D151: HAPPSTMNDS | E151: HAPPIEST MINDS TECHNO | F151: 0 | H151: 0 | I151: 0.05 | J151: 1 | K151: EQ | L151: NSE | M151: NSE | O151: AMBUJA CEMENTS
A152: 150 | B152: 16641 | C152: 65 | D152: 663GJ29-SG | E152: SDL GJ 6.63% 2029 | F152: 0 | H152: 0 | I152: 0.01 | J152: 100 | K152: EQ | L152: NSE | M152: NSE | O152: AMD INDUSTRIES
A153: 151 | B153: 17409 | C153: 68 | D153: 684TS40-SG | E153: SDL TS 6.84% 2040 | F153: 0 | H153: 0 | I153: 0.01 | J153: 100 | K153: EQ | L153: NSE | M153: NSE | O153: AMEYA PRECISION ENG
A154: 152 | B154: 18433 | C154: 72 | D154: 665KA30-SG | E154: SDL KA 6.65% 2030 | F154: 0 | H154: 0 | I154: 0.01 | J154: 100 | K154: EQ | L154: NSE | M154: NSE | O154: AMIABLE LOGISTICS (I)
A155: 153 | B155: 18945 | C155: 74 | D155: 675KA33-SG | E155: SDL KA 6.75% 2033 | F155: 0 | H155: 0 | I155: 0.01 | J155: 100 | K155: EQ | L155: NSE | M155: NSE | O155: AMINES & PLASTICIZERS
A156: 154 | B156: 19457 | C156: 76 | D156: 667UK30-SG | E156: SDL UK 6.67% 2030 | F156: 0 | H156: 0 | I156: 0.01 | J156: 100 | K156: EQ | L156: NSE | M156: NSE | O156: AMJ LAND HOLDINGS
A157: 155 | B157: 20225 | C157: 79 | D157: ALEMBICLTD | E157: ALEMBIC | F157: 0 | H157: 0 | I157: 0.01 | J157: 1 | K157: EQ | L157: NSE | M157: NSE | O157: AMRUTAJAN HEALTH
A158: 156 | B158: 20737 | C158: 81 | D158: BETA-SM | E158: BETA DRUGS | F158: 0 | H158: 0 | I158: 0.05 | J158: 105 | K158: EQ | L158: NSE | M158: NSE | O158: ANAND RATHI SH N STK BR L
A159: 157 | B159: 21249 | C159: 83 | D159: 67ML30-SG | E159: SDL ML 6.7% 2030 | F159: 0 | H159: 0 | I159: 0.01 | J159: 100 | K159: EQ | L159: NSE | M159: NSE | O159: ANAND RATHI WEALTH
A160: 158 | B160: 22017 | C160: 86 | D160: 67NL30-SG | E160: SDL NL 6.7% 2030 | F160: 0 | H160: 0 | I160: 0.01 | J160: 100 | K160: EQ | L160: NSE | M160: NSE | O160: ANANT RAJ
A161: 159 | B161: 22273 | C161: 87 | D161: 667RJ30-SG | E161: SDL RJ 6.67% 2030 | F161: 0 | H161: 0 | I161: 0.01 | J161: 100 | K161: EQ | L161: NSE | M161: NSE | O161: ANANTAM HIGHWAYS TRUST
A162: 160 | B162: 22785 | C162: 89 | D162: 67TR30-SG | E162: SDL TR 6.7% 2030 | F162: 0 | H162: 0 | I162: 0.01 | J162: 100 | K162: EQ | L162: NSE | M162: NSE | O162: ANB METAL CAST
A163: 161 | B163: 23553 | C163: 92 | D163: 668UP30-SG | E163: SDL UP 6.68% 2030 | F163: 0 | H163: 0 | I163: 0.01 | J163: 100 | K163: EQ | L163: NSE | M163: NSE | O163: ANDHRA CEMENTS
A164: 162 | B164: 24321 | C164: 95 | D164: 676MP33-SG | E164: SDL MP 6.76% 2033 | F164: 0 | H164: 0 | I164: 0.01 | J164: 100 | K164: EQ | L164: NSE | M164: NSE | O164: ANDHRA PAPER
A165: 163 | B165: 25601 | C165: 100 | D165: ARE&M | E165: AMARA RAJA ENERGY MOB | F165: 0 | H165: 0 | I165: 0.1 | J165: 1 | K165: EQ | L165: NSE | M165: NSE | O165: ANDHRA SUGARS
A166: 164 | B166: 26625 | C166: 104 | D166: SHAREINDIA | E166: SHARE IND. SECURITIES | F166: 0 | H166: 0 | I166: 0.01 | J166: 1 | K166: EQ | L166: NSE | M166: NSE | O166: ANGEL ONE
A167: 165 | B167: 29953 | C167: 117 | D167: OMFURN-SM | E167: OMFURN INDIA | F167: 0 | H167: 0 | I167: 0.05 | J167: 1200 | K167: EQ | L167: NSE | M167: NSE | O167: ANI INTEGRATED SERV
A168: 166 | B168: 32769 | C168: 128 | D168: ROUTE | E168: ROUTE MOBILE | F168: 0 | H168: 0 | I168: 0.05 | J168: 1 | K168: EQ | L168: NSE | M168: NSE | O168: ANIK INDUSTRIES
A169: 167 | B169: 34817 | C169: 136 | D169: ANDHRSUGAR | E169: ANDHRA SUGARS | F169: 0 | H169: 0 | I169: 0.01 | J169: 1 | K169: EQ | L169: NSE | M169: NSE | O169: ANJANI PORTLAND CEM
A170: 168 | B170: 36865 | C170: 144 | D170: GODREJAGRO | E170: GODREJ AGROVET | F170: 0 | H170: 0 | I170: 0.05 | J170: 1 | K170: EQ | L170: NSE | M170: NSE | O170: ANKIT MET & POW
A171: 169 | B171: 38145 | C171: 149 | D171: SGBSEP28VI-GB | E171: 2.50%GOLDBONDS2028SR-VI | F171: 0 | H171: 0 | I171: 0.01 | J171: 1 | K171: EQ | L171: NSE | M171: NSE | O171: ANLON HEALTHCARE
A172: 170 | B172: 39425 | C172: 154 | D172: APCOTEXIND | E172: APCOTEX INDUSTRIES LIMITE | F172: 0 | H172: 0 | I172: 0.05 | J172: 1 | K172: EQ | L172: NSE | M172: NSE | O172: ANLON TECHNOLOGY SOL
A173: 171 | B173: 40193 | C173: 157 | D173: APOLLOHOSP | E173: APOLLO HOSPITALS ENTER. L | F173: 0 | H173: 0 | I173: 0.5 | J173: 1 | K173: EQ | L173: NSE | M173: NSE | O173: ANMOL INDIA
A174: 172 | B174: 40449 | C174: 158 | D174: 67MH28-SG | E174: SDL MH 6.7% 2028 | F174: 0 | H174: 0 | I174: 0.01 | J174: 100 | K174: EQ | L174: NSE | M174: NSE | O174: ANNAPURNA SWADISHT
A175: 173 | B175: 40705 | C175: 159 | D175: MILTON-SM | E175: MILTON INDUSTRIES | F175: 0 | H175: 0 | I175: 0.05 | J175: 4400 | K175: EQ | L175: NSE | M175: NSE | O175: ANONDITA MEDICARE
A176: 174 | B176: 41217 | C176: 161 | D176: 674UP30-SG | E176: SDL UP 6.74% 2030 | F176: 0 | H176: 0 | I176: 0.01 | J176: 100 | K176: EQ | L176: NSE | M176: NSE | O176: ANSAL PROP & INFRA
A177: 175 | B177: 41729 | C177: 163 | D177: APOLLOTYRE | E177: APOLLO TYRES | F177: 0 | H177: 0 | I177: 0.05 | J177: 1 | K177: EQ | L177: NSE | M177: NSE | O177: ANTARCTICA
A178: 176 | B178: 41985 | C178: 164 | D178: 68AS30-SG | E178: SDL AS 6.8% 2030 | F178: 0 | H178: 0 | I178: 0.01 | J178: 100 | K178: EQ | L178: NSE | M178: NSE | O178: ANTELOPUS SELAN ENRGY
A179: 177 | B179: 42241 | C179: 165 | D179: 674GA30-SG | E179: SDL GA 6.74% 2030 | F179: 0 | H179: 0 | I179: 0.01 | J179: 100 | K179: EQ | L179: NSE | M179: NSE | O179: ANTHEM BIOSCIENCES
A180: 178 | B180: 42497 | C180: 166 | D180: ANDHRAPAP | E180: ANDHRA PAPER | F180: 0 | H180: 0 | I180: 0.01 | J180: 1 | K180: EQ | L180: NSE | M180: NSE | O180: ANTONY WASTE HDG CELL
A181: 179 | B181: 42753 | C181: 167 | D181: 67GJ30-SG | E181: SDL GJ 6.7% 2030 | F181: 0 | H181: 0 | I181: 0.01 | J181: 100 | K181: EQ | L181: NSE | M181: NSE | O181: ANUH PHARMA
A182: 180 | B182: 43521 | C182: 170 | D182: 67KA30-SG | E182: SDL KA 6.7% 2030 | F182: 0 | H182: 0 | I182: 0.01 | J182: 100 | K182: EQ | L182: NSE | M182: NSE | O182: ANUPAM RASAYAN INDIA
A183: 181 | B183: 43777 | C183: 171 | D183: 672RJ30-SG | E183: SDL RJ 6.72% 2030 | F183: 0 | H183: 0 | I183: 0.01 | J183: 100 | K183: EQ | L183: NSE | M183: NSE | O183: ANUPAM RASAYAN INDIA
A184: 182 | B184: 44289 | C184: 173 | D184: 673SK30-SG | E184: SDL SK 6.73% 2030 | F184: 0 | H184: 0 | I184: 0.01 | J184: 100 | K184: EQ | L184: NSE | M184: NSE | O184: ANYA POLYTECH & FERTI
A185: 183 | B185: 45825 | C185: 179 | D185: 669TN30-SG | E185: SDL TN 6.69% 2030 | F185: 0 | H185: 0 | I185: 0.01 | J185: 100 | K185: EQ | L185: NSE | M185: NSE | O185: ANZEN IND ENE YLD PLU TRU
A186: 184 | B186: 46337 | C186: 181 | D186: ARENTERP | E186: RAJDARSHAN INDUSTRIES | F186: 0 | H186: 0 | I186: 0.01 | J186: 1 | K186: EQ | L186: NSE | M186: NSE | O186: AONEAMC - AONEGOLD
A187: 185 | B187: 46593 | C187: 182 | D187: 678KA32-SG | E187: SDL KA 6.78% 2032 | F187: 0 | H187: 0 | I187: 0.01 | J187: 100 | K187: EQ | L187: NSE | M187: NSE | O187: AONEAMC - AONELIQUID
A188: 186 | B188: 47105 | C188: 184 | D188: TCPLPACK | E188: TCPL PACKAGING | F188: 0 | H188: 0 | I188: 0.1 | J188: 1 | K188: EQ | L188: NSE | M188: NSE | O188: AONEAMC - AONENIFTY
A189: 187 | B189: 47361 | C189: 185 | D189: 678MH32-SG | E189: SDL MH 6.78% 2032 | F189: 0 | H189: 0 | I189: 0.01 | J189: 100 | K189: EQ | L189: NSE | M189: NSE | O189: AONEAMC - AONETOTAL
A190: 188 | B190: 47617 | C190: 186 | D190: 850NHAI29-N5 | F190: 0 | H190: 0 | I190: 0.01 | J190: 1 | K190: EQ | L190: NSE | M190: NSE | O190: APAR INDUSTRIES
A191: 189 | B191: 49153 | C191: 192 | D191: 875NHAI29-N6 | F191: 0 | H191: 0 | I191: 0.01 | J191: 1 | K191: EQ | L191: NSE | M191: NSE | O191: APCOTEX INDUSTRIES LIMITE
A192: 190 | B192: 49409 | C192: 193 | D192: ARVIND | E192: ARVIND | F192: 0 | H192: 0 | I192: 0.05 | J192: 1 | K192: EQ | L192: NSE | M192: NSE | O192: APEX ECOTECH
A193: 191 | B193: 50945 | C193: 199 | D193: MASFIN | E193: MAS FINANCIAL SERV | F193: 0 | H193: 0 | I193: 0.05 | J193: 1 | K193: EQ | L193: NSE | M193: NSE | O193: APEX FROZEN FOODS
A194: 192 | B194: 51457 | C194: 201 | D194: UNIDT | E194: UNITED DRILLING TOOLS | F194: 0 | H194: 0 | I194: 0.01 | J194: 1 | K194: EQ | L194: NSE | M194: NSE | O194: APL APOLLO TUBES
A195: 193 | B195: 51969 | C195: 203 | D195: ASHAPURMIN | E195: ASHAPURA MINECHEM | F195: 0 | H195: 0 | I195: 0.05 | J195: 1 | K195: EQ | L195: NSE | M195: NSE | O195: APOLLO HOSPITALS ENTER. L
A196: 194 | B196: 52737 | C196: 206 | D196: ASHIMASYN | E196: ASHIMA | F196: 0 | H196: 0 | I196: 0.01 | J196: 1 | K196: EQ | L196: NSE | M196: NSE | O196: APOLLO MICRO SYSTEMS
A197: 195 | B197: 54273 | C197: 212 | D197: ASHOKLEY | E197: ASHOK LEYLAND | F197: 0 | H197: 0 | I197: 0.01 | J197: 1 | K197: EQ | L197: NSE | M197: NSE | O197: APOLLO PIPES
A198: 196 | B198: 56321 | C198: 220 | D198: IEX | E198: INDIAN ENERGY EXC | F198: 0 | H198: 0 | I198: 0.01 | J198: 1 | K198: EQ | L198: NSE | M198: NSE | O198: APOLLO SINDOORI HOTEL
A199: 197 | B199: 60161 | C199: 235 | D199: AAKASH | E199: AAKASH EXPLORATION SER L | F199: 0 | H199: 0 | I199: 0.01 | J199: 1 | K199: EQ | L199: NSE | M199: NSE | O199: APOLLO TYRES
A200: 198 | B200: 60417 | C200: 236 | D200: ASIANPAINT | E200: ASIAN PAINTS | F200: 0 | H200: 0 | I200: 0.1 | J200: 1 | K200: EQ | L200: NSE | M200: NSE | O200: APRAMEYA ENGINEERING
... 4300 more rows

Sheet Instruments_NFO
B1: instrument_token | C1: exchange_token | D1: tradingsymbol | E1: name | F1: last_price | G1: expiry | H1: strike | I1: tick_size | J1: lot_size | K1: instrument_type | L1: segment | M1: exchange
A2: 0 | B2: 9485826 | C2: 37054 | D2: NIFTY25NOVFUT | E2: NIFTY | F2: 0 | G2: 2025-11-25 | H2: 0 | I2: 0.1 | J2: 75 | K2: FUT | L2: NFO-FUT | M2: NFO
A3: 1 | B3: 12683010 | C3: 49543 | D3: NIFTY25DECFUT | E3: NIFTY | F3: 0 | G3: 2025-12-30 | H3: 0 | I3: 0.1 | J3: 75 | K3: FUT | L3: NFO-FUT | M3: NFO
A4: 2 | B4: 12602626 | C4: 49229 | D4: NIFTY26JANFUT | E4: NIFTY | F4: 0 | G4: 2026-01-27 | H4: 0 | I4: 0.1 | J4: 65 | K4: FUT | L4: NFO-FUT | M4: NFO
A5: 3 | B5: 9485058 | C5: 37051 | D5: BANKNIFTY25NOVFUT | E5: BANKNIFTY | F5: 0 | G5: 2025-11-25 | H5: 0 | I5: 0.2 | J5: 35 | K5: FUT | L5: NFO-FUT | M5: NFO
A6: 4 | B6: 12674050 | C6: 49508 | D6: BANKNIFTY25DECFUT | E6: BANKNIFTY | F6: 0 | G6: 2025-12-30 | H6: 0 | I6: 0.2 | J6: 35 | K6: FUT | L6: NFO-FUT | M6: NFO
A7: 5 | B7: 12601346 | C7: 49224 | D7: BANKNIFTY26JANFUT | E7: BANKNIFTY | F7: 0 | G7: 2026-01-27 | H7: 0 | I7: 0.2 | J7: 30 | K7: FUT | L7: NFO-FUT | M7: NFO
A8: 6 | B8: 9808130 | C8: 38313 | D8: 360ONE25NOVFUT | E8: 360ONE | F8: 0 | G8: 2025-11-25 | H8: 0 | I8: 0.1 | J8: 500 | K8: FUT | L8: NFO-FUT | M8: NFO
A9: 7 | B9: 12683522 | C9: 49545 | D9: 360ONE25DECFUT | E9: 360ONE | F9: 0 | G9: 2025-12-30 | H9: 0 | I9: 0.1 | J9: 500 | K9: FUT | L9: NFO-FUT | M9: NFO
A10: 8 | B10: 12604162 | C10: 49235 | D10: 360ONE26JANFUT | E10: 360ONE | F10: 0 | G10: 2026-01-27 | H10: 0 | I10: 0.1 | J10: 500 | K10: FUT | L10: NFO-FUT | M10: NFO
A11: 9 | B11: 9808386 | C11: 38314 | D11: ABB25NOVFUT | E11: ABB | F11: 0 | G11: 2025-11-25 | H11: 0 | I11: 0.5 | J11: 125 | K11: FUT | L11: NFO-FUT | M11: NFO
A12: 10 | B12: 12684290 | C12: 49548 | D12: ABB25DECFUT | E12: ABB | F12: 0 | G12: 2025-12-30 | H12: 0 | I12: 0.5 | J12: 125 | K12: FUT | L12: NFO-FUT | M12: NFO
A13: 11 | B13: 12604418 | C13: 49236 | D13: ABB26JANFUT | E13: ABB | F13: 0 | G13: 2026-01-27 | H13: 0 | I13: 0.5 | J13: 125 | K13: FUT | L13: NFO-FUT | M13: NFO
A14: 12 | B14: 9808642 | C14: 38315 | D14: ABCAPITAL25NOVFUT | E14: ABCAPITAL | F14: 0 | G14: 2025-11-25 | H14: 0 | I14: 0.05 | J14: 3100 | K14: FUT | L14: NFO-FUT | M14: NFO
A15: 13 | B15: 12686594 | C15: 49557 | D15: ABCAPITAL25DECFUT | E15: ABCAPITAL | F15: 0 | G15: 2025-12-30 | H15: 0 | I15: 0.05 | J15: 3100 | K15: FUT | L15: NFO-FUT | M15: NFO
A16: 14 | B16: 12604674 | C16: 49237 | D16: ABCAPITAL26JANFUT | E16: ABCAPITAL | F16: 0 | G16: 2026-01-27 | H16: 0 | I16: 0.05 | J16: 3100 | K16: FUT | L16: NFO-FUT | M16: NFO
A17: 15 | B17: 9808898 | C17: 38316 | D17: ADANIENSOL25NOVFUT | E17: ADANIENSOL | F17: 0 | G17: 2025-11-25 | H17: 0 | I17: 0.05 | J17: 675 | K17: FUT | L17: NFO-FUT | M17: NFO
A18: 16 | B18: 12687874 | C18: 49562 | D18: ADANIENSOL25DECFUT | E18: ADANIENSOL | F18: 0 | G18: 2025-12-30 | H18: 0 | I18: 0.05 | J18: 675 | K18: FUT | L18: NFO-FUT | M18: NFO
A19: 17 | B19: 12605186 | C19: 49239 | D19: ADANIENSOL26JANFUT | E19: ADANIENSOL | F19: 0 | G19: 2026-01-27 | H19: 0 | I19: 0.05 | J19: 675 | K19: FUT | L19: NFO-FUT | M19: NFO
A20: 18 | B20: 9809154 | C20: 38317 | D20: ADANIENT25NOVFUT | E20: ADANIENT | F20: 0 | G20: 2025-11-25 | H20: 0 | I20: 0.1 | J20: 300 | K20: FUT | L20: NFO-FUT | M20: NFO
A21: 19 | B21: 12688130 | C21: 49563 | D21: ADANIENT25DECFUT | E21: ADANIENT | F21: 0 | G21: 2025-12-30 | H21: 0 | I21: 0.1 | J21: 300 | K21: FUT | L21: NFO-FUT | M21: NFO
A22: 20 | B22: 12605442 | C22: 49240 | D22: ADANIENT26JANFUT | E22: ADANIENT | F22: 0 | G22: 2026-01-27 | H22: 0 | I22: 0.1 | J22: 300 | K22: FUT | L22: NFO-FUT | M22: NFO
A23: 21 | B23: 9991170 | C23: 39028 | D23: ADANIGREEN25NOVFUT | E23: ADANIGREEN | F23: 0 | G23: 2025-11-25 | H23: 0 | I23: 0.1 | J23: 600 | K23: FUT | L23: NFO-FUT | M23: NFO
A24: 22 | B24: 12688898 | C24: 49566 | D24: ADANIGREEN25DECFUT | E24: ADANIGREEN | F24: 0 | G24: 2025-12-30 | H24: 0 | I24: 0.1 | J24: 600 | K24: FUT | L24: NFO-FUT | M24: NFO
A25: 23 | B25: 12605698 | C25: 49241 | D25: ADANIGREEN26JANFUT | E25: ADANIGREEN | F25: 0 | G25: 2026-01-27 | H25: 0 | I25: 0.1 | J25: 600 | K25: FUT | L25: NFO-FUT | M25: NFO
A26: 24 | B26: 9991426 | C26: 39029 | D26: ADANIPORTS25NOVFUT | E26: ADANIPORTS | F26: 0 | G26: 2025-11-25 | H26: 0 | I26: 0.1 | J26: 475 | K26: FUT | L26: NFO-FUT | M26: NFO
A27: 25 | B27: 12689666 | C27: 49569 | D27: ADANIPORTS25DECFUT | E27: ADANIPORTS | F27: 0 | G27: 2025-12-30 | H27: 0 | I27: 0.1 | J27: 475 | K27: FUT | L27: NFO-FUT | M27: NFO
A28: 26 | B28: 12605954 | C28: 49242 | D28: ADANIPORTS26JANFUT | E28: ADANIPORTS | F28: 0 | G28: 2026-01-27 | H28: 0 | I28: 0.1 | J28: 475 | K28: FUT | L28: NFO-FUT | M28: NFO
A29: 27 | B29: 9991682 | C29: 39030 | D29: ALKEM25NOVFUT | E29: ALKEM | F29: 0 | G29: 2025-11-25 | H29: 0 | I29: 0.5 | J29: 125 | K29: FUT | L29: NFO-FUT | M29: NFO
A30: 28 | B30: 12690178 | C30: 49571 | D30: ALKEM25DECFUT | E30: ALKEM | F30: 0 | G30: 2025-12-30 | H30: 0 | I30: 0.5 | J30: 125 | K30: FUT | L30: NFO-FUT | M30: NFO
A31: 29 | B31: 12610306 | C31: 49259 | D31: ALKEM26JANFUT | E31: ALKEM | F31: 0 | G31: 2026-01-27 | H31: 0 | I31: 0.5 | J31: 125 | K31: FUT | L31: NFO-FUT | M31: NFO
A32: 30 | B32: 9991938 | C32: 39031 | D32: AMBER25NOVFUT | E32: AMBER | F32: 0 | G32: 2025-11-25 | H32: 0 | I32: 0.5 | J32: 100 | K32: FUT | L32: NFO-FUT | M32: NFO
A33: 31 | B33: 12691714 | C33: 49577 | D33: AMBER25DECFUT | E33: AMBER | F33: 0 | G33: 2025-12-30 | H33: 0 | I33: 0.5 | J33: 100 | K33: FUT | L33: NFO-FUT | M33: NFO
A34: 32 | B34: 12610562 | C34: 49260 | D34: AMBER26JANFUT | E34: AMBER | F34: 0 | G34: 2026-01-27 | H34: 0 | I34: 0.5 | J34: 100 | K34: FUT | L34: NFO-FUT | M34: NFO
A35: 33 | B35: 11307522 | C35: 44170 | D35: AMBUJACEM25NOVFUT | E35: AMBUJACEM | F35: 0 | G35: 2025-11-25 | H35: 0 | I35: 0.05 | J35: 1050 | K35: FUT | L35: NFO-FUT | M35: NFO
A36: 34 | B36: 12692482 | C36: 49580 | D36: AMBUJACEM25DECFUT | E36: AMBUJACEM | F36: 0 | G36: 2025-12-30 | H36: 0 | I36: 0.05 | J36: 1050 | K36: FUT | L36: NFO-FUT | M36: NFO
A37: 35 | B37: 12611330 | C37: 49263 | D37: AMBUJACEM26JANFUT | E37: AMBUJACEM | F37: 0 | G37: 2026-01-27 | H37: 0 | I37: 0.05 | J37: 1050 | K37: FUT | L37: NFO-FUT | M37: NFO
A38: 36 | B38: 11307778 | C38: 44171 | D38: ANGELONE25NOVFUT | E38: ANGELONE | F38: 0 | G38: 2025-11-25 | H38: 0 | I38: 0.1 | J38: 250 | K38: FUT | L38: NFO-FUT | M38: NFO
A39: 37 | B39: 12692738 | C39: 49581 | D39: ANGELONE25DECFUT | E39: ANGELONE | F39: 0 | G39: 2025-12-30 | H39: 0 | I39: 0.1 | J39: 250 | K39: FUT | L39: NFO-FUT | M39: NFO
A40: 38 | B40: 12611842 | C40: 49265 | D40: ANGELONE26JANFUT | E40: ANGELONE | F40: 0 | G40: 2026-01-27 | H40: 0 | I40: 0.1 | J40: 250 | K40: FUT | L40: NFO-FUT | M40: NFO
A41: 39 | B41: 11308034 | C41: 44172 | D41: APLAPOLLO25NOVFUT | E41: APLAPOLLO | F41: 0 | G41: 2025-11-25 | H41: 0 | I41: 0.1 | J41: 350 | K41: FUT | L41: NFO-FUT | M41: NFO
A42: 40 | B42: 12693250 | C42: 49583 | D42: APLAPOLLO25DECFUT | E42: APLAPOLLO | F42: 0 | G42: 2025-12-30 | H42: 0 | I42: 0.1 | J42: 350 | K42: FUT | L42: NFO-FUT | M42: NFO
A43: 41 | B43: 12612098 | C43: 49266 | D43: APLAPOLLO26JANFUT | E43: APLAPOLLO | F43: 0 | G43: 2026-01-27 | H43: 0 | I43: 0.1 | J43: 350 | K43: FUT | L43: NFO-FUT | M43: NFO
A44: 42 | B44: 11308290 | C44: 44173 | D44: APOLLOHOSP25NOVFUT | E44: APOLLOHOSP | F44: 0 | G44: 2025-11-25 | H44: 0 | I44: 0.5 | J44: 125 | K44: FUT | L44: NFO-FUT | M44: NFO
A45: 43 | B45: 12693506 | C45: 49584 | D45: APOLLOHOSP25DECFUT | E45: APOLLOHOSP | F45: 0 | G45: 2025-12-30 | H45: 0 | I45: 0.5 | J45: 125 | K45: FUT | L45: NFO-FUT | M45: NFO
A46: 44 | B46: 12612354 | C46: 49267 | D46: APOLLOHOSP26JANFUT | E46: APOLLOHOSP | F46: 0 | G46: 2026-01-27 | H46: 0 | I46: 0.5 | J46: 125 | K46: FUT | L46: NFO-FUT | M46: NFO
A47: 45 | B47: 11309570 | C47: 44178 | D47: ASHOKLEY25NOVFUT | E47: ASHOKLEY | F47: 0 | G47: 2025-11-25 | H47: 0 | I47: 0.01 | J47: 5000 | K47: FUT | L47: NFO-FUT | M47: NFO
A48: 46 | B48: 12694530 | C48: 49588 | D48: ASHOKLEY25DECFUT | E48: ASHOKLEY | F48: 0 | G48: 2025-12-30 | H48: 0 | I48: 0.01 | J48: 5000 | K48: FUT | L48: NFO-FUT | M48: NFO
A49: 47 | B49: 12612866 | C49: 49269 | D49: ASHOKLEY26JANFUT | E49: ASHOKLEY | F49: 0 | G49: 2026-01-27 | H49: 0 | I49: 0.01 | J49: 5000 | K49: FUT | L49: NFO-FUT | M49: NFO
A50: 48 | B50: 11309826 | C50: 44179 | D50: ASIANPAINT25NOVFUT | E50: ASIANPAINT | F50: 0 | G50: 2025-11-25 | H50: 0 | I50: 0.1 | J50: 250 | K50: FUT | L50: NFO-FUT | M50: NFO
A51: 49 | B51: 12694786 | C51: 49589 | D51: ASIANPAINT25DECFUT | E51: ASIANPAINT | F51: 0 | G51: 2025-12-30 | H51: 0 | I51: 0.1 | J51: 250 | K51: FUT | L51: NFO-FUT | M51: NFO
A52: 50 | B52: 12613122 | C52: 49270 | D52: ASIANPAINT26JANFUT | E52: ASIANPAINT | F52: 0 | G52: 2026-01-27 | H52: 0 | I52: 0.1 | J52: 250 | K52: FUT | L52: NFO-FUT | M52: NFO
A53: 51 | B53: 11896322 | C53: 46470 | D53: ASTRAL25NOVFUT | E53: ASTRAL | F53: 0 | G53: 2025-11-25 | H53: 0 | I53: 0.1 | J53: 425 | K53: FUT | L53: NFO-FUT | M53: NFO
A54: 52 | B54: 12695042 | C54: 49590 | D54: ASTRAL25DECFUT | E54: ASTRAL | F54: 0 | G54: 2025-12-30 | H54: 0 | I54: 0.1 | J54: 425 | K54: FUT | L54: NFO-FUT | M54: NFO
A55: 53 | B55: 12614914 | C55: 49277 | D55: ASTRAL26JANFUT | E55: ASTRAL | F55: 0 | G55: 2026-01-27 | H55: 0 | I55: 0.1 | J55: 425 | K55: FUT | L55: NFO-FUT | M55: NFO
A56: 54 | B56: 11896834 | C56: 46472 | D56: AUBANK25NOVFUT | E56: AUBANK | F56: 0 | G56: 2025-11-25 | H56: 0 | I56: 0.05 | J56: 1000 | K56: FUT | L56: NFO-FUT | M56: NFO
A57: 55 | B57: 12695298 | C57: 49591 | D57: AUBANK25DECFUT | E57: AUBANK | F57: 0 | G57: 2025-12-30 | H57: 0 | I57: 0.05 | J57: 1000 | K57: FUT | L57: NFO-FUT | M57: NFO
A58: 56 | B58: 12615170 | C58: 49278 | D58: AUBANK26JANFUT | E58: AUBANK | F58: 0 | G58: 2026-01-27 | H58: 0 | I58: 0.05 | J58: 1000 | K58: FUT | L58: NFO-FUT | M58: NFO
A59: 57 | B59: 11897090 | C59: 46473 | D59: AUROPHARMA25NOVFUT | E59: AUROPHARMA | F59: 0 | G59: 2025-11-25 | H59: 0 | I59: 0.1 | J59: 550 | K59: FUT | L59: NFO-FUT | M59: NFO
A60: 58 | B60: 12696834 | C60: 49597 | D60: AUROPHARMA25DECFUT | E60: AUROPHARMA | F60: 0 | G60: 2025-12-30 | H60: 0 | I60: 0.1 | J60: 550 | K60: FUT | L60: NFO-FUT | M60: NFO
A61: 59 | B61: 12615426 | C61: 49279 | D61: AUROPHARMA26JANFUT | E61: AUROPHARMA | F61: 0 | G61: 2026-01-27 | H61: 0 | I61: 0.1 | J61: 550 | K61: FUT | L61: NFO-FUT | M61: NFO
A62: 60 | B62: 11898114 | C62: 46477 | D62: AXISBANK25NOVFUT | E62: AXISBANK | F62: 0 | G62: 2025-11-25 | H62: 0 | I62: 0.1 | J62: 625 | K62: FUT | L62: NFO-FUT | M62: NFO
A63: 61 | B63: 12697090 | C63: 49598 | D63: AXISBANK25DECFUT | E63: AXISBANK | F63: 0 | G63: 2025-12-30 | H63: 0 | I63: 0.1 | J63: 625 | K63: FUT | L63: NFO-FUT | M63: NFO
A64: 62 | B64: 12616194 | C64: 49282 | D64: AXISBANK26JANFUT | E64: AXISBANK | F64: 0 | G64: 2026-01-27 | H64: 0 | I64: 0.1 | J64: 625 | K64: FUT | L64: NFO-FUT | M64: NFO
A65: 63 | B65: 12434690 | C65: 48573 | D65: BAJAJ-AUTO25NOVFUT | E65: BAJAJ-AUTO | F65: 0 | G65: 2025-11-25 | H65: 0 | I65: 0.5 | J65: 75 | K65: FUT | L65: NFO-FUT | M65: NFO
A66: 64 | B66: 12698114 | C66: 49602 | D66: BAJAJ-AUTO25DECFUT | E66: BAJAJ-AUTO | F66: 0 | G66: 2025-12-30 | H66: 0 | I66: 0.5 | J66: 75 | K66: FUT | L66: NFO-FUT | M66: NFO
A67: 65 | B67: 12621570 | C67: 49303 | D67: BAJAJ-AUTO26JANFUT | E67: BAJAJ-AUTO | F67: 0 | G67: 2026-01-27 | H67: 0 | I67: 0.5 | J67: 75 | K67: FUT | L67: NFO-FUT | M67: NFO
A68: 66 | B68: 12434946 | C68: 48574 | D68: BAJAJFINSV25NOVFUT | E68: BAJAJFINSV | F68: 0 | G68: 2025-11-25 | H68: 0 | I68: 0.1 | J68: 250 | K68: FUT | L68: NFO-FUT | M68: NFO
A69: 67 | B69: 12700418 | C69: 49611 | D69: BAJAJFINSV25DECFUT | E69: BAJAJFINSV | F69: 0 | G69: 2025-12-30 | H69: 0 | I69: 0.1 | J69: 250 | K69: FUT | L69: NFO-FUT | M69: NFO
A70: 68 | B70: 12621826 | C70: 49304 | D70: BAJAJFINSV26JANFUT | E70: BAJAJFINSV | F70: 0 | G70: 2026-01-27 | H70: 0 | I70: 0.1 | J70: 250 | K70: FUT | L70: NFO-FUT | M70: NFO
A71: 69 | B71: 12435202 | C71: 48575 | D71: BAJFINANCE25NOVFUT | E71: BAJFINANCE | F71: 0 | G71: 2025-11-25 | H71: 0 | I71: 0.1 | J71: 750 | K71: FUT | L71: NFO-FUT | M71: NFO
A72: 70 | B72: 12700674 | C72: 49612 | D72: BAJFINANCE25DECFUT | E72: BAJFINANCE | F72: 0 | G72: 2025-12-30 | H72: 0 | I72: 0.1 | J72: 750 | K72: FUT | L72: NFO-FUT | M72: NFO
A73: 71 | B73: 12622082 | C73: 49305 | D73: BAJFINANCE26JANFUT | E73: BAJFINANCE | F73: 0 | G73: 2026-01-27 | H73: 0 | I73: 0.1 | J73: 750 | K73: FUT | L73: NFO-FUT | M73: NFO
A74: 72 | B74: 12435970 | C74: 48578 | D74: BANDHANBNK25NOVFUT | E74: BANDHANBNK | F74: 0 | G74: 2025-11-25 | H74: 0 | I74: 0.01 | J74: 3600 | K74: FUT | L74: NFO-FUT | M74: NFO
A75: 73 | B75: 12700930 | C75: 49613 | D75: BANDHANBNK25DECFUT | E75: BANDHANBNK | F75: 0 | G75: 2025-12-30 | H75: 0 | I75: 0.01 | J75: 3600 | K75: FUT | L75: NFO-FUT | M75: NFO
A76: 74 | B76: 12622338 | C76: 49306 | D76: BANDHANBNK26JANFUT | E76: BANDHANBNK | F76: 0 | G76: 2026-01-27 | H76: 0 | I76: 0.01 | J76: 3600 | K76: FUT | L76: NFO-FUT | M76: NFO
A77: 75 | B77: 12436226 | C77: 48579 | D77: BANKBARODA25NOVFUT | E77: BANKBARODA | F77: 0 | G77: 2025-11-25 | H77: 0 | I77: 0.05 | J77: 2925 | K77: FUT | L77: NFO-FUT | M77: NFO
A78: 76 | B78: 12701698 | C78: 49616 | D78: BANKBARODA25DECFUT | E78: BANKBARODA | F78: 0 | G78: 2025-12-30 | H78: 0 | I78: 0.05 | J78: 2925 | K78: FUT | L78: NFO-FUT | M78: NFO
A79: 77 | B79: 12622594 | C79: 49307 | D79: BANKBARODA26JANFUT | E79: BANKBARODA | F79: 0 | G79: 2026-01-27 | H79: 0 | I79: 0.05 | J79: 2925 | K79: FUT | L79: NFO-FUT | M79: NFO
A80: 78 | B80: 12436482 | C80: 48580 | D80: BANKINDIA25NOVFUT | E80: BANKINDIA | F80: 0 | G80: 2025-11-25 | H80: 0 | I80: 0.01 | J80: 5200 | K80: FUT | L80: NFO-FUT | M80: NFO
A81: 79 | B81: 12702978 | C81: 49621 | D81: BANKINDIA25DECFUT | E81: BANKINDIA | F81: 0 | G81: 2025-12-30 | H81: 0 | I81: 0.01 | J81: 5200 | K81: FUT | L81: NFO-FUT | M81: NFO
A82: 80 | B82: 12622850 | C82: 49308 | D82: BANKINDIA26JANFUT | E82: BANKINDIA | F82: 0 | G82: 2026-01-27 | H82: 0 | I82: 0.01 | J82: 5200 | K82: FUT | L82: NFO-FUT | M82: NFO
A83: 81 | B83: 12436738 | C83: 48581 | D83: BDL25NOVFUT | E83: BDL | F83: 0 | G83: 2025-11-25 | H83: 0 | I83: 0.1 | J83: 325 | K83: FUT | L83: NFO-FUT | M83: NFO
A84: 82 | B84: 12703746 | C84: 49624 | D84: BDL25DECFUT | E84: BDL | F84: 0 | G84: 2025-12-30 | H84: 0 | I84: 0.1 | J84: 325 | K84: FUT | L84: NFO-FUT | M84: NFO
A85: 83 | B85: 12623362 | C85: 49310 | D85: BDL26JANFUT | E85: BDL | F85: 0 | G85: 2026-01-27 | H85: 0 | I85: 0.1 | J85: 350 | K85: FUT | L85: NFO-FUT | M85: NFO
A86: 84 | B86: 12436994 | C86: 48582 | D86: BEL25NOVFUT | E86: BEL | F86: 0 | G86: 2025-11-25 | H86: 0 | I86: 0.05 | J86: 1425 | K86: FUT | L86: NFO-FUT | M86: NFO
A87: 85 | B87: 12704002 | C87: 49625 | D87: BEL25DECFUT | E87: BEL | F87: 0 | G87: 2025-12-30 | H87: 0 | I87: 0.05 | J87: 1425 | K87: FUT | L87: NFO-FUT | M87: NFO
A88: 86 | B88: 12623874 | C88: 49312 | D88: BEL26JANFUT | E88: BEL | F88: 0 | G88: 2026-01-27 | H88: 0 | I88: 0.05 | J88: 1425 | K88: FUT | L88: NFO-FUT | M88: NFO
A89: 87 | B89: 12438018 | C89: 48586 | D89: BHARATFORG25NOVFUT | E89: BHARATFORG | F89: 0 | G89: 2025-11-25 | H89: 0 | I89: 0.1 | J89: 500 | K89: FUT | L89: NFO-FUT | M89: NFO
A90: 88 | B90: 12704258 | C90: 49626 | D90: BHARATFORG25DECFUT | E90: BHARATFORG | F90: 0 | G90: 2025-12-30 | H90: 0 | I90: 0.1 | J90: 500 | K90: FUT | L90: NFO-FUT | M90: NFO
A91: 89 | B91: 12625154 | C91: 49317 | D91: BHARATFORG26JANFUT | E91: BHARATFORG | F91: 0 | G91: 2026-01-27 | H91: 0 | I91: 0.1 | J91: 500 | K91: FUT | L91: NFO-FUT | M91: NFO
A92: 90 | B92: 12438274 | C92: 48587 | D92: BHARTIARTL25NOVFUT | E92: BHARTIARTL | F92: 0 | G92: 2025-11-25 | H92: 0 | I92: 0.1 | J92: 475 | K92: FUT | L92: NFO-FUT | M92: NFO
A93: 91 | B93: 12705026 | C93: 49629 | D93: BHARTIARTL25DECFUT | E93: BHARTIARTL | F93: 0 | G93: 2025-12-30 | H93: 0 | I93: 0.1 | J93: 475 | K93: FUT | L93: NFO-FUT | M93: NFO
A94: 92 | B94: 12625410 | C94: 49318 | D94: BHARTIARTL26JANFUT | E94: BHARTIARTL | F94: 0 | G94: 2026-01-27 | H94: 0 | I94: 0.1 | J94: 475 | K94: FUT | L94: NFO-FUT | M94: NFO
A95: 93 | B95: 12438530 | C95: 48588 | D95: BHEL25NOVFUT | E95: BHEL | F95: 0 | G95: 2025-11-25 | H95: 0 | I95: 0.05 | J95: 2625 | K95: FUT | L95: NFO-FUT | M95: NFO
A96: 94 | B96: 12706050 | C96: 49633 | D96: BHEL25DECFUT | E96: BHEL | F96: 0 | G96: 2025-12-30 | H96: 0 | I96: 0.05 | J96: 2625 | K96: FUT | L96: NFO-FUT | M96: NFO
A97: 95 | B97: 12625666 | C97: 49319 | D97: BHEL26JANFUT | E97: BHEL | F97: 0 | G97: 2026-01-27 | H97: 0 | I97: 0.05 | J97: 2625 | K97: FUT | L97: NFO-FUT | M97: NFO
A98: 96 | B98: 12440066 | C98: 48594 | D98: BIOCON25NOVFUT | E98: BIOCON | F98: 0 | G98: 2025-11-25 | H98: 0 | I98: 0.05 | J98: 2500 | K98: FUT | L98: NFO-FUT | M98: NFO
A99: 97 | B99: 12706306 | C99: 49634 | D99: BIOCON25DECFUT | E99: BIOCON | F99: 0 | G99: 2025-12-30 | H99: 0 | I99: 0.05 | J99: 2500 | K99: FUT | L99: NFO-FUT | M99: NFO
A100: 98 | B100: 12625922 | C100: 49320 | D100: BIOCON26JANFUT | E100: BIOCON | F100: 0 | G100: 2026-01-27 | H100: 0 | I100: 0.05 | J100: 2500 | K100: FUT | L100: NFO-FUT | M100: NFO
A101: 99 | B101: 12440322 | C101: 48595 | D101: BLUESTARCO25NOVFUT | E101: BLUESTARCO | F101: 0 | G101: 2025-11-25 | H101: 0 | I101: 0.1 | J101: 325 | K101: FUT | L101: NFO-FUT | M101: NFO
A102: 100 | B102: 12707330 | C102: 49638 | D102: BLUESTARCO25DECFUT | E102: BLUESTARCO | F102: 0 | G102: 2025-12-30 | H102: 0 | I102: 0.1 | J102: 325 | K102: FUT | L102: NFO-FUT | M102: NFO
A103: 101 | B103: 12626690 | C103: 49323 | D103: BLUESTARCO26JANFUT | E103: BLUESTARCO | F103: 0 | G103: 2026-01-27 | H103: 0 | I103: 0.1 | J103: 325 | K103: FUT | L103: NFO-FUT | M103: NFO
A104: 102 | B104: 12440578 | C104: 48596 | D104: BOSCHLTD25NOVFUT | E104: BOSCHLTD | F104: 0 | G104: 2025-11-25 | H104: 0 | I104: 5 | J104: 25 | K104: FUT | L104: NFO-FUT | M104: NFO
A105: 103 | B105: 12707586 | C105: 49639 | D105: BOSCHLTD25DECFUT | E105: BOSCHLTD | F105: 0 | G105: 2025-12-30 | H105: 0 | I105: 5 | J105: 25 | K105: FUT | L105: NFO-FUT | M105: NFO
A106: 104 | B106: 12626946 | C106: 49324 | D106: BOSCHLTD26JANFUT | E106: BOSCHLTD | F106: 0 | G106: 2026-01-27 | H106: 0 | I106: 5 | J106: 25 | K106: FUT | L106: NFO-FUT | M106: NFO
A107: 105 | B107: 12440834 | C107: 48597 | D107: BPCL25NOVFUT | E107: BPCL | F107: 0 | G107: 2025-11-25 | H107: 0 | I107: 0.05 | J107: 1975 | K107: FUT | L107: NFO-FUT | M107: NFO
A108: 106 | B108: 12708866 | C108: 49644 | D108: BPCL25DECFUT | E108: BPCL | F108: 0 | G108: 2025-12-30 | H108: 0 | I108: 0.05 | J108: 1975 | K108: FUT | L108: NFO-FUT | M108: NFO
A109: 107 | B109: 12627202 | C109: 49325 | D109: BPCL26JANFUT | E109: BPCL | F109: 0 | G109: 2026-01-27 | H109: 0 | I109: 0.05 | J109: 1975 | K109: FUT | L109: NFO-FUT | M109: NFO
A110: 108 | B110: 12441090 | C110: 48598 | D110: BRITANNIA25NOVFUT | E110: BRITANNIA | F110: 0 | G110: 2025-11-25 | H110: 0 | I110: 0.5 | J110: 125 | K110: FUT | L110: NFO-FUT | M110: NFO
A111: 109 | B111: 12709634 | C111: 49647 | D111: BRITANNIA25DECFUT | E111: BRITANNIA | F111: 0 | G111: 2025-12-30 | H111: 0 | I111: 0.5 | J111: 125 | K111: FUT | L111: NFO-FUT | M111: NFO
A112: 110 | B112: 12627458 | C112: 49326 | D112: BRITANNIA26JANFUT | E112: BRITANNIA | F112: 0 | G112: 2026-01-27 | H112: 0 | I112: 0.5 | J112: 125 | K112: FUT | L112: NFO-FUT | M112: NFO
A113: 111 | B113: 12441346 | C113: 48599 | D113: BSE25NOVFUT | E113: BSE | F113: 0 | G113: 2025-11-25 | H113: 0 | I113: 0.1 | J113: 375 | K113: FUT | L113: NFO-FUT | M113: NFO
A114: 112 | B114: 12710402 | C114: 49650 | D114: BSE25DECFUT | E114: BSE | F114: 0 | G114: 2025-12-30 | H114: 0 | I114: 0.1 | J114: 375 | K114: FUT | L114: NFO-FUT | M114: NFO
A115: 113 | B115: 12627714 | C115: 49327 | D115: BSE26JANFUT | E115: BSE | F115: 0 | G115: 2026-01-27 | H115: 0 | I115: 0.1 | J115: 375 | K115: FUT | L115: NFO-FUT | M115: NFO
A116: 114 | B116: 12441602 | C116: 48600 | D116: CAMS25NOVFUT | E116: CAMS | F116: 0 | G116: 2025-11-25 | H116: 0 | I116: 0.1 | J116: 150 | K116: FUT | L116: NFO-FUT | M116: NFO
A117: 115 | B117: 12710658 | C117: 49651 | D117: CAMS25DECFUT | E117: CAMS | F117: 0 | G117: 2025-12-30 | H117: 0 | I117: 0.1 | J117: 150 | K117: FUT | L117: NFO-FUT | M117: NFO
A118: 116 | B118: 12627970 | C118: 49328 | D118: CAMS26JANFUT | E118: CAMS | F118: 0 | G118: 2026-01-27 | H118: 0 | I118: 0.1 | J118: 150 | K118: FUT | L118: NFO-FUT | M118: NFO
A119: 117 | B119: 12442114 | C119: 48602 | D119: CANBK25NOVFUT | E119: CANBK | F119: 0 | G119: 2025-11-25 | H119: 0 | I119: 0.01 | J119: 6750 | K119: FUT | L119: NFO-FUT | M119: NFO
A120: 118 | B120: 12710914 | C120: 49652 | D120: CANBK25DECFUT | E120: CANBK | F120: 0 | G120: 2025-12-30 | H120: 0 | I120: 0.01 | J120: 6750 | K120: FUT | L120: NFO-FUT | M120: NFO
A121: 119 | B121: 12628226 | C121: 49329 | D121: CANBK26JANFUT | E121: CANBK | F121: 0 | G121: 2026-01-27 | H121: 0 | I121: 0.01 | J121: 6750 | K121: FUT | L121: NFO-FUT | M121: NFO
A122: 120 | B122: 12442370 | C122: 48603 | D122: CDSL25NOVFUT | E122: CDSL | F122: 0 | G122: 2025-11-25 | H122: 0 | I122: 0.1 | J122: 475 | K122: FUT | L122: NFO-FUT | M122: NFO
A123: 121 | B123: 12712194 | C123: 49657 | D123: CDSL25DECFUT | E123: CDSL | F123: 0 | G123: 2025-12-30 | H123: 0 | I123: 0.1 | J123: 475 | K123: FUT | L123: NFO-FUT | M123: NFO
A124: 122 | B124: 12628482 | C124: 49330 | D124: CDSL26JANFUT | E124: CDSL | F124: 0 | G124: 2026-01-27 | H124: 0 | I124: 0.1 | J124: 475 | K124: FUT | L124: NFO-FUT | M124: NFO
A125: 123 | B125: 12442882 | C125: 48605 | D125: CGPOWER25NOVFUT | E125: CGPOWER | F125: 0 | G125: 2025-11-25 | H125: 0 | I125: 0.05 | J125: 850 | K125: FUT | L125: NFO-FUT | M125: NFO
A126: 124 | B126: 12713218 | C126: 49661 | D126: CGPOWER25DECFUT | E126: CGPOWER | F126: 0 | G126: 2025-12-30 | H126: 0 | I126: 0.05 | J126: 850 | K126: FUT | L126: NFO-FUT | M126: NFO
A127: 125 | B127: 12628738 | C127: 49331 | D127: CGPOWER26JANFUT | E127: CGPOWER | F127: 0 | G127: 2026-01-27 | H127: 0 | I127: 0.05 | J127: 850 | K127: FUT | L127: NFO-FUT | M127: NFO
A128: 126 | B128: 12443138 | C128: 48606 | D128: CHOLAFIN25NOVFUT | E128: CHOLAFIN | F128: 0 | G128: 2025-11-25 | H128: 0 | I128: 0.1 | J128: 625 | K128: FUT | L128: NFO-FUT | M128: NFO
A129: 127 | B129: 12713474 | C129: 49662 | D129: CHOLAFIN25DECFUT | E129: CHOLAFIN | F129: 0 | G129: 2025-12-30 | H129: 0 | I129: 0.1 | J129: 625 | K129: FUT | L129: NFO-FUT | M129: NFO
A130: 128 | B130: 12628994 | C130: 49332 | D130: CHOLAFIN26JANFUT | E130: CHOLAFIN | F130: 0 | G130: 2026-01-27 | H130: 0 | I130: 0.1 | J130: 625 | K130: FUT | L130: NFO-FUT | M130: NFO
A131: 129 | B131: 12443394 | C131: 48607 | D131: CIPLA25NOVFUT | E131: CIPLA | F131: 0 | G131: 2025-11-25 | H131: 0 | I131: 0.1 | J131: 375 | K131: FUT | L131: NFO-FUT | M131: NFO
A132: 130 | B132: 12713730 | C132: 49663 | D132: CIPLA25DECFUT | E132: CIPLA | F132: 0 | G132: 2025-12-30 | H132: 0 | I132: 0.1 | J132: 375 | K132: FUT | L132: NFO-FUT | M132: NFO
A133: 131 | B133: 12629762 | C133: 49335 | D133: CIPLA26JANFUT | E133: CIPLA | F133: 0 | G133: 2026-01-27 | H133: 0 | I133: 0.1 | J133: 375 | K133: FUT | L133: NFO-FUT | M133: NFO
A134: 132 | B134: 12443650 | C134: 48608 | D134: COALINDIA25NOVFUT | E134: COALINDIA | F134: 0 | G134: 2025-11-25 | H134: 0 | I134: 0.05 | J134: 1350 | K134: FUT | L134: NFO-FUT | M134: NFO
A135: 133 | B135: 12713986 | C135: 49664 | D135: COALINDIA25DECFUT | E135: COALINDIA | F135: 0 | G135: 2025-12-30 | H135: 0 | I135: 0.05 | J135: 1350 | K135: FUT | L135: NFO-FUT | M135: NFO
A136: 134 | B136: 12630018 | C136: 49336 | D136: COALINDIA26JANFUT | E136: COALINDIA | F136: 0 | G136: 2026-01-27 | H136: 0 | I136: 0.05 | J136: 1350 | K136: FUT | L136: NFO-FUT | M136: NFO
A137: 135 | B137: 12443906 | C137: 48609 | D137: COFORGE25NOVFUT | E137: COFORGE | F137: 0 | G137: 2025-11-25 | H137: 0 | I137: 0.1 | J137: 375 | K137: FUT | L137: NFO-FUT | M137: NFO
A138: 136 | B138: 12716290 | C138: 49673 | D138: COFORGE25DECFUT | E138: COFORGE | F138: 0 | G138: 2025-12-30 | H138: 0 | I138: 0.1 | J138: 375 | K138: FUT | L138: NFO-FUT | M138: NFO
A139: 137 | B139: 12631554 | C139: 49342 | D139: COFORGE26JANFUT | E139: COFORGE | F139: 0 | G139: 2026-01-27 | H139: 0 | I139: 0.1 | J139: 375 | K139: FUT | L139: NFO-FUT | M139: NFO
A140: 138 | B140: 12444162 | C140: 48610 | D140: COLPAL25NOVFUT | E140: COLPAL | F140: 0 | G140: 2025-11-25 | H140: 0 | I140: 0.1 | J140: 225 | K140: FUT | L140: NFO-FUT | M140: NFO
A141: 139 | B141: 12716546 | C141: 49674 | D141: COLPAL25DECFUT | E141: COLPAL | F141: 0 | G141: 2025-12-30 | H141: 0 | I141: 0.1 | J141: 225 | K141: FUT | L141: NFO-FUT | M141: NFO
A142: 140 | B142: 12631810 | C142: 49343 | D142: COLPAL26JANFUT | E142: COLPAL | F142: 0 | G142: 2026-01-27 | H142: 0 | I142: 0.1 | J142: 225 | K142: FUT | L142: NFO-FUT | M142: NFO
A143: 141 | B143: 12444674 | C143: 48612 | D143: CONCOR25NOVFUT | E143: CONCOR | F143: 0 | G143: 2025-11-25 | H143: 0 | I143: 0.05 | J143: 1250 | K143: FUT | L143: NFO-FUT | M143: NFO
A144: 142 | B144: 12716802 | C144: 49675 | D144: CONCOR25DECFUT | E144: CONCOR | F144: 0 | G144: 2025-12-30 | H144: 0 | I144: 0.05 | J144: 1250 | K144: FUT | L144: NFO-FUT | M144: NFO
A145: 143 | B145: 12633346 | C145: 49349 | D145: CONCOR26JANFUT | E145: CONCOR | F145: 0 | G145: 2026-01-27 | H145: 0 | I145: 0.05 | J145: 1250 | K145: FUT | L145: NFO-FUT | M145: NFO
A146: 144 | B146: 12444930 | C146: 48613 | D146: CROMPTON25NOVFUT | E146: CROMPTON | F146: 0 | G146: 2025-11-25 | H146: 0 | I146: 0.05 | J146: 1800 | K146: FUT | L146: NFO-FUT | M146: NFO
A147: 145 | B147: 12717058 | C147: 49676 | D147: CROMPTON25DECFUT | E147: CROMPTON | F147: 0 | G147: 2025-12-30 | H147: 0 | I147: 0.05 | J147: 1800 | K147: FUT | L147: NFO-FUT | M147: NFO
A148: 146 | B148: 12633602 | C148: 49350 | D148: CROMPTON26JANFUT | E148: CROMPTON | F148: 0 | G148: 2026-01-27 | H148: 0 | I148: 0.05 | J148: 1800 | K148: FUT | L148: NFO-FUT | M148: NFO
A149: 147 | B149: 12445186 | C149: 48614 | D149: CUMMINSIND25NOVFUT | E149: CUMMINSIND | F149: 0 | G149: 2025-11-25 | H149: 0 | I149: 0.1 | J149: 200 | K149: FUT | L149: NFO-FUT | M149: NFO
A150: 148 | B150: 12718082 | C150: 49680 | D150: CUMMINSIND25DECFUT | E150: CUMMINSIND | F150: 0 | G150: 2025-12-30 | H150: 0 | I150: 0.1 | J150: 200 | K150: FUT | L150: NFO-FUT | M150: NFO
A151: 149 | B151: 12633858 | C151: 49351 | D151: CUMMINSIND26JANFUT | E151: CUMMINSIND | F151: 0 | G151: 2026-01-27 | H151: 0 | I151: 0.1 | J151: 200 | K151: FUT | L151: NFO-FUT | M151: NFO
A152: 150 | B152: 12446210 | C152: 48618 | D152: CYIENT25NOVFUT | E152: CYIENT | F152: 0 | G152: 2025-11-25 | H152: 0 | I152: 0.1 | J152: 425 | K152: FUT | L152: NFO-FUT | M152: NFO
A153: 151 | B153: 12719874 | C153: 49687 | D153: CYIENT25DECFUT | E153: CYIENT | F153: 0 | G153: 2025-12-30 | H153: 0 | I153: 0.1 | J153: 425 | K153: FUT | L153: NFO-FUT | M153: NFO
A154: 152 | B154: 12446466 | C154: 48619 | D154: DABUR25NOVFUT | E154: DABUR | F154: 0 | G154: 2025-11-25 | H154: 0 | I154: 0.05 | J154: 1250 | K154: FUT | L154: NFO-FUT | M154: NFO
A155: 153 | B155: 12720130 | C155: 49688 | D155: DABUR25DECFUT | E155: DABUR | F155: 0 | G155: 2025-12-30 | H155: 0 | I155: 0.05 | J155: 1250 | K155: FUT | L155: NFO-FUT | M155: NFO
A156: 154 | B156: 12634114 | C156: 49352 | D156: DABUR26JANFUT | E156: DABUR | F156: 0 | G156: 2026-01-27 | H156: 0 | I156: 0.05 | J156: 1250 | K156: FUT | L156: NFO-FUT | M156: NFO
A157: 155 | B157: 12447746 | C157: 48624 | D157: DALBHARAT25NOVFUT | E157: DALBHARAT | F157: 0 | G157: 2025-11-25 | H157: 0 | I157: 0.1 | J157: 325 | K157: FUT | L157: NFO-FUT | M157: NFO
A158: 156 | B158: 12720898 | C158: 49691 | D158: DALBHARAT25DECFUT | E158: DALBHARAT | F158: 0 | G158: 2025-12-30 | H158: 0 | I158: 0.1 | J158: 325 | K158: FUT | L158: NFO-FUT | M158: NFO
A159: 157 | B159: 12634370 | C159: 49353 | D159: DALBHARAT26JANFUT | E159: DALBHARAT | F159: 0 | G159: 2026-01-27 | H159: 0 | I159: 0.1 | J159: 325 | K159: FUT | L159: NFO-FUT | M159: NFO
A160: 158 | B160: 12448002 | C160: 48625 | D160: DELHIVERY25NOVFUT | E160: DELHIVERY | F160: 0 | G160: 2025-11-25 | H160: 0 | I160: 0.05 | J160: 2075 | K160: FUT | L160: NFO-FUT | M160: NFO
A161: 159 | B161: 12721154 | C161: 49692 | D161: DELHIVERY25DECFUT | E161: DELHIVERY | F161: 0 | G161: 2025-12-30 | H161: 0 | I161: 0.05 | J161: 2075 | K161: FUT | L161: NFO-FUT | M161: NFO
A162: 160 | B162: 12634626 | C162: 49354 | D162: DELHIVERY26JANFUT | E162: DELHIVERY | F162: 0 | G162: 2026-01-27 | H162: 0 | I162: 0.05 | J162: 2075 | K162: FUT | L162: NFO-FUT | M162: NFO
A163: 161 | B163: 12448258 | C163: 48626 | D163: DIVISLAB25NOVFUT | E163: DIVISLAB | F163: 0 | G163: 2025-11-25 | H163: 0 | I163: 0.5 | J163: 100 | K163: FUT | L163: NFO-FUT | M163: NFO
A164: 162 | B164: 12721410 | C164: 49693 | D164: DIVISLAB25DECFUT | E164: DIVISLAB | F164: 0 | G164: 2025-12-30 | H164: 0 | I164: 0.5 | J164: 100 | K164: FUT | L164: NFO-FUT | M164: NFO
A165: 163 | B165: 12636930 | C165: 49363 | D165: DIVISLAB26JANFUT | E165: DIVISLAB | F165: 0 | G165: 2026-01-27 | H165: 0 | I165: 0.5 | J165: 100 | K165: FUT | L165: NFO-FUT | M165: NFO
A166: 164 | B166: 12448514 | C166: 48627 | D166: DIXON25NOVFUT | E166: DIXON | F166: 0 | G166: 2025-11-25 | H166: 0 | I166: 1 | J166: 50 | K166: FUT | L166: NFO-FUT | M166: NFO
A167: 165 | B167: 12722178 | C167: 49696 | D167: DIXON25DECFUT | E167: DIXON | F167: 0 | G167: 2025-12-30 | H167: 0 | I167: 1 | J167: 50 | K167: FUT | L167: NFO-FUT | M167: NFO
A168: 166 | B168: 12637186 | C168: 49364 | D168: DIXON26JANFUT | E168: DIXON | F168: 0 | G168: 2026-01-27 | H168: 0 | I168: 1 | J168: 50 | K168: FUT | L168: NFO-FUT | M168: NFO
A169: 167 | B169: 12449282 | C169: 48630 | D169: DLF25NOVFUT | E169: DLF | F169: 0 | G169: 2025-11-25 | H169: 0 | I169: 0.05 | J169: 825 | K169: FUT | L169: NFO-FUT | M169: NFO
A170: 168 | B170: 12722946 | C170: 49699 | D170: DLF25DECFUT | E170: DLF | F170: 0 | G170: 2025-12-30 | H170: 0 | I170: 0.05 | J170: 825 | K170: FUT | L170: NFO-FUT | M170: NFO
A171: 169 | B171: 12638722 | C171: 49370 | D171: DLF26JANFUT | E171: DLF | F171: 0 | G171: 2026-01-27 | H171: 0 | I171: 0.05 | J171: 825 | K171: FUT | L171: NFO-FUT | M171: NFO
A172: 170 | B172: 12449538 | C172: 48631 | D172: DMART25NOVFUT | E172: DMART | F172: 0 | G172: 2025-11-25 | H172: 0 | I172: 0.1 | J172: 150 | K172: FUT | L172: NFO-FUT | M172: NFO
A173: 171 | B173: 12723202 | C173: 49700 | D173: DMART25DECFUT | E173: DMART | F173: 0 | G173: 2025-12-30 | H173: 0 | I173: 0.1 | J173: 150 | K173: FUT | L173: NFO-FUT | M173: NFO
A174: 172 | B174: 12639234 | C174: 49372 | D174: DMART26JANFUT | E174: DMART | F174: 0 | G174: 2026-01-27 | H174: 0 | I174: 0.1 | J174: 150 | K174: FUT | L174: NFO-FUT | M174: NFO
A175: 173 | B175: 12449794 | C175: 48632 | D175: DRREDDY25NOVFUT | E175: DRREDDY | F175: 0 | G175: 2025-11-25 | H175: 0 | I175: 0.1 | J175: 625 | K175: FUT | L175: NFO-FUT | M175: NFO
A176: 174 | B176: 12724994 | C176: 49707 | D176: DRREDDY25DECFUT | E176: DRREDDY | F176: 0 | G176: 2025-12-30 | H176: 0 | I176: 0.1 | J176: 625 | K176: FUT | L176: NFO-FUT | M176: NFO
A177: 175 | B177: 12639746 | C177: 49374 | D177: DRREDDY26JANFUT | E177: DRREDDY | F177: 0 | G177: 2026-01-27 | H177: 0 | I177: 0.1 | J177: 625 | K177: FUT | L177: NFO-FUT | M177: NFO
A178: 176 | B178: 12450050 | C178: 48633 | D178: EICHERMOT25NOVFUT | E178: EICHERMOT | F178: 0 | G178: 2025-11-25 | H178: 0 | I178: 0.5 | J178: 175 | K178: FUT | L178: NFO-FUT | M178: NFO
A179: 177 | B179: 12726018 | C179: 49711 | D179: EICHERMOT25DECFUT | E179: EICHERMOT | F179: 0 | G179: 2025-12-30 | H179: 0 | I179: 0.5 | J179: 175 | K179: FUT | L179: NFO-FUT | M179: NFO
A180: 178 | B180: 12640002 | C180: 49375 | D180: EICHERMOT26JANFUT | E180: EICHERMOT | F180: 0 | G180: 2026-01-27 | H180: 0 | I180: 0.5 | J180: 100 | K180: FUT | L180: NFO-FUT | M180: NFO
A181: 179 | B181: 12450306 | C181: 48634 | D181: ETERNAL25NOVFUT | E181: ETERNAL | F181: 0 | G181: 2025-11-25 | H181: 0 | I181: 0.05 | J181: 2425 | K181: FUT | L181: NFO-FUT | M181: NFO
A182: 180 | B182: 12726274 | C182: 49712 | D182: ETERNAL25DECFUT | E182: ETERNAL | F182: 0 | G182: 2025-12-30 | H182: 0 | I182: 0.05 | J182: 2425 | K182: FUT | L182: NFO-FUT | M182: NFO
A183: 181 | B183: 12642050 | C183: 49383 | D183: ETERNAL26JANFUT | E183: ETERNAL | F183: 0 | G183: 2026-01-27 | H183: 0 | I183: 0.05 | J183: 2425 | K183: FUT | L183: NFO-FUT | M183: NFO
A184: 182 | B184: 12450562 | C184: 48635 | D184: EXIDEIND25NOVFUT | E184: EXIDEIND | F184: 0 | G184: 2025-11-25 | H184: 0 | I184: 0.05 | J184: 1800 | K184: FUT | L184: NFO-FUT | M184: NFO
A185: 183 | B185: 12726530 | C185: 49713 | D185: EXIDEIND25DECFUT | E185: EXIDEIND | F185: 0 | G185: 2025-12-30 | H185: 0 | I185: 0.05 | J185: 1800 | K185: FUT | L185: NFO-FUT | M185: NFO
A186: 184 | B186: 12642306 | C186: 49384 | D186: EXIDEIND26JANFUT | E186: EXIDEIND | F186: 0 | G186: 2026-01-27 | H186: 0 | I186: 0.05 | J186: 1800 | K186: FUT | L186: NFO-FUT | M186: NFO
A187: 185 | B187: 12450818 | C187: 48636 | D187: FEDERALBNK25NOVFUT | E187: FEDERALBNK | F187: 0 | G187: 2025-11-25 | H187: 0 | I187: 0.01 | J187: 5000 | K187: FUT | L187: NFO-FUT | M187: NFO
A188: 186 | B188: 12726786 | C188: 49714 | D188: FEDERALBNK25DECFUT | E188: FEDERALBNK | F188: 0 | G188: 2025-12-30 | H188: 0 | I188: 0.01 | J188: 5000 | K188: FUT | L188: NFO-FUT | M188: NFO
A189: 187 | B189: 12644098 | C189: 49391 | D189: FEDERALBNK26JANFUT | E189: FEDERALBNK | F189: 0 | G189: 2026-01-27 | H189: 0 | I189: 0.01 | J189: 5000 | K189: FUT | L189: NFO-FUT | M189: NFO
A190: 188 | B190: 9485314 | C190: 37052 | D190: FINNIFTY25NOVFUT | E190: FINNIFTY | F190: 0 | G190: 2025-11-25 | H190: 0 | I190: 0.1 | J190: 65 | K190: FUT | L190: NFO-FUT | M190: NFO
A191: 189 | B191: 12677378 | C191: 49521 | D191: FINNIFTY25DECFUT | E191: FINNIFTY | F191: 0 | G191: 2025-12-30 | H191: 0 | I191: 0.1 | J191: 65 | K191: FUT | L191: NFO-FUT | M191: NFO
A192: 190 | B192: 12601602 | C192: 49225 | D192: FINNIFTY26JANFUT | E192: FINNIFTY | F192: 0 | G192: 2026-01-27 | H192: 0 | I192: 0.1 | J192: 60 | K192: FUT | L192: NFO-FUT | M192: NFO
A193: 191 | B193: 12451074 | C193: 48637 | D193: FORTIS25NOVFUT | E193: FORTIS | F193: 0 | G193: 2025-11-25 | H193: 0 | I193: 0.1 | J193: 775 | K193: FUT | L193: NFO-FUT | M193: NFO
A194: 192 | B194: 12729090 | C194: 49723 | D194: FORTIS25DECFUT | E194: FORTIS | F194: 0 | G194: 2025-12-30 | H194: 0 | I194: 0.1 | J194: 775 | K194: FUT | L194: NFO-FUT | M194: NFO
A195: 193 | B195: 12644354 | C195: 49392 | D195: FORTIS26JANFUT | E195: FORTIS | F195: 0 | G195: 2026-01-27 | H195: 0 | I195: 0.1 | J195: 775 | K195: FUT | L195: NFO-FUT | M195: NFO
A196: 194 | B196: 12451330 | C196: 48638 | D196: GAIL25NOVFUT | E196: GAIL | F196: 0 | G196: 2025-11-25 | H196: 0 | I196: 0.01 | J196: 3150 | K196: FUT | L196: NFO-FUT | M196: NFO
A197: 195 | B197: 12729346 | C197: 49724 | D197: GAIL25DECFUT | E197: GAIL | F197: 0 | G197: 2025-12-30 | H197: 0 | I197: 0.01 | J197: 3150 | K197: FUT | L197: NFO-FUT | M197: NFO
A198: 196 | B198: 12644610 | C198: 49393 | D198: GAIL26JANFUT | E198: GAIL | F198: 0 | G198: 2026-01-27 | H198: 0 | I198: 0.01 | J198: 3150 | K198: FUT | L198: NFO-FUT | M198: NFO
A199: 197 | B199: 12451586 | C199: 48639 | D199: GLENMARK25NOVFUT | E199: GLENMARK | F199: 0 | G199: 2025-11-25 | H199: 0 | I199: 0.1 | J199: 375 | K199: FUT | L199: NFO-FUT | M199: NFO
A200: 198 | B200: 12729602 | C200: 49725 | D200: GLENMARK25DECFUT | E200: GLENMARK | F200: 0 | G200: 2025-12-30 | H200: 0 | I200: 0.1 | J200: 375 | K200: FUT | L200: NFO-FUT | M200: NFO
... 4300 more rows

Sheet User Guide
B3: Example:
C4: API Key | D4: "abc123"
C5: API Secret | D5: "Xyzpqr987"
D7: add your API_key in below as shown in snip>>>>>
D8: https://kite.zerodha.com/connect/login?v=3&api_key=abc123
C10: request token | D10: "cx4EevlCMTZYRzOMUEyChnsWh7KIoHOh"
C12: Run batch scrip to get access_token as showen in Youtube Video
C13: https://youtu.be/J_Yn89Gw1Xo
C15: Once we get access token then we need to add in "OHLCV_data" sheet in cell
D20: DO NOT Delete below
C21: Trial_token | D21: Algo_trader_sai_1
A27: ## | B27: Once you use have API_key & request_token then in sheet 1 cell c5 add your API_key & request_token by putting ":" in between two like below format
B28: access_key:request_token
B30: Example
C31: API Key | D31: "abc123"
C32: request token | D32: "cx4h"
C34: update cell c5 | D34: abc123:cx4h

Sheet batchfile (hidden)
A1: @echo off setlocal enabledelayedexpansion :: === ENTER YOUR DETAILS BELOW === set API_KEY=abc123 set API_SECRET=Xyzpqr987 set REQUEST_TOKEN=y8HejJ7TgPFSAlJ8n6elvAZGiFHZNyer :: ================================= :: Step 1 - Create temp file with concatenated string set TMPFILE=%TEMP%\kite_input.txt echo|set /p="%API_KEY%%REQUEST_TOKEN%%API_SECRET%" > "%TMPFILE%" :: Step 2 - Compute SHA256 using certutil for /f "tokens=1,2 delims= " %%a in ('certutil -hashfile "%TMPFILE%" SHA256 ^| find /i /v "hash" ^| find /i /v "certutil"') do ( set CHECKSUM=%%a ) del "%TMPFILE%" echo. echo Generated Checksum: echo %CHECKSUM% echo. :: Step 3 - Exchange for access token echo Requesting access token from Zerodha... curl -s -X POST https://api.kite.trade/session/token ^ -H "X-Kite-Version: 3" ^ -H "Content-Type: application/x-www-form-urlencoded" ^ -d "api_key=%API_KEY%&request_token=%REQUEST_TOKEN%&checksum=%CHECKSUM%" echo. echo Done! pause

Sheet Procedure to get access token (hidden)
C2: API Key | D2: "4uvlgrkxqg7ml4ws"
C3: API Secret | D3: "trof1jo1i35kmbndtdizg7xd98ixuzf5"
D5: https://kite.zerodha.com/connect/login?v=3&api_key=4uvlgrkxqg7ml4ws
C7: request token | D7: "cx4EevlCMTZYRzOMUEyChnsWh7KIoHOh"
C10: concate | D10: =D2&"+"&D7&"+"&D3 -> "4uvlgrkxqg7ml4ws"+"cx4EevlCMTZYRzOMUEyChnsWh7KIoHOh"+"trof1jo1i35kmbndtdizg7xd98ixuzf5"
D15: (async ()=>{ const text = "YOUR_API_KEY" + "YOUR_REQUEST_TOKEN" + "YOUR_API_SECRET"; const enc = new TextEncoder().encode(text); const hashBuffer = await crypto.subtle.digest('SHA-256', enc); const hashArray = Array.from(new Uint8Array(hashBuffer)); const hex = hashArray.map(b => b.toString(16).padStart(2,'0')).join(''); console.log(hex); // this is your checksum })(); | G15: (async ()=>{ const text = "4uvlgrkxqg7ml4ws" + "VPfePEgLjHZj12ps7n7c5W4iENTqb7Gc" + "trof1jo1i35kmbndtdizg7xd98ixuzf5"; const enc = new TextEncoder().encode(text); const hashBuffer = await crypto.subtle.digest('SHA-256', enc); const hashArray = Array.from(new Uint8Array(hashBuffer)); const hex = hashArray.map(b => b.toString(16).padStart(2,'0')).join(''); console.log("✅ SHA256 checksum:\n" +hex); // this is your checksum })(); VM461:7 ✅ SHA256 checksum: bdd5a951033e4bd17e77e598ddebd3793945d8fde5b82de0e70ca7053ef46ffb Promise {<fulfilled>: undefined}
D17: eb2dfc4361de1f44e1b22491f291518013e24b7464d814bfffb37f9b85f79f71
D19: ="api_key=4uvlgrkxqg7ml4ws&request_token=" -> api_key=4uvlgrkxqg7ml4ws&request_token=
D20: curl -X POST https://api.kite.trade/session/token ^ -H "X-Kite-Version: 3" ^ -H "Content-Type: application/x-www-form-urlencoded" ^ -d "api_key=4uvlgrkxqg7ml4ws&request_token=cx4EevlCMTZYRzOMUEyChnsWh7KIoHOh&checksum=eb2dfc4361de1f44e1b22491f291518013e24b7464d814bfffb37f9b85f79f71"
C25: access token | D25: 0Rkn5TYVVlEZd0QBFdY1j02OE20OA5uI
